Body Name,Date Paid,Transaction Number,Amount,Supplier Name,Supplier Type,Expense Area,Cost Centre Description,Expense Type
Cambridgeshire County Council,06-Dec-19,51301233786,"-86,621.33",KISIMUL SCHOOL,CARE ESTABLISHMENT,SEN Placements,Placements - Education,Independent School Placements
Cambridgeshire County Council,05-Dec-19,51301277200,"-19,741.33",THE RED HOUSE RESIDENTIAL & NURSING HOME,CARE ESTABLISHMENT,OP - Hunts Locality - Cost of Care,Hunts OP Team - Care,Residential Care
Cambridgeshire County Council,16-Dec-19,51301276657,"-10,540.00",ST FRANCIS CHILDRENS SOCIETY,EDUCATION,Adoption Allowances,Permanance and Adoption,Agency Placements - Out of  County
Cambridgeshire County Council,10-Dec-19,51301269090,"-10,000.00",Norfolk & Norwich Festival,CHARITY,Opportunity Area,Opportunity Area,Professional Fees and Hired Services
Cambridgeshire County Council,04-Dec-19,51301246571,"-7,320.00",STAGECOACH SERVICES LTD,TRADE SUPPLIER,Home to School Transport - Mainstream,Home to School Transport Mainstream - Secondary,Home to School - Public Transport
Cambridgeshire County Council,16-Dec-19,51301279213,"-4,896.00",BEDAZZLE EXPRESSIVE ARTS,EDUCATION,SEND High Needs Top Up,SEND Specialist Services-High needs top-up-Post 16,Independent School Placements
Cambridgeshire County Council,19-Dec-19,51301282401,"-4,822.24",CHURCHCROFT VCT LIMITED,CARE ESTABLISHMENT,LD - Fenland Locality - Cost of Care,LD - Fenland  - Care,Residential Client Care Contributions
Cambridgeshire County Council,05-Dec-19,51301272090,"-4,655.00",Accomplish Group Support Limited,CARE ESTABLISHMENT,LD - Hunts Locality - Cost of Care,LD - Huntingdonshire - Care,Rehabilitation And Respite Care
Cambridgeshire County Council,05-Dec-19,51301272088,"-4,655.00",Accomplish Group Support Limited,CARE ESTABLISHMENT,LD - Hunts Locality - Cost of Care,LD - Huntingdonshire - Care,Rehabilitation And Respite Care
Cambridgeshire County Council,05-Dec-19,51301272078,"-4,655.00",Accomplish Group Support Limited,CARE ESTABLISHMENT,LD - Hunts Locality - Cost of Care,LD - Huntingdonshire - Care,Rehabilitation And Respite Care
Cambridgeshire County Council,05-Dec-19,51301272084,"-4,655.00",Accomplish Group Support Limited,CARE ESTABLISHMENT,LD - Hunts Locality - Cost of Care,LD - Huntingdonshire - Care,Rehabilitation And Respite Care
Cambridgeshire County Council,05-Dec-19,51301272096,"-4,655.00",Accomplish Group Support Limited,CARE ESTABLISHMENT,LD - Hunts Locality - Cost of Care,LD - Huntingdonshire - Care,Rehabilitation And Respite Care
Cambridgeshire County Council,05-Dec-19,51301272079,"-4,655.00",Accomplish Group Support Limited,CARE ESTABLISHMENT,LD - Hunts Locality - Cost of Care,LD - Huntingdonshire - Care,Rehabilitation And Respite Care
Cambridgeshire County Council,05-Dec-19,51301272082,"-4,655.00",Accomplish Group Support Limited,CARE ESTABLISHMENT,LD - Hunts Locality - Cost of Care,LD - Huntingdonshire - Special Needs,Rehabilitation And Respite Care
Cambridgeshire County Council,05-Dec-19,51301272086,"-4,655.00",Accomplish Group Support Limited,CARE ESTABLISHMENT,LD - Hunts Locality - Cost of Care,LD - Huntingdonshire - Special Needs,Rehabilitation And Respite Care
Cambridgeshire County Council,05-Dec-19,51301272092,"-4,655.00",Accomplish Group Support Limited,CARE ESTABLISHMENT,LD - Hunts Locality - Cost of Care,LD - Huntingdonshire - Special Needs,Rehabilitation And Respite Care
Cambridgeshire County Council,17-Dec-19,51300012822,"-4,393.04",Redacted Personal Data,SERVICE USER,Control Accounts,Control Accounts - Payables,Migration Only - Marked as Do Not Use
Cambridgeshire County Council,05-Dec-19,51301277574,"-3,463.66",17 HAMLETT CLOSE (VOYAGE),CARE ESTABLISHMENT,LD - Hunts Locality - Cost of Care,LD - Huntingdonshire - Care,Supported Living
Cambridgeshire County Council,05-Dec-19,51301272091,"-3,325.00",Accomplish Group Support Limited,CARE ESTABLISHMENT,LD - Hunts Locality - Cost of Care,LD - Huntingdonshire - Care,Rehabilitation And Respite Care
Cambridgeshire County Council,17-Dec-19,51301269358,"-2,977.44",DECOY FARM,CARE ESTABLISHMENT,LD - East Locality - Cost of Care,LD - East Cambs - Special Needs,Residential Care
Cambridgeshire County Council,17-Dec-19,51301269356,"-2,977.44",DECOY FARM,CARE ESTABLISHMENT,LD - East Locality - Cost of Care,LD - East Cambs - Special Needs,Residential Care
Cambridgeshire County Council,17-Dec-19,51301269369,"-2,977.44",DECOY FARM,CARE ESTABLISHMENT,LD - East Locality - Cost of Care,LD - East Cambs - Special Needs,Residential Care
Cambridgeshire County Council,17-Dec-19,51301269330,"-2,977.44",DECOY FARM,CARE ESTABLISHMENT,LD - East Locality - Cost of Care,LD - East Cambs - Special Needs,Residential Care
Cambridgeshire County Council,17-Dec-19,51301269331,"-2,977.44",DECOY FARM,CARE ESTABLISHMENT,LD - East Locality - Cost of Care,LD - East Cambs - Special Needs,Residential Care
Cambridgeshire County Council,17-Dec-19,51301269304,"-2,977.44",DECOY FARM,CARE ESTABLISHMENT,LD - East Locality - Cost of Care,LD - East Cambs - Special Needs,Residential Care
Cambridgeshire County Council,17-Dec-19,51301269306,"-2,977.44",DECOY FARM,CARE ESTABLISHMENT,LD - East Locality - Cost of Care,LD - East Cambs - Special Needs,Residential Care
Cambridgeshire County Council,17-Dec-19,51301269408,"-2,977.44",DECOY FARM,CARE ESTABLISHMENT,LD - East Locality - Cost of Care,LD - East Cambs - Special Needs,Residential Care
Cambridgeshire County Council,17-Dec-19,51301269373,"-2,977.44",DECOY FARM,CARE ESTABLISHMENT,LD - East Locality - Cost of Care,LD - East Cambs - Special Needs,Residential Care
Cambridgeshire County Council,17-Dec-19,51301269374,"-2,977.44",DECOY FARM,CARE ESTABLISHMENT,LD - East Locality - Cost of Care,LD - East Cambs - Special Needs,Residential Care
Cambridgeshire County Council,17-Dec-19,51301269385,"-2,977.44",DECOY FARM,CARE ESTABLISHMENT,LD - East Locality - Cost of Care,LD - East Cambs - Special Needs,Residential Care
Cambridgeshire County Council,17-Dec-19,51301269341,"-2,977.44",DECOY FARM,CARE ESTABLISHMENT,LD - East Locality - Cost of Care,LD - East Cambs - Special Needs,Residential Care
Cambridgeshire County Council,17-Dec-19,51301269308,"-2,977.44",DECOY FARM,CARE ESTABLISHMENT,LD - East Locality - Cost of Care,LD - East Cambs - Special Needs,Residential Care
Cambridgeshire County Council,17-Dec-19,51301269286,"-2,977.44",DECOY FARM,CARE ESTABLISHMENT,LD - East Locality - Cost of Care,LD - East Cambs - Special Needs,Residential Care
Cambridgeshire County Council,17-Dec-19,51301269310,"-2,977.44",DECOY FARM,CARE ESTABLISHMENT,LD - East Locality - Cost of Care,LD - East Cambs - Special Needs,Residential Care
Cambridgeshire County Council,17-Dec-19,51301269375,"-2,977.44",DECOY FARM,CARE ESTABLISHMENT,LD - East Locality - Cost of Care,LD - East Cambs - Special Needs,Residential Care
Cambridgeshire County Council,17-Dec-19,51301269296,"-2,977.44",DECOY FARM,CARE ESTABLISHMENT,LD - East Locality - Cost of Care,LD - East Cambs - Special Needs,Residential Care
Cambridgeshire County Council,17-Dec-19,51301269351,"-2,977.44",DECOY FARM,CARE ESTABLISHMENT,LD - East Locality - Cost of Care,LD - East Cambs - Special Needs,Residential Care
Cambridgeshire County Council,17-Dec-19,51301269352,"-2,977.44",DECOY FARM,CARE ESTABLISHMENT,LD - East Locality - Cost of Care,LD - East Cambs - Special Needs,Residential Care
Cambridgeshire County Council,17-Dec-19,51301269305,"-2,977.44",DECOY FARM,CARE ESTABLISHMENT,LD - East Locality - Cost of Care,LD - East Cambs - Special Needs,Residential Care
Cambridgeshire County Council,17-Dec-19,51301269370,"-2,977.44",DECOY FARM,CARE ESTABLISHMENT,LD - East Locality - Cost of Care,LD - East Cambs - Special Needs,Residential Care
Cambridgeshire County Council,17-Dec-19,51301269325,"-2,977.44",DECOY FARM,CARE ESTABLISHMENT,LD - East Locality - Cost of Care,LD - East Cambs - Special Needs,Residential Care
Cambridgeshire County Council,17-Dec-19,51301269416,"-2,977.44",DECOY FARM,CARE ESTABLISHMENT,LD - East Locality - Cost of Care,LD - East Cambs - Special Needs,Residential Care
Cambridgeshire County Council,17-Dec-19,51301269377,"-2,977.44",DECOY FARM,CARE ESTABLISHMENT,LD - East Locality - Cost of Care,LD - East Cambs - Special Needs,Residential Care
Cambridgeshire County Council,17-Dec-19,51301269283,"-2,977.44",DECOY FARM,CARE ESTABLISHMENT,LD - East Locality - Cost of Care,LD - East Cambs - Special Needs,Residential Care
Cambridgeshire County Council,17-Dec-19,51301269299,"-2,977.44",DECOY FARM,CARE ESTABLISHMENT,LD - East Locality - Cost of Care,LD - East Cambs - Special Needs,Residential Care
Cambridgeshire County Council,17-Dec-19,51301269315,"-2,977.44",DECOY FARM,CARE ESTABLISHMENT,LD - East Locality - Cost of Care,LD - East Cambs - Special Needs,Residential Care
Cambridgeshire County Council,17-Dec-19,51301269320,"-2,977.44",DECOY FARM,CARE ESTABLISHMENT,LD - East Locality - Cost of Care,LD - East Cambs - Special Needs,Residential Care
Cambridgeshire County Council,17-Dec-19,51301269339,"-2,977.44",DECOY FARM,CARE ESTABLISHMENT,LD - East Locality - Cost of Care,LD - East Cambs - Special Needs,Residential Care
Cambridgeshire County Council,17-Dec-19,51301269359,"-2,977.44",DECOY FARM,CARE ESTABLISHMENT,LD - East Locality - Cost of Care,LD - East Cambs - Special Needs,Residential Care
Cambridgeshire County Council,17-Dec-19,51301269409,"-2,977.44",DECOY FARM,CARE ESTABLISHMENT,LD - East Locality - Cost of Care,LD - East Cambs - Special Needs,Residential Care
Cambridgeshire County Council,17-Dec-19,51301269300,"-2,977.44",DECOY FARM,CARE ESTABLISHMENT,LD - East Locality - Cost of Care,LD - East Cambs - Special Needs,Residential Care
Cambridgeshire County Council,17-Dec-19,51301269334,"-2,977.44",DECOY FARM,CARE ESTABLISHMENT,LD - East Locality - Cost of Care,LD - East Cambs - Special Needs,Residential Care
Cambridgeshire County Council,17-Dec-19,51301269324,"-2,977.44",DECOY FARM,CARE ESTABLISHMENT,LD - East Locality - Cost of Care,LD - East Cambs - Special Needs,Residential Care
Cambridgeshire County Council,17-Dec-19,51301269311,"-2,977.44",DECOY FARM,CARE ESTABLISHMENT,LD - East Locality - Cost of Care,LD - East Cambs - Special Needs,Residential Care
Cambridgeshire County Council,17-Dec-19,51301269365,"-2,977.44",DECOY FARM,CARE ESTABLISHMENT,LD - East Locality - Cost of Care,LD - East Cambs - Special Needs,Residential Care
Cambridgeshire County Council,17-Dec-19,51301269415,"-2,977.44",DECOY FARM,CARE ESTABLISHMENT,LD - East Locality - Cost of Care,LD - East Cambs - Special Needs,Residential Care
Cambridgeshire County Council,17-Dec-19,51301269411,"-2,977.44",DECOY FARM,CARE ESTABLISHMENT,LD - East Locality - Cost of Care,LD - East Cambs - Special Needs,Residential Care
Cambridgeshire County Council,17-Dec-19,51301269354,"-2,977.44",DECOY FARM,CARE ESTABLISHMENT,LD - East Locality - Cost of Care,LD - East Cambs - Special Needs,Residential Care
Cambridgeshire County Council,17-Dec-19,51301269388,"-2,977.44",DECOY FARM,CARE ESTABLISHMENT,LD - East Locality - Cost of Care,LD - East Cambs - Special Needs,Residential Care
Cambridgeshire County Council,17-Dec-19,51301269323,"-2,977.44",DECOY FARM,CARE ESTABLISHMENT,LD - East Locality - Cost of Care,LD - East Cambs - Special Needs,Residential Care
Cambridgeshire County Council,17-Dec-19,51301269335,"-2,977.44",DECOY FARM,CARE ESTABLISHMENT,LD - East Locality - Cost of Care,LD - East Cambs - Special Needs,Residential Care
Cambridgeshire County Council,17-Dec-19,51301269397,"-2,977.44",DECOY FARM,CARE ESTABLISHMENT,LD - East Locality - Cost of Care,LD - East Cambs - Special Needs,Residential Care
Cambridgeshire County Council,17-Dec-19,51301269302,"-2,977.44",DECOY FARM,CARE ESTABLISHMENT,LD - East Locality - Cost of Care,LD - East Cambs - Special Needs,Residential Care
Cambridgeshire County Council,17-Dec-19,51301269312,"-2,977.44",DECOY FARM,CARE ESTABLISHMENT,LD - East Locality - Cost of Care,LD - East Cambs - Special Needs,Residential Care
Cambridgeshire County Council,17-Dec-19,51301269384,"-2,977.44",DECOY FARM,CARE ESTABLISHMENT,LD - East Locality - Cost of Care,LD - East Cambs - Special Needs,Residential Care
Cambridgeshire County Council,17-Dec-19,51301269407,"-2,977.44",DECOY FARM,CARE ESTABLISHMENT,LD - East Locality - Cost of Care,LD - East Cambs - Special Needs,Residential Care
Cambridgeshire County Council,17-Dec-19,51301269327,"-2,977.44",DECOY FARM,CARE ESTABLISHMENT,LD - East Locality - Cost of Care,LD - East Cambs - Special Needs,Residential Care
Cambridgeshire County Council,17-Dec-19,51301269371,"-2,977.44",DECOY FARM,CARE ESTABLISHMENT,LD - East Locality - Cost of Care,LD - East Cambs - Special Needs,Residential Care
Cambridgeshire County Council,17-Dec-19,51301269271,"-2,977.44",DECOY FARM,CARE ESTABLISHMENT,LD - East Locality - Cost of Care,LD - East Cambs - Special Needs,Residential Care
Cambridgeshire County Council,17-Dec-19,51301269378,"-2,977.44",DECOY FARM,CARE ESTABLISHMENT,LD - East Locality - Cost of Care,LD - East Cambs - Special Needs,Residential Care
Cambridgeshire County Council,17-Dec-19,51301269382,"-2,977.44",DECOY FARM,CARE ESTABLISHMENT,LD - East Locality - Cost of Care,LD - East Cambs - Special Needs,Residential Care
Cambridgeshire County Council,17-Dec-19,51301269346,"-2,977.44",DECOY FARM,CARE ESTABLISHMENT,LD - East Locality - Cost of Care,LD - East Cambs - Special Needs,Residential Care
Cambridgeshire County Council,17-Dec-19,51301269399,"-2,977.44",DECOY FARM,CARE ESTABLISHMENT,LD - East Locality - Cost of Care,LD - East Cambs - Special Needs,Residential Care
Cambridgeshire County Council,17-Dec-19,51301269285,"-2,977.44",DECOY FARM,CARE ESTABLISHMENT,LD - East Locality - Cost of Care,LD - East Cambs - Special Needs,Residential Care
Cambridgeshire County Council,17-Dec-19,51301269402,"-2,977.44",DECOY FARM,CARE ESTABLISHMENT,LD - East Locality - Cost of Care,LD - East Cambs - Special Needs,Residential Care
Cambridgeshire County Council,17-Dec-19,51301269417,"-2,977.44",DECOY FARM,CARE ESTABLISHMENT,LD - East Locality - Cost of Care,LD - East Cambs - Special Needs,Residential Care
Cambridgeshire County Council,17-Dec-19,51301269313,"-2,977.44",DECOY FARM,CARE ESTABLISHMENT,LD - East Locality - Cost of Care,LD - East Cambs - Special Needs,Residential Care
Cambridgeshire County Council,17-Dec-19,51301269326,"-2,977.44",DECOY FARM,CARE ESTABLISHMENT,LD - East Locality - Cost of Care,LD - East Cambs - Special Needs,Residential Care
Cambridgeshire County Council,17-Dec-19,51301269412,"-2,977.44",DECOY FARM,CARE ESTABLISHMENT,LD - East Locality - Cost of Care,LD - East Cambs - Special Needs,Residential Care
Cambridgeshire County Council,17-Dec-19,51301269410,"-2,977.44",DECOY FARM,CARE ESTABLISHMENT,LD - East Locality - Cost of Care,LD - East Cambs - Special Needs,Residential Care
Cambridgeshire County Council,17-Dec-19,51301269383,"-2,977.44",DECOY FARM,CARE ESTABLISHMENT,LD - East Locality - Cost of Care,LD - East Cambs - Special Needs,Residential Care
Cambridgeshire County Council,17-Dec-19,51301269393,"-2,977.44",DECOY FARM,CARE ESTABLISHMENT,LD - East Locality - Cost of Care,LD - East Cambs - Special Needs,Residential Care
Cambridgeshire County Council,17-Dec-19,51301269288,"-2,977.44",DECOY FARM,CARE ESTABLISHMENT,LD - East Locality - Cost of Care,LD - East Cambs - Special Needs,Residential Care
Cambridgeshire County Council,17-Dec-19,51301269338,"-2,977.44",DECOY FARM,CARE ESTABLISHMENT,LD - East Locality - Cost of Care,LD - East Cambs - Special Needs,Residential Care
Cambridgeshire County Council,17-Dec-19,51301269353,"-2,977.44",DECOY FARM,CARE ESTABLISHMENT,LD - East Locality - Cost of Care,LD - East Cambs - Special Needs,Residential Care
Cambridgeshire County Council,17-Dec-19,51301269345,"-2,977.44",DECOY FARM,CARE ESTABLISHMENT,LD - East Locality - Cost of Care,LD - East Cambs - Special Needs,Residential Care
Cambridgeshire County Council,17-Dec-19,51301269401,"-2,977.44",DECOY FARM,CARE ESTABLISHMENT,LD - East Locality - Cost of Care,LD - East Cambs - Special Needs,Residential Care
Cambridgeshire County Council,17-Dec-19,51301269376,"-2,977.44",DECOY FARM,CARE ESTABLISHMENT,LD - East Locality - Cost of Care,LD - East Cambs - Special Needs,Residential Care
Cambridgeshire County Council,17-Dec-19,51301269403,"-2,977.44",DECOY FARM,CARE ESTABLISHMENT,LD - East Locality - Cost of Care,LD - East Cambs - Special Needs,Residential Care
Cambridgeshire County Council,17-Dec-19,51301269279,"-2,977.44",DECOY FARM,CARE ESTABLISHMENT,LD - East Locality - Cost of Care,LD - East Cambs - Special Needs,Residential Care
Cambridgeshire County Council,17-Dec-19,51301269307,"-2,977.44",DECOY FARM,CARE ESTABLISHMENT,LD - East Locality - Cost of Care,LD - East Cambs - Special Needs,Residential Care
Cambridgeshire County Council,17-Dec-19,51301269317,"-2,977.44",DECOY FARM,CARE ESTABLISHMENT,LD - East Locality - Cost of Care,LD - East Cambs - Special Needs,Residential Care
Cambridgeshire County Council,05-Dec-19,51301276983,"-2,951.79",VOYAGE,CARE ESTABLISHMENT,LD - South Locality - Cost of Care,LD - South Cambs - Care,Supported Living
Cambridgeshire County Council,17-Dec-19,51301288396,"-2,888.79",VOYAGE,CARE ESTABLISHMENT,LD - East Locality - Cost of Care,LD - East Cambs - Care,Residential Care
Cambridgeshire County Council,17-Dec-19,51301288370,"-2,802.78",VOYAGE,CARE ESTABLISHMENT,LD - East Locality - Cost of Care,LD - East Cambs - Care,Residential Care
Cambridgeshire County Council,13-Dec-19,51301285096,"-2,711.01",FLORIDA AVENUE (VOYAGE),CARE ESTABLISHMENT,LD - Hunts Locality - Cost of Care,LD - Huntingdonshire - Care,Supported Living
Cambridgeshire County Council,13-Dec-19,51301285387,"-2,666.57",VOYAGE,CARE ESTABLISHMENT,LD - South Locality - Cost of Care,LD - South Cambs - Care,Domiciliary Care
Cambridgeshire County Council,17-Dec-19,51301269418,"-2,552.09",DECOY FARM,CARE ESTABLISHMENT,LD - East Locality - Cost of Care,LD - East Cambs - Special Needs,Residential Care
Cambridgeshire County Council,13-Dec-19,51301281611,"-2,454.60",STAGECOACH SERVICES LTD,TRADE SUPPLIER,Passenger Transport other,Cambridgeshire Future Transport,Support - subsidised bus routes
Cambridgeshire County Council,24-Dec-19,51301286490,"-2,445.30",THE ADOLESCENT & CHILDRENS TRUST (TACT) UK LTD,TRUST (OTHER),LAC Placements,Placements - independent fostering,Agency Placements - Out of  County
Cambridgeshire County Council,18-Dec-19,51301238262,"-2,398.41",26A LEROWE ROAD (REGARD),CARE ESTABLISHMENT,LD - Hunts Locality - Cost of Care,LD - Huntingdonshire - Special Needs,Supported Living
Cambridgeshire County Council,18-Dec-19,51301238261,"-2,398.41",26A LEROWE ROAD (REGARD),CARE ESTABLISHMENT,LD - Hunts Locality - Cost of Care,LD - Huntingdonshire - Special Needs,Supported Living
Cambridgeshire County Council,17-Dec-19,51301288390,"-2,387.76",VOYAGE,CARE ESTABLISHMENT,LD - East Locality - Cost of Care,LD - East Cambs - Care,Residential Care
Cambridgeshire County Council,17-Dec-19,51301288390,"-2,387.76",VOYAGE,CARE ESTABLISHMENT,LD - East Locality - Cost of Care,LD - East Cambs - Care,Residential Care
Cambridgeshire County Council,17-Dec-19,51301288390,"-2,387.76",VOYAGE,CARE ESTABLISHMENT,LD - East Locality - Cost of Care,LD - East Cambs - Care,Residential Care
Cambridgeshire County Council,17-Dec-19,51301288390,"-2,387.76",VOYAGE,CARE ESTABLISHMENT,LD - East Locality - Cost of Care,LD - East Cambs - Care,Residential Care
Cambridgeshire County Council,17-Dec-19,51301288390,"-2,387.76",VOYAGE,CARE ESTABLISHMENT,LD - East Locality - Cost of Care,LD - East Cambs - Care,Residential Care
Cambridgeshire County Council,17-Dec-19,51301288390,"-2,387.76",VOYAGE,CARE ESTABLISHMENT,LD - East Locality - Cost of Care,LD - East Cambs - Care,Residential Care
Cambridgeshire County Council,17-Dec-19,51301288390,"-2,387.76",VOYAGE,CARE ESTABLISHMENT,LD - East Locality - Cost of Care,LD - East Cambs - Care,Residential Care
Cambridgeshire County Council,17-Dec-19,51301288390,"-2,387.76",VOYAGE,CARE ESTABLISHMENT,LD - East Locality - Cost of Care,LD - East Cambs - Care,Residential Care
Cambridgeshire County Council,17-Dec-19,51301288390,"-2,387.76",VOYAGE,CARE ESTABLISHMENT,LD - East Locality - Cost of Care,LD - East Cambs - Care,Residential Care
Cambridgeshire County Council,24-Dec-19,51301276530,"-2,361.94",Cambridge Meridian Academies Trust,EDUCATION,Northstowe secondary,Northstowe secondary,Furniture - Fixtures and Fittings
Cambridgeshire County Council,02-Dec-19,51301274901,"-2,341.61",VOYAGE,CARE ESTABLISHMENT,LD - City Locality - Cost of Care,LD - City - Special Needs,Residential Care
Cambridgeshire County Council,02-Dec-19,51301274901,"-2,341.61",VOYAGE,CARE ESTABLISHMENT,LD - City Locality - Cost of Care,LD - City - Special Needs,Residential Care
Cambridgeshire County Council,02-Dec-19,51301274901,"-2,341.61",VOYAGE,CARE ESTABLISHMENT,LD - City Locality - Cost of Care,LD - City - Special Needs,Residential Care
Cambridgeshire County Council,02-Dec-19,51301274901,"-2,341.61",VOYAGE,CARE ESTABLISHMENT,LD - City Locality - Cost of Care,LD - City - Special Needs,Residential Care
Cambridgeshire County Council,02-Dec-19,51301274901,"-2,341.61",VOYAGE,CARE ESTABLISHMENT,LD - City Locality - Cost of Care,LD - City - Special Needs,Residential Care
Cambridgeshire County Council,02-Dec-19,51301274901,"-2,341.61",VOYAGE,CARE ESTABLISHMENT,LD - City Locality - Cost of Care,LD - City - Special Needs,Residential Care
Cambridgeshire County Council,02-Dec-19,51301274901,"-2,341.61",VOYAGE,CARE ESTABLISHMENT,LD - City Locality - Cost of Care,LD - City - Special Needs,Residential Care
Cambridgeshire County Council,02-Dec-19,51301274901,"-2,341.61",VOYAGE,CARE ESTABLISHMENT,LD - City Locality - Cost of Care,LD - City - Special Needs,Residential Care
Cambridgeshire County Council,02-Dec-19,51301274901,"-2,341.61",VOYAGE,CARE ESTABLISHMENT,LD - City Locality - Cost of Care,LD - City - Special Needs,Residential Care
Cambridgeshire County Council,02-Dec-19,51301274901,"-2,341.61",VOYAGE,CARE ESTABLISHMENT,LD - City Locality - Cost of Care,LD - City - Special Needs,Residential Care
Cambridgeshire County Council,02-Dec-19,51301274901,"-2,341.61",VOYAGE,CARE ESTABLISHMENT,LD - City Locality - Cost of Care,LD - City - Special Needs,Residential Care
Cambridgeshire County Council,02-Dec-19,51301274901,"-2,341.61",VOYAGE,CARE ESTABLISHMENT,LD - City Locality - Cost of Care,LD - City - Special Needs,Residential Care
Cambridgeshire County Council,02-Dec-19,51301274901,"-2,341.61",VOYAGE,CARE ESTABLISHMENT,LD - City Locality - Cost of Care,LD - City - Special Needs,Residential Care
Cambridgeshire County Council,05-Dec-19,51301278640,"-2,341.61",VOYAGE,CARE ESTABLISHMENT,LD - City Locality - Cost of Care,LD - City - Special Needs,Residential Care
Cambridgeshire County Council,05-Dec-19,51301278640,"-2,341.61",VOYAGE,CARE ESTABLISHMENT,LD - City Locality - Cost of Care,LD - City - Special Needs,Residential Care
Cambridgeshire County Council,05-Dec-19,51301278640,"-2,341.61",VOYAGE,CARE ESTABLISHMENT,LD - City Locality - Cost of Care,LD - City - Special Needs,Residential Care
Cambridgeshire County Council,05-Dec-19,51301278640,"-2,341.61",VOYAGE,CARE ESTABLISHMENT,LD - City Locality - Cost of Care,LD - City - Special Needs,Residential Care
Cambridgeshire County Council,05-Dec-19,51301278640,"-2,341.61",VOYAGE,CARE ESTABLISHMENT,LD - City Locality - Cost of Care,LD - City - Special Needs,Residential Care
Cambridgeshire County Council,05-Dec-19,51301278640,"-2,341.61",VOYAGE,CARE ESTABLISHMENT,LD - City Locality - Cost of Care,LD - City - Special Needs,Residential Care
Cambridgeshire County Council,05-Dec-19,51301278640,"-2,341.61",VOYAGE,CARE ESTABLISHMENT,LD - City Locality - Cost of Care,LD - City - Special Needs,Residential Care
Cambridgeshire County Council,05-Dec-19,51301278640,"-2,341.61",VOYAGE,CARE ESTABLISHMENT,LD - City Locality - Cost of Care,LD - City - Special Needs,Residential Care
Cambridgeshire County Council,05-Dec-19,51301278640,"-2,341.61",VOYAGE,CARE ESTABLISHMENT,LD - City Locality - Cost of Care,LD - City - Special Needs,Residential Care
Cambridgeshire County Council,05-Dec-19,51301278640,"-2,341.61",VOYAGE,CARE ESTABLISHMENT,LD - City Locality - Cost of Care,LD - City - Special Needs,Residential Care
Cambridgeshire County Council,05-Dec-19,51301278640,"-2,341.61",VOYAGE,CARE ESTABLISHMENT,LD - City Locality - Cost of Care,LD - City - Special Needs,Residential Care
Cambridgeshire County Council,05-Dec-19,51301278640,"-2,341.61",VOYAGE,CARE ESTABLISHMENT,LD - City Locality - Cost of Care,LD - City - Special Needs,Residential Care
Cambridgeshire County Council,05-Dec-19,51301278640,"-2,341.61",VOYAGE,CARE ESTABLISHMENT,LD - City Locality - Cost of Care,LD - City - Special Needs,Residential Care
Cambridgeshire County Council,13-Dec-19,51301285313,"-2,299.70",VOYAGE,CARE ESTABLISHMENT,LD - Hunts Locality - Cost of Care,LD - Huntingdonshire - Care,Supported Living
Cambridgeshire County Council,13-Dec-19,51301285313,"-2,299.70",VOYAGE,CARE ESTABLISHMENT,LD - Hunts Locality - Cost of Care,LD - Huntingdonshire - Care,Supported Living
Cambridgeshire County Council,13-Dec-19,51301285313,"-2,299.70",VOYAGE,CARE ESTABLISHMENT,LD - Hunts Locality - Cost of Care,LD - Huntingdonshire - Care,Supported Living
Cambridgeshire County Council,13-Dec-19,51301285313,"-2,299.70",VOYAGE,CARE ESTABLISHMENT,LD - Hunts Locality - Cost of Care,LD - Huntingdonshire - Care,Supported Living
Cambridgeshire County Council,13-Dec-19,51301285313,"-2,299.70",VOYAGE,CARE ESTABLISHMENT,LD - Hunts Locality - Cost of Care,LD - Huntingdonshire - Care,Supported Living
Cambridgeshire County Council,13-Dec-19,51301285313,"-2,299.70",VOYAGE,CARE ESTABLISHMENT,LD - Hunts Locality - Cost of Care,LD - Huntingdonshire - Care,Supported Living
Cambridgeshire County Council,13-Dec-19,51301285313,"-2,299.70",VOYAGE,CARE ESTABLISHMENT,LD - Hunts Locality - Cost of Care,LD - Huntingdonshire - Care,Supported Living
Cambridgeshire County Council,13-Dec-19,51301285313,"-2,299.70",VOYAGE,CARE ESTABLISHMENT,LD - Hunts Locality - Cost of Care,LD - Huntingdonshire - Care,Supported Living
Cambridgeshire County Council,13-Dec-19,51301285313,"-2,299.70",VOYAGE,CARE ESTABLISHMENT,LD - Hunts Locality - Cost of Care,LD - Huntingdonshire - Care,Supported Living
Cambridgeshire County Council,05-Dec-19,51301278289,"-2,272.88",Accomplish Group Support Limited,CARE ESTABLISHMENT,LD - Young Adults Team,LD - Young Adults - Care,Residential Care
Cambridgeshire County Council,05-Dec-19,51301278289,"-2,272.88",Accomplish Group Support Limited,CARE ESTABLISHMENT,LD - Young Adults Team,LD - Young Adults - Care,Residential Care
Cambridgeshire County Council,05-Dec-19,51301278289,"-2,272.88",Accomplish Group Support Limited,CARE ESTABLISHMENT,LD - Young Adults Team,LD - Young Adults - Care,Residential Care
Cambridgeshire County Council,05-Dec-19,51301278289,"-2,272.88",Accomplish Group Support Limited,CARE ESTABLISHMENT,LD - Young Adults Team,LD - Young Adults - Care,Residential Care
Cambridgeshire County Council,05-Dec-19,51301278289,"-2,272.88",Accomplish Group Support Limited,CARE ESTABLISHMENT,LD - Young Adults Team,LD - Young Adults - Care,Residential Care
Cambridgeshire County Council,05-Dec-19,51301278289,"-2,272.88",Accomplish Group Support Limited,CARE ESTABLISHMENT,LD - Young Adults Team,LD - Young Adults - Care,Residential Care
Cambridgeshire County Council,05-Dec-19,51301278289,"-2,272.88",Accomplish Group Support Limited,CARE ESTABLISHMENT,LD - Young Adults Team,LD - Young Adults - Care,Residential Care
Cambridgeshire County Council,05-Dec-19,51301278289,"-2,272.88",Accomplish Group Support Limited,CARE ESTABLISHMENT,LD - Young Adults Team,LD - Young Adults - Care,Residential Care
Cambridgeshire County Council,17-Dec-19,51301288390,"-2,252.47",VOYAGE,CARE ESTABLISHMENT,LD - East Locality - Cost of Care,LD - East Cambs - Care,Residential Care
Cambridgeshire County Council,18-Dec-19,51301238015,"-2,191.09",SOCIAL CARE SOLUTIONS LTD,CARE ESTABLISHMENT,LD - South Locality - Cost of Care,LD - South Cambs - Special Needs,Supported Living
Cambridgeshire County Council,18-Dec-19,51301238022,"-2,191.09",SOCIAL CARE SOLUTIONS LTD,CARE ESTABLISHMENT,LD - South Locality - Cost of Care,LD - South Cambs - Special Needs,Supported Living
Cambridgeshire County Council,02-Dec-19,51301265845,"-2,085.72",CHARTWELL HOUSE,CARE ESTABLISHMENT,SEN Placements,Placements - Education,Independent School Placements
Cambridgeshire County Council,17-Dec-19,51301288370,"-2,047.53",VOYAGE,CARE ESTABLISHMENT,LD - East Locality - Cost of Care,LD - East Cambs - Care,Residential Care
Cambridgeshire County Council,17-Dec-19,51301288370,"-2,047.53",VOYAGE,CARE ESTABLISHMENT,LD - East Locality - Cost of Care,LD - East Cambs - Care,Residential Care
Cambridgeshire County Council,17-Dec-19,51301288370,"-2,047.53",VOYAGE,CARE ESTABLISHMENT,LD - East Locality - Cost of Care,LD - East Cambs - Care,Residential Care
Cambridgeshire County Council,17-Dec-19,51301288370,"-2,047.53",VOYAGE,CARE ESTABLISHMENT,LD - East Locality - Cost of Care,LD - East Cambs - Care,Residential Care
Cambridgeshire County Council,17-Dec-19,51301288370,"-2,047.53",VOYAGE,CARE ESTABLISHMENT,LD - East Locality - Cost of Care,LD - East Cambs - Care,Residential Care
Cambridgeshire County Council,17-Dec-19,51301288370,"-2,047.53",VOYAGE,CARE ESTABLISHMENT,LD - East Locality - Cost of Care,LD - East Cambs - Care,Residential Care
Cambridgeshire County Council,17-Dec-19,51301288370,"-2,047.53",VOYAGE,CARE ESTABLISHMENT,LD - East Locality - Cost of Care,LD - East Cambs - Care,Residential Care
Cambridgeshire County Council,17-Dec-19,51301288370,"-2,047.53",VOYAGE,CARE ESTABLISHMENT,LD - East Locality - Cost of Care,LD - East Cambs - Care,Residential Care
Cambridgeshire County Council,17-Dec-19,51301288370,"-2,047.53",VOYAGE,CARE ESTABLISHMENT,LD - East Locality - Cost of Care,LD - East Cambs - Care,Residential Care
Cambridgeshire County Council,18-Dec-19,51301290567,"-2,045.41",VOYAGE (LICHFIELD),CARE ESTABLISHMENT,LD - Hunts Locality - Cost of Care,LD - Huntingdonshire - Care,Supported Living
Cambridgeshire County Council,05-Dec-19,51301277835,"-2,040.05",FLORIDA AVENUE (VOYAGE),CARE ESTABLISHMENT,LD - Hunts Locality - Cost of Care,LD - Huntingdonshire - Care,Supported Living
Cambridgeshire County Council,05-Dec-19,51301277582,"-2,030.78",RENTON COURT (VOYAGE),CARE ESTABLISHMENT,LD - Hunts Locality - Cost of Care,LD - Huntingdonshire - Care,Supported Living
Cambridgeshire County Council,13-Dec-19,51301285393,"-2,021.37",VOYAGE,CARE ESTABLISHMENT,LD - Hunts Locality - Cost of Care,LD - Huntingdonshire - Care,Supported Living
Cambridgeshire County Council,17-Dec-19,51301287753,"-1,996.94",CONQUEST CARE HOMES PETERBOROUGH,CARE ESTABLISHMENT,LD - Hunts Locality - Cost of Care,LD - Huntingdonshire - Special Needs,Residential Care
Cambridgeshire County Council,17-Dec-19,51301287753,"-1,996.94",CONQUEST CARE HOMES PETERBOROUGH,CARE ESTABLISHMENT,LD - Hunts Locality - Cost of Care,LD - Huntingdonshire - Special Needs,Residential Care
Cambridgeshire County Council,17-Dec-19,51301287753,"-1,996.94",CONQUEST CARE HOMES PETERBOROUGH,CARE ESTABLISHMENT,LD - Hunts Locality - Cost of Care,LD - Huntingdonshire - Special Needs,Residential Care
Cambridgeshire County Council,17-Dec-19,51301287753,"-1,996.94",CONQUEST CARE HOMES PETERBOROUGH,CARE ESTABLISHMENT,LD - Hunts Locality - Cost of Care,LD - Huntingdonshire - Special Needs,Residential Care
Cambridgeshire County Council,17-Dec-19,51301287753,"-1,996.94",CONQUEST CARE HOMES PETERBOROUGH,CARE ESTABLISHMENT,LD - Hunts Locality - Cost of Care,LD - Huntingdonshire - Special Needs,Residential Care
Cambridgeshire County Council,17-Dec-19,51301287753,"-1,996.94",CONQUEST CARE HOMES PETERBOROUGH,CARE ESTABLISHMENT,LD - Hunts Locality - Cost of Care,LD - Huntingdonshire - Special Needs,Residential Care
Cambridgeshire County Council,17-Dec-19,51301287753,"-1,996.94",CONQUEST CARE HOMES PETERBOROUGH,CARE ESTABLISHMENT,LD - Hunts Locality - Cost of Care,LD - Huntingdonshire - Special Needs,Residential Care
Cambridgeshire County Council,17-Dec-19,51301287753,"-1,996.94",CONQUEST CARE HOMES PETERBOROUGH,CARE ESTABLISHMENT,LD - Hunts Locality - Cost of Care,LD - Huntingdonshire - Special Needs,Residential Care
Cambridgeshire County Council,17-Dec-19,51301287753,"-1,996.94",CONQUEST CARE HOMES PETERBOROUGH,CARE ESTABLISHMENT,LD - Hunts Locality - Cost of Care,LD - Huntingdonshire - Special Needs,Residential Care
Cambridgeshire County Council,17-Dec-19,51301287753,"-1,996.94",CONQUEST CARE HOMES PETERBOROUGH,CARE ESTABLISHMENT,LD - Hunts Locality - Cost of Care,LD - Huntingdonshire - Special Needs,Residential Care
Cambridgeshire County Council,17-Dec-19,51301287753,"-1,996.94",CONQUEST CARE HOMES PETERBOROUGH,CARE ESTABLISHMENT,LD - Hunts Locality - Cost of Care,LD - Huntingdonshire - Special Needs,Residential Care
Cambridgeshire County Council,17-Dec-19,51301287753,"-1,996.94",CONQUEST CARE HOMES PETERBOROUGH,CARE ESTABLISHMENT,LD - Hunts Locality - Cost of Care,LD - Huntingdonshire - Special Needs,Residential Care
Cambridgeshire County Council,17-Dec-19,51301287753,"-1,996.94",CONQUEST CARE HOMES PETERBOROUGH,CARE ESTABLISHMENT,LD - Hunts Locality - Cost of Care,LD - Huntingdonshire - Special Needs,Residential Care
Cambridgeshire County Council,17-Dec-19,51301287753,"-1,996.94",CONQUEST CARE HOMES PETERBOROUGH,CARE ESTABLISHMENT,LD - Hunts Locality - Cost of Care,LD - Huntingdonshire - Special Needs,Residential Care
Cambridgeshire County Council,17-Dec-19,51301287753,"-1,996.94",CONQUEST CARE HOMES PETERBOROUGH,CARE ESTABLISHMENT,LD - Hunts Locality - Cost of Care,LD - Huntingdonshire - Special Needs,Residential Care
Cambridgeshire County Council,17-Dec-19,51301287753,"-1,996.94",CONQUEST CARE HOMES PETERBOROUGH,CARE ESTABLISHMENT,LD - Hunts Locality - Cost of Care,LD - Huntingdonshire - Special Needs,Residential Care
Cambridgeshire County Council,17-Dec-19,51301287753,"-1,996.94",CONQUEST CARE HOMES PETERBOROUGH,CARE ESTABLISHMENT,LD - Hunts Locality - Cost of Care,LD - Huntingdonshire - Special Needs,Residential Care
Cambridgeshire County Council,17-Dec-19,51301287753,"-1,996.94",CONQUEST CARE HOMES PETERBOROUGH,CARE ESTABLISHMENT,LD - Hunts Locality - Cost of Care,LD - Huntingdonshire - Special Needs,Residential Care
Cambridgeshire County Council,17-Dec-19,51301287753,"-1,996.94",CONQUEST CARE HOMES PETERBOROUGH,CARE ESTABLISHMENT,LD - Hunts Locality - Cost of Care,LD - Huntingdonshire - Special Needs,Residential Care
Cambridgeshire County Council,17-Dec-19,51301287753,"-1,996.94",CONQUEST CARE HOMES PETERBOROUGH,CARE ESTABLISHMENT,LD - Hunts Locality - Cost of Care,LD - Huntingdonshire - Special Needs,Residential Care
Cambridgeshire County Council,17-Dec-19,51301287753,"-1,996.94",CONQUEST CARE HOMES PETERBOROUGH,CARE ESTABLISHMENT,LD - Hunts Locality - Cost of Care,LD - Huntingdonshire - Special Needs,Residential Care
Cambridgeshire County Council,17-Dec-19,51301287753,"-1,996.94",CONQUEST CARE HOMES PETERBOROUGH,CARE ESTABLISHMENT,LD - Hunts Locality - Cost of Care,LD - Huntingdonshire - Special Needs,Residential Care
Cambridgeshire County Council,17-Dec-19,51301287753,"-1,996.94",CONQUEST CARE HOMES PETERBOROUGH,CARE ESTABLISHMENT,LD - Hunts Locality - Cost of Care,LD - Huntingdonshire - Special Needs,Residential Care
Cambridgeshire County Council,17-Dec-19,51301287753,"-1,996.94",CONQUEST CARE HOMES PETERBOROUGH,CARE ESTABLISHMENT,LD - Hunts Locality - Cost of Care,LD - Huntingdonshire - Special Needs,Residential Care
Cambridgeshire County Council,17-Dec-19,51301287753,"-1,996.94",CONQUEST CARE HOMES PETERBOROUGH,CARE ESTABLISHMENT,LD - Hunts Locality - Cost of Care,LD - Huntingdonshire - Special Needs,Residential Care
Cambridgeshire County Council,17-Dec-19,51301287753,"-1,996.94",CONQUEST CARE HOMES PETERBOROUGH,CARE ESTABLISHMENT,LD - Hunts Locality - Cost of Care,LD - Huntingdonshire - Special Needs,Residential Care
Cambridgeshire County Council,17-Dec-19,51301287753,"-1,996.94",CONQUEST CARE HOMES PETERBOROUGH,CARE ESTABLISHMENT,LD - Hunts Locality - Cost of Care,LD - Huntingdonshire - Special Needs,Residential Care
Cambridgeshire County Council,17-Dec-19,51301287753,"-1,996.94",CONQUEST CARE HOMES PETERBOROUGH,CARE ESTABLISHMENT,LD - Hunts Locality - Cost of Care,LD - Huntingdonshire - Special Needs,Residential Care
Cambridgeshire County Council,17-Dec-19,51301287753,"-1,996.94",CONQUEST CARE HOMES PETERBOROUGH,CARE ESTABLISHMENT,LD - Hunts Locality - Cost of Care,LD - Huntingdonshire - Special Needs,Residential Care
Cambridgeshire County Council,17-Dec-19,51301287753,"-1,996.94",CONQUEST CARE HOMES PETERBOROUGH,CARE ESTABLISHMENT,LD - Hunts Locality - Cost of Care,LD - Huntingdonshire - Special Needs,Residential Care
Cambridgeshire County Council,13-Dec-19,51301285019,"-1,980.58",FLORIDA AVENUE (VOYAGE),CARE ESTABLISHMENT,LD - Hunts Locality - Cost of Care,LD - Huntingdonshire - Care,Supported Living
Cambridgeshire County Council,05-Dec-19,51301276499,"-1,917.86",THE CALDECOTT FOUNDATION,CHARITY,LAC Placements,Placements - residential homes,Agency Placements - Out of  County
Cambridgeshire County Council,05-Dec-19,51301277863,"-1,914.21",COTTENHAM COURT NURSING HOME,CARE ESTABLISHMENT,OP - City & South Blocks,City and South - Long term blocks,Nursing Care
Cambridgeshire County Council,05-Dec-19,51301277863,"-1,914.21",COTTENHAM COURT NURSING HOME,CARE ESTABLISHMENT,OP - City & South Blocks,City and South - Long term blocks,Nursing Care
Cambridgeshire County Council,05-Dec-19,51301277863,"-1,914.21",COTTENHAM COURT NURSING HOME,CARE ESTABLISHMENT,OP - City & South Blocks,City and South - Long term blocks,Nursing Care
Cambridgeshire County Council,05-Dec-19,51301277863,"-1,914.21",COTTENHAM COURT NURSING HOME,CARE ESTABLISHMENT,OP - City & South Blocks,City and South - Long term blocks,Nursing Care
Cambridgeshire County Council,05-Dec-19,51301277863,"-1,914.21",COTTENHAM COURT NURSING HOME,CARE ESTABLISHMENT,OP - City & South Blocks,City and South - Long term blocks,Nursing Care
Cambridgeshire County Council,05-Dec-19,51301277863,"-1,914.21",COTTENHAM COURT NURSING HOME,CARE ESTABLISHMENT,OP - City & South Blocks,City and South - Long term blocks,Nursing Care
Cambridgeshire County Council,05-Dec-19,51301277863,"-1,914.21",COTTENHAM COURT NURSING HOME,CARE ESTABLISHMENT,OP - City & South Blocks,City and South - Long term blocks,Nursing Care
Cambridgeshire County Council,05-Dec-19,51301277863,"-1,914.21",COTTENHAM COURT NURSING HOME,CARE ESTABLISHMENT,OP - City & South Blocks,City and South - Long term blocks,Nursing Care
Cambridgeshire County Council,05-Dec-19,51301277863,"-1,914.21",COTTENHAM COURT NURSING HOME,CARE ESTABLISHMENT,OP - City & South Blocks,City and South - Long term blocks,Nursing Care
Cambridgeshire County Council,05-Dec-19,51301277863,"-1,914.21",COTTENHAM COURT NURSING HOME,CARE ESTABLISHMENT,OP - City & South Blocks,City and South - Long term blocks,Nursing Care
Cambridgeshire County Council,05-Dec-19,51301277863,"-1,914.21",COTTENHAM COURT NURSING HOME,CARE ESTABLISHMENT,OP - City & South Blocks,City and South - Long term blocks,Nursing Care
Cambridgeshire County Council,05-Dec-19,51301277863,"-1,914.21",COTTENHAM COURT NURSING HOME,CARE ESTABLISHMENT,OP - City & South Blocks,City and South - Long term blocks,Nursing Care
Cambridgeshire County Council,05-Dec-19,51301277863,"-1,914.21",COTTENHAM COURT NURSING HOME,CARE ESTABLISHMENT,OP - City & South Blocks,City and South - Long term blocks,Nursing Care
Cambridgeshire County Council,05-Dec-19,51301277863,"-1,914.21",COTTENHAM COURT NURSING HOME,CARE ESTABLISHMENT,OP - City & South Blocks,City and South - Long term blocks,Nursing Care
Cambridgeshire County Council,05-Dec-19,51301278639,"-1,844.45",REDMOND HOUSE (VOYAGE),CARE ESTABLISHMENT,LD - South Locality - Cost of Care,LD - South Cambs - Care,Residential Care
Cambridgeshire County Council,05-Dec-19,51301278639,"-1,844.45",REDMOND HOUSE (VOYAGE),CARE ESTABLISHMENT,LD - South Locality - Cost of Care,LD - South Cambs - Care,Residential Care
Cambridgeshire County Council,05-Dec-19,51301278639,"-1,844.45",REDMOND HOUSE (VOYAGE),CARE ESTABLISHMENT,LD - South Locality - Cost of Care,LD - South Cambs - Care,Residential Care
Cambridgeshire County Council,05-Dec-19,51301278639,"-1,844.45",REDMOND HOUSE (VOYAGE),CARE ESTABLISHMENT,LD - South Locality - Cost of Care,LD - South Cambs - Care,Residential Care
Cambridgeshire County Council,05-Dec-19,51301278639,"-1,844.45",REDMOND HOUSE (VOYAGE),CARE ESTABLISHMENT,LD - South Locality - Cost of Care,LD - South Cambs - Care,Residential Care
Cambridgeshire County Council,05-Dec-19,51301278639,"-1,844.45",REDMOND HOUSE (VOYAGE),CARE ESTABLISHMENT,LD - South Locality - Cost of Care,LD - South Cambs - Care,Residential Care
Cambridgeshire County Council,05-Dec-19,51301278639,"-1,844.45",REDMOND HOUSE (VOYAGE),CARE ESTABLISHMENT,LD - South Locality - Cost of Care,LD - South Cambs - Care,Residential Care
Cambridgeshire County Council,05-Dec-19,51301278639,"-1,844.45",REDMOND HOUSE (VOYAGE),CARE ESTABLISHMENT,LD - South Locality - Cost of Care,LD - South Cambs - Care,Residential Care
Cambridgeshire County Council,05-Dec-19,51301278639,"-1,844.45",REDMOND HOUSE (VOYAGE),CARE ESTABLISHMENT,LD - South Locality - Cost of Care,LD - South Cambs - Care,Residential Care
Cambridgeshire County Council,05-Dec-19,51301278639,"-1,844.45",REDMOND HOUSE (VOYAGE),CARE ESTABLISHMENT,LD - South Locality - Cost of Care,LD - South Cambs - Care,Residential Care
Cambridgeshire County Council,05-Dec-19,51301278639,"-1,844.45",REDMOND HOUSE (VOYAGE),CARE ESTABLISHMENT,LD - South Locality - Cost of Care,LD - South Cambs - Care,Residential Care
Cambridgeshire County Council,05-Dec-19,51301278639,"-1,844.45",REDMOND HOUSE (VOYAGE),CARE ESTABLISHMENT,LD - South Locality - Cost of Care,LD - South Cambs - Care,Residential Care
Cambridgeshire County Council,05-Dec-19,51301278639,"-1,844.45",REDMOND HOUSE (VOYAGE),CARE ESTABLISHMENT,LD - South Locality - Cost of Care,LD - South Cambs - Care,Residential Care
Cambridgeshire County Council,13-Dec-19,51301235765,"-1,831.67",VOYAGE (LICHFIELD),CARE ESTABLISHMENT,LD - South Locality - Cost of Care,LD - South Cambs - Special Needs,Supported Living
Cambridgeshire County Council,13-Dec-19,51301235764,"-1,831.67",VOYAGE (LICHFIELD),CARE ESTABLISHMENT,LD - South Locality - Cost of Care,LD - South Cambs - Special Needs,Supported Living
Cambridgeshire County Council,13-Dec-19,51301283503,"-1,762.59",MENCAP (COWLEY ROAD),CARE ESTABLISHMENT,LD - Hunts Locality - Cost of Care,LD - Huntingdonshire - Care,Domiciliary Care
Cambridgeshire County Council,17-Dec-19,51301288390,"-1,705.54",VOYAGE,CARE ESTABLISHMENT,LD - East Locality - Cost of Care,LD - East Cambs - Care,Residential Care
Cambridgeshire County Council,13-Dec-19,51301285309,"-1,674.00",VOYAGE,CARE ESTABLISHMENT,LD - Hunts Locality - Cost of Care,LD - Huntingdonshire - Care,Supported Living
Cambridgeshire County Council,13-Dec-19,51301285309,"-1,674.00",VOYAGE,CARE ESTABLISHMENT,LD - Hunts Locality - Cost of Care,LD - Huntingdonshire - Care,Supported Living
Cambridgeshire County Council,13-Dec-19,51301285309,"-1,674.00",VOYAGE,CARE ESTABLISHMENT,LD - Hunts Locality - Cost of Care,LD - Huntingdonshire - Care,Supported Living
Cambridgeshire County Council,13-Dec-19,51301285309,"-1,674.00",VOYAGE,CARE ESTABLISHMENT,LD - Hunts Locality - Cost of Care,LD - Huntingdonshire - Care,Supported Living
Cambridgeshire County Council,13-Dec-19,51301285309,"-1,674.00",VOYAGE,CARE ESTABLISHMENT,LD - Hunts Locality - Cost of Care,LD - Huntingdonshire - Care,Supported Living
Cambridgeshire County Council,13-Dec-19,51301285309,"-1,674.00",VOYAGE,CARE ESTABLISHMENT,LD - Hunts Locality - Cost of Care,LD - Huntingdonshire - Care,Supported Living
Cambridgeshire County Council,13-Dec-19,51301285309,"-1,674.00",VOYAGE,CARE ESTABLISHMENT,LD - Hunts Locality - Cost of Care,LD - Huntingdonshire - Care,Supported Living
Cambridgeshire County Council,13-Dec-19,51301285309,"-1,674.00",VOYAGE,CARE ESTABLISHMENT,LD - Hunts Locality - Cost of Care,LD - Huntingdonshire - Care,Supported Living
Cambridgeshire County Council,13-Dec-19,51301285309,"-1,674.00",VOYAGE,CARE ESTABLISHMENT,LD - Hunts Locality - Cost of Care,LD - Huntingdonshire - Care,Supported Living
Cambridgeshire County Council,02-Dec-19,51301274901,"-1,672.58",VOYAGE,CARE ESTABLISHMENT,LD - City Locality - Cost of Care,LD - City - Special Needs,Residential Care
Cambridgeshire County Council,05-Dec-19,51301278640,"-1,672.58",VOYAGE,CARE ESTABLISHMENT,LD - City Locality - Cost of Care,LD - City - Special Needs,Residential Care
Cambridgeshire County Council,17-Dec-19,51301288595,"-1,661.08",VOYAGE,CARE ESTABLISHMENT,LD - East Locality - Cost of Care,LD - East Cambs - Care,Residential Care
Cambridgeshire County Council,17-Dec-19,51301288595,"-1,661.08",VOYAGE,CARE ESTABLISHMENT,LD - East Locality - Cost of Care,LD - East Cambs - Care,Residential Care
Cambridgeshire County Council,17-Dec-19,51301288595,"-1,661.08",VOYAGE,CARE ESTABLISHMENT,LD - East Locality - Cost of Care,LD - East Cambs - Care,Residential Care
Cambridgeshire County Council,17-Dec-19,51301288595,"-1,661.08",VOYAGE,CARE ESTABLISHMENT,LD - East Locality - Cost of Care,LD - East Cambs - Care,Residential Care
Cambridgeshire County Council,17-Dec-19,51301288595,"-1,661.08",VOYAGE,CARE ESTABLISHMENT,LD - East Locality - Cost of Care,LD - East Cambs - Care,Residential Care
Cambridgeshire County Council,17-Dec-19,51301288595,"-1,661.08",VOYAGE,CARE ESTABLISHMENT,LD - East Locality - Cost of Care,LD - East Cambs - Care,Residential Care
Cambridgeshire County Council,17-Dec-19,51301288595,"-1,661.08",VOYAGE,CARE ESTABLISHMENT,LD - East Locality - Cost of Care,LD - East Cambs - Care,Residential Care
Cambridgeshire County Council,17-Dec-19,51301288595,"-1,661.08",VOYAGE,CARE ESTABLISHMENT,LD - East Locality - Cost of Care,LD - East Cambs - Care,Residential Care
Cambridgeshire County Council,17-Dec-19,51301288595,"-1,661.08",VOYAGE,CARE ESTABLISHMENT,LD - East Locality - Cost of Care,LD - East Cambs - Care,Residential Care
Cambridgeshire County Council,13-Dec-19,51301285313,"-1,642.64",VOYAGE,CARE ESTABLISHMENT,LD - Hunts Locality - Cost of Care,LD - Huntingdonshire - Care,Supported Living
Cambridgeshire County Council,05-Dec-19,51301278289,"-1,623.49",Accomplish Group Support Limited,CARE ESTABLISHMENT,LD - Young Adults Team,LD - Young Adults - Care,Residential Care
Cambridgeshire County Council,13-Dec-19,51301285220,"-1,608.52",VOYAGE,CARE ESTABLISHMENT,LD - South Locality - Cost of Care,LD - South Cambs - Care,Domiciliary Care
Cambridgeshire County Council,13-Dec-19,51301285220,"-1,608.52",VOYAGE,CARE ESTABLISHMENT,LD - South Locality - Cost of Care,LD - South Cambs - Care,Domiciliary Care
Cambridgeshire County Council,13-Dec-19,51301285220,"-1,608.52",VOYAGE,CARE ESTABLISHMENT,LD - South Locality - Cost of Care,LD - South Cambs - Care,Domiciliary Care
Cambridgeshire County Council,13-Dec-19,51301285220,"-1,608.52",VOYAGE,CARE ESTABLISHMENT,LD - South Locality - Cost of Care,LD - South Cambs - Care,Domiciliary Care
Cambridgeshire County Council,13-Dec-19,51301285220,"-1,608.52",VOYAGE,CARE ESTABLISHMENT,LD - South Locality - Cost of Care,LD - South Cambs - Care,Domiciliary Care
Cambridgeshire County Council,13-Dec-19,51301285220,"-1,608.52",VOYAGE,CARE ESTABLISHMENT,LD - South Locality - Cost of Care,LD - South Cambs - Care,Domiciliary Care
Cambridgeshire County Council,13-Dec-19,51301285220,"-1,608.52",VOYAGE,CARE ESTABLISHMENT,LD - South Locality - Cost of Care,LD - South Cambs - Care,Domiciliary Care
Cambridgeshire County Council,13-Dec-19,51301285220,"-1,608.52",VOYAGE,CARE ESTABLISHMENT,LD - South Locality - Cost of Care,LD - South Cambs - Care,Domiciliary Care
Cambridgeshire County Council,13-Dec-19,51301285220,"-1,608.52",VOYAGE,CARE ESTABLISHMENT,LD - South Locality - Cost of Care,LD - South Cambs - Care,Domiciliary Care
Cambridgeshire County Council,13-Dec-19,51301235481,"-1,582.00",VOYAGE (LICHFIELD),CARE ESTABLISHMENT,LD - Fenland Locality - Cost of Care,LD - Fenland  - Special Needs,Supported Living
Cambridgeshire County Council,13-Dec-19,51301235482,"-1,582.00",VOYAGE (LICHFIELD),CARE ESTABLISHMENT,LD - Fenland Locality - Cost of Care,LD - Fenland  - Special Needs,Supported Living
Cambridgeshire County Council,13-Dec-19,51301285332,"-1,582.00",VOYAGE,CARE ESTABLISHMENT,LD - Young Adults Team,LD - Young Adults - Care,Supported Living
Cambridgeshire County Council,13-Dec-19,51301285332,"-1,582.00",VOYAGE,CARE ESTABLISHMENT,LD - Young Adults Team,LD - Young Adults - Care,Supported Living
Cambridgeshire County Council,13-Dec-19,51301285332,"-1,582.00",VOYAGE,CARE ESTABLISHMENT,LD - Young Adults Team,LD - Young Adults - Care,Supported Living
Cambridgeshire County Council,13-Dec-19,51301285332,"-1,582.00",VOYAGE,CARE ESTABLISHMENT,LD - Young Adults Team,LD - Young Adults - Care,Supported Living
Cambridgeshire County Council,13-Dec-19,51301285332,"-1,582.00",VOYAGE,CARE ESTABLISHMENT,LD - Young Adults Team,LD - Young Adults - Care,Supported Living
Cambridgeshire County Council,13-Dec-19,51301285332,"-1,582.00",VOYAGE,CARE ESTABLISHMENT,LD - Young Adults Team,LD - Young Adults - Care,Supported Living
Cambridgeshire County Council,13-Dec-19,51301285332,"-1,582.00",VOYAGE,CARE ESTABLISHMENT,LD - Young Adults Team,LD - Young Adults - Care,Supported Living
Cambridgeshire County Council,13-Dec-19,51301285332,"-1,582.00",VOYAGE,CARE ESTABLISHMENT,LD - Young Adults Team,LD - Young Adults - Care,Supported Living
Cambridgeshire County Council,13-Dec-19,51301285332,"-1,582.00",VOYAGE,CARE ESTABLISHMENT,LD - Young Adults Team,LD - Young Adults - Care,Supported Living
Cambridgeshire County Council,13-Dec-19,51301237265,"-1,564.67",VOYAGE (LICHFIELD),CARE ESTABLISHMENT,LD - Fenland Locality - Cost of Care,LD - Fenland  - Special Needs,Supported Living
Cambridgeshire County Council,13-Dec-19,51301241218,"-1,564.67",VOYAGE (LICHFIELD),CARE ESTABLISHMENT,LD - Fenland Locality - Cost of Care,LD - Fenland  - Special Needs,Supported Living
Cambridgeshire County Council,13-Dec-19,51301237264,"-1,564.67",VOYAGE (LICHFIELD),CARE ESTABLISHMENT,LD - Fenland Locality - Cost of Care,LD - Fenland  - Special Needs,Supported Living
Cambridgeshire County Council,13-Dec-19,51301234787,"-1,564.67",VOYAGE (LICHFIELD),CARE ESTABLISHMENT,LD - Fenland Locality - Cost of Care,LD - Fenland  - Special Needs,Supported Living
Cambridgeshire County Council,13-Dec-19,51301234788,"-1,564.67",VOYAGE (LICHFIELD),CARE ESTABLISHMENT,LD - Fenland Locality - Cost of Care,LD - Fenland  - Special Needs,Supported Living
Cambridgeshire County Council,13-Dec-19,51301241217,"-1,564.67",VOYAGE (LICHFIELD),CARE ESTABLISHMENT,LD - Fenland Locality - Cost of Care,LD - Fenland  - Special Needs,Supported Living
Cambridgeshire County Council,05-Dec-19,51301267971,"-1,544.32",MLL Telecom Limited,TRADE SUPPLIER,"Telephony, CPSN & MFD",CPSN,Computer hardware - purchase
Cambridgeshire County Council,13-Dec-19,51301238629,"-1,524.47",VOYAGE (LICHFIELD),CARE ESTABLISHMENT,LD - Fenland Locality - Cost of Care,LD - Fenland  - Special Needs,Supported Living
Cambridgeshire County Council,13-Dec-19,51301238630,"-1,524.47",VOYAGE (LICHFIELD),CARE ESTABLISHMENT,LD - Fenland Locality - Cost of Care,LD - Fenland  - Special Needs,Supported Living
Cambridgeshire County Council,05-Dec-19,51301278643,"-1,515.48",ALDERTON HOUSE,CARE ESTABLISHMENT,LD - Young Adults Team,LD - Young Adults - Care,Residential Care
Cambridgeshire County Council,05-Dec-19,51301278643,"-1,515.48",ALDERTON HOUSE,CARE ESTABLISHMENT,LD - Young Adults Team,LD - Young Adults - Care,Residential Care
Cambridgeshire County Council,05-Dec-19,51301278643,"-1,515.48",ALDERTON HOUSE,CARE ESTABLISHMENT,LD - Young Adults Team,LD - Young Adults - Care,Residential Care
Cambridgeshire County Council,05-Dec-19,51301278643,"-1,515.48",ALDERTON HOUSE,CARE ESTABLISHMENT,LD - Young Adults Team,LD - Young Adults - Care,Residential Care
Cambridgeshire County Council,05-Dec-19,51301278643,"-1,515.48",ALDERTON HOUSE,CARE ESTABLISHMENT,LD - Young Adults Team,LD - Young Adults - Care,Residential Care
Cambridgeshire County Council,05-Dec-19,51301278643,"-1,515.48",ALDERTON HOUSE,CARE ESTABLISHMENT,LD - Young Adults Team,LD - Young Adults - Care,Residential Care
Cambridgeshire County Council,05-Dec-19,51301278643,"-1,515.48",ALDERTON HOUSE,CARE ESTABLISHMENT,LD - Young Adults Team,LD - Young Adults - Care,Residential Care
Cambridgeshire County Council,05-Dec-19,51301278643,"-1,515.48",ALDERTON HOUSE,CARE ESTABLISHMENT,LD - Young Adults Team,LD - Young Adults - Care,Residential Care
Cambridgeshire County Council,05-Dec-19,51301278643,"-1,515.48",ALDERTON HOUSE,CARE ESTABLISHMENT,LD - Young Adults Team,LD - Young Adults - Care,Residential Care
Cambridgeshire County Council,18-Dec-19,51301290610,"-1,511.63",HUNTINGDON MENCAP LTD,CARE ESTABLISHMENT,LD - Hunts Locality - Cost of Care,LD - Huntingdonshire - Care,Domiciliary Care
Cambridgeshire County Council,18-Dec-19,51301290610,"-1,511.63",HUNTINGDON MENCAP LTD,CARE ESTABLISHMENT,LD - Hunts Locality - Cost of Care,LD - Huntingdonshire - Care,Domiciliary Care
Cambridgeshire County Council,18-Dec-19,51301290610,"-1,511.63",HUNTINGDON MENCAP LTD,CARE ESTABLISHMENT,LD - Hunts Locality - Cost of Care,LD - Huntingdonshire - Care,Domiciliary Care
Cambridgeshire County Council,18-Dec-19,51301290610,"-1,511.63",HUNTINGDON MENCAP LTD,CARE ESTABLISHMENT,LD - Hunts Locality - Cost of Care,LD - Huntingdonshire - Care,Domiciliary Care
Cambridgeshire County Council,18-Dec-19,51301290610,"-1,511.63",HUNTINGDON MENCAP LTD,CARE ESTABLISHMENT,LD - Hunts Locality - Cost of Care,LD - Huntingdonshire - Care,Domiciliary Care
Cambridgeshire County Council,18-Dec-19,51301290610,"-1,511.63",HUNTINGDON MENCAP LTD,CARE ESTABLISHMENT,LD - Hunts Locality - Cost of Care,LD - Huntingdonshire - Care,Domiciliary Care
Cambridgeshire County Council,18-Dec-19,51301290610,"-1,511.63",HUNTINGDON MENCAP LTD,CARE ESTABLISHMENT,LD - Hunts Locality - Cost of Care,LD - Huntingdonshire - Care,Domiciliary Care
Cambridgeshire County Council,18-Dec-19,51301290610,"-1,511.63",HUNTINGDON MENCAP LTD,CARE ESTABLISHMENT,LD - Hunts Locality - Cost of Care,LD - Huntingdonshire - Care,Domiciliary Care
Cambridgeshire County Council,18-Dec-19,51301290610,"-1,511.63",HUNTINGDON MENCAP LTD,CARE ESTABLISHMENT,LD - Hunts Locality - Cost of Care,LD - Huntingdonshire - Care,Domiciliary Care
Cambridgeshire County Council,18-Dec-19,51301290610,"-1,511.63",HUNTINGDON MENCAP LTD,CARE ESTABLISHMENT,LD - Hunts Locality - Cost of Care,LD - Huntingdonshire - Care,Domiciliary Care
Cambridgeshire County Council,18-Dec-19,51301290610,"-1,511.63",HUNTINGDON MENCAP LTD,CARE ESTABLISHMENT,LD - Hunts Locality - Cost of Care,LD - Huntingdonshire - Care,Domiciliary Care
Cambridgeshire County Council,18-Dec-19,51301290610,"-1,511.63",HUNTINGDON MENCAP LTD,CARE ESTABLISHMENT,LD - Hunts Locality - Cost of Care,LD - Huntingdonshire - Care,Domiciliary Care
Cambridgeshire County Council,18-Dec-19,51301290610,"-1,511.63",HUNTINGDON MENCAP LTD,CARE ESTABLISHMENT,LD - Hunts Locality - Cost of Care,LD - Huntingdonshire - Care,Domiciliary Care
Cambridgeshire County Council,18-Dec-19,51301290610,"-1,511.63",HUNTINGDON MENCAP LTD,CARE ESTABLISHMENT,LD - Hunts Locality - Cost of Care,LD - Huntingdonshire - Care,Domiciliary Care
Cambridgeshire County Council,18-Dec-19,51301290610,"-1,511.63",HUNTINGDON MENCAP LTD,CARE ESTABLISHMENT,LD - Hunts Locality - Cost of Care,LD - Huntingdonshire - Care,Domiciliary Care
Cambridgeshire County Council,18-Dec-19,51301290610,"-1,511.63",HUNTINGDON MENCAP LTD,CARE ESTABLISHMENT,LD - Hunts Locality - Cost of Care,LD - Huntingdonshire - Care,Domiciliary Care
Cambridgeshire County Council,18-Dec-19,51301290610,"-1,511.63",HUNTINGDON MENCAP LTD,CARE ESTABLISHMENT,LD - Hunts Locality - Cost of Care,LD - Huntingdonshire - Care,Domiciliary Care
Cambridgeshire County Council,18-Dec-19,51301290610,"-1,511.63",HUNTINGDON MENCAP LTD,CARE ESTABLISHMENT,LD - Hunts Locality - Cost of Care,LD - Huntingdonshire - Care,Domiciliary Care
Cambridgeshire County Council,18-Dec-19,51301237977,"-1,507.38",SOCIAL CARE SOLUTIONS LTD,CARE ESTABLISHMENT,Physical Disablity - Cost of Care,Countywide PD Service - Care,Supported Living
Cambridgeshire County Council,18-Dec-19,51301237978,"-1,507.38",SOCIAL CARE SOLUTIONS LTD,CARE ESTABLISHMENT,Physical Disablity - Cost of Care,Countywide PD Service - Care,Supported Living
Cambridgeshire County Council,18-Dec-19,51301238042,"-1,498.09",SOCIAL CARE SOLUTIONS LTD,CARE ESTABLISHMENT,OP - Hunts Locality - Cost of Care,Hunts OP Team - Care,Supported Living
Cambridgeshire County Council,18-Dec-19,51301238043,"-1,498.09",SOCIAL CARE SOLUTIONS LTD,CARE ESTABLISHMENT,OP - Hunts Locality - Cost of Care,Hunts OP Team - Care,Supported Living
Cambridgeshire County Council,18-Dec-19,51301236048,"-1,498.09",SOCIAL CARE SOLUTIONS LTD,CARE ESTABLISHMENT,LD - Fenland Locality - Cost of Care,LD - Fenland  - Special Needs,Supported Living
Cambridgeshire County Council,18-Dec-19,51301236049,"-1,498.09",SOCIAL CARE SOLUTIONS LTD,CARE ESTABLISHMENT,LD - Fenland Locality - Cost of Care,LD - Fenland  - Special Needs,Supported Living
Cambridgeshire County Council,18-Dec-19,51301239697,"-1,498.09",SOCIAL CARE SOLUTIONS LTD,CARE ESTABLISHMENT,LD - Hunts Locality - Cost of Care,LD - Huntingdonshire - Special Needs,Supported Living
Cambridgeshire County Council,18-Dec-19,51301239696,"-1,498.09",SOCIAL CARE SOLUTIONS LTD,CARE ESTABLISHMENT,LD - Hunts Locality - Cost of Care,LD - Huntingdonshire - Special Needs,Supported Living
Cambridgeshire County Council,05-Dec-19,51301277430,"-1,485.91",RENTON COURT (VOYAGE),CARE ESTABLISHMENT,LD - Hunts Locality - Cost of Care,LD - Huntingdonshire - Care,Supported Living
Cambridgeshire County Council,05-Dec-19,51301277430,"-1,485.91",RENTON COURT (VOYAGE),CARE ESTABLISHMENT,LD - Hunts Locality - Cost of Care,LD - Huntingdonshire - Care,Supported Living
Cambridgeshire County Council,05-Dec-19,51301277430,"-1,485.91",RENTON COURT (VOYAGE),CARE ESTABLISHMENT,LD - Hunts Locality - Cost of Care,LD - Huntingdonshire - Care,Supported Living
Cambridgeshire County Council,05-Dec-19,51301277430,"-1,485.91",RENTON COURT (VOYAGE),CARE ESTABLISHMENT,LD - Hunts Locality - Cost of Care,LD - Huntingdonshire - Care,Supported Living
Cambridgeshire County Council,05-Dec-19,51301277430,"-1,485.91",RENTON COURT (VOYAGE),CARE ESTABLISHMENT,LD - Hunts Locality - Cost of Care,LD - Huntingdonshire - Care,Supported Living
Cambridgeshire County Council,17-Dec-19,51301288370,"-1,462.52",VOYAGE,CARE ESTABLISHMENT,LD - East Locality - Cost of Care,LD - East Cambs - Care,Residential Care
Cambridgeshire County Council,18-Dec-19,51301241215,"-1,411.33",SOCIAL CARE SOLUTIONS LTD,CARE ESTABLISHMENT,LD - Fenland Locality - Cost of Care,LD - Fenland  - Special Needs,Supported Living
Cambridgeshire County Council,18-Dec-19,51301238436,"-1,411.33",SOCIAL CARE SOLUTIONS LTD,CARE ESTABLISHMENT,LD - Fenland Locality - Cost of Care,LD - Fenland  - Special Needs,Supported Living
Cambridgeshire County Council,18-Dec-19,51301238437,"-1,411.33",SOCIAL CARE SOLUTIONS LTD,CARE ESTABLISHMENT,LD - Fenland Locality - Cost of Care,LD - Fenland  - Special Needs,Supported Living
Cambridgeshire County Council,18-Dec-19,51301241214,"-1,411.33",SOCIAL CARE SOLUTIONS LTD,CARE ESTABLISHMENT,LD - Fenland Locality - Cost of Care,LD - Fenland  - Special Needs,Supported Living
Cambridgeshire County Council,13-Dec-19,51301285315,"-1,374.06",VOYAGE,CARE ESTABLISHMENT,LD - South Locality - Cost of Care,LD - South Cambs - Care,Supported Living
Cambridgeshire County Council,13-Dec-19,51301285315,"-1,374.06",VOYAGE,CARE ESTABLISHMENT,LD - South Locality - Cost of Care,LD - South Cambs - Care,Supported Living
Cambridgeshire County Council,13-Dec-19,51301285315,"-1,374.06",VOYAGE,CARE ESTABLISHMENT,LD - South Locality - Cost of Care,LD - South Cambs - Care,Supported Living
Cambridgeshire County Council,13-Dec-19,51301285315,"-1,374.06",VOYAGE,CARE ESTABLISHMENT,LD - South Locality - Cost of Care,LD - South Cambs - Care,Supported Living
Cambridgeshire County Council,13-Dec-19,51301285315,"-1,374.06",VOYAGE,CARE ESTABLISHMENT,LD - South Locality - Cost of Care,LD - South Cambs - Care,Supported Living
Cambridgeshire County Council,13-Dec-19,51301285315,"-1,374.06",VOYAGE,CARE ESTABLISHMENT,LD - South Locality - Cost of Care,LD - South Cambs - Care,Supported Living
Cambridgeshire County Council,13-Dec-19,51301285315,"-1,374.06",VOYAGE,CARE ESTABLISHMENT,LD - South Locality - Cost of Care,LD - South Cambs - Care,Supported Living
Cambridgeshire County Council,13-Dec-19,51301285315,"-1,374.06",VOYAGE,CARE ESTABLISHMENT,LD - South Locality - Cost of Care,LD - South Cambs - Care,Supported Living
Cambridgeshire County Council,13-Dec-19,51301285315,"-1,374.06",VOYAGE,CARE ESTABLISHMENT,LD - South Locality - Cost of Care,LD - South Cambs - Care,Supported Living
Cambridgeshire County Council,05-Dec-19,51301278022,"-1,368.43",VOYAGE,CARE ESTABLISHMENT,LD - South Locality - Cost of Care,LD - South Cambs - Care,Residential Care
Cambridgeshire County Council,05-Dec-19,51301278022,"-1,368.43",VOYAGE,CARE ESTABLISHMENT,LD - South Locality - Cost of Care,LD - South Cambs - Care,Residential Care
Cambridgeshire County Council,05-Dec-19,51301278022,"-1,368.43",VOYAGE,CARE ESTABLISHMENT,LD - South Locality - Cost of Care,LD - South Cambs - Care,Residential Care
Cambridgeshire County Council,05-Dec-19,51301278022,"-1,368.43",VOYAGE,CARE ESTABLISHMENT,LD - South Locality - Cost of Care,LD - South Cambs - Care,Residential Care
Cambridgeshire County Council,05-Dec-19,51301278022,"-1,368.43",VOYAGE,CARE ESTABLISHMENT,LD - South Locality - Cost of Care,LD - South Cambs - Care,Residential Care
Cambridgeshire County Council,05-Dec-19,51301278022,"-1,368.43",VOYAGE,CARE ESTABLISHMENT,LD - South Locality - Cost of Care,LD - South Cambs - Care,Residential Care
Cambridgeshire County Council,05-Dec-19,51301278022,"-1,368.43",VOYAGE,CARE ESTABLISHMENT,LD - South Locality - Cost of Care,LD - South Cambs - Care,Residential Care
Cambridgeshire County Council,05-Dec-19,51301278022,"-1,368.43",VOYAGE,CARE ESTABLISHMENT,LD - South Locality - Cost of Care,LD - South Cambs - Care,Residential Care
Cambridgeshire County Council,05-Dec-19,51301278022,"-1,368.43",VOYAGE,CARE ESTABLISHMENT,LD - South Locality - Cost of Care,LD - South Cambs - Care,Residential Care
Cambridgeshire County Council,05-Dec-19,51301278022,"-1,368.43",VOYAGE,CARE ESTABLISHMENT,LD - South Locality - Cost of Care,LD - South Cambs - Care,Residential Care
Cambridgeshire County Council,05-Dec-19,51301278022,"-1,368.43",VOYAGE,CARE ESTABLISHMENT,LD - South Locality - Cost of Care,LD - South Cambs - Care,Residential Care
Cambridgeshire County Council,05-Dec-19,51301278022,"-1,368.43",VOYAGE,CARE ESTABLISHMENT,LD - South Locality - Cost of Care,LD - South Cambs - Care,Residential Care
Cambridgeshire County Council,05-Dec-19,51301278022,"-1,368.43",VOYAGE,CARE ESTABLISHMENT,LD - South Locality - Cost of Care,LD - South Cambs - Care,Residential Care
Cambridgeshire County Council,05-Dec-19,51301278022,"-1,368.43",VOYAGE,CARE ESTABLISHMENT,LD - South Locality - Cost of Care,LD - South Cambs - Care,Residential Care
Cambridgeshire County Council,05-Dec-19,51301278022,"-1,368.43",VOYAGE,CARE ESTABLISHMENT,LD - South Locality - Cost of Care,LD - South Cambs - Care,Residential Care
Cambridgeshire County Council,05-Dec-19,51301278022,"-1,368.43",VOYAGE,CARE ESTABLISHMENT,LD - South Locality - Cost of Care,LD - South Cambs - Care,Residential Care
Cambridgeshire County Council,05-Dec-19,51301278022,"-1,368.43",VOYAGE,CARE ESTABLISHMENT,LD - South Locality - Cost of Care,LD - South Cambs - Care,Residential Care
Cambridgeshire County Council,13-Dec-19,51301283826,"-1,360.97",23 LIONS CROSS (VOYAGE),CARE ESTABLISHMENT,LD - Hunts Locality - Cost of Care,LD - Huntingdonshire - Special Needs,Supported Living
Cambridgeshire County Council,13-Dec-19,51301283826,"-1,360.97",23 LIONS CROSS (VOYAGE),CARE ESTABLISHMENT,LD - Hunts Locality - Cost of Care,LD - Huntingdonshire - Special Needs,Supported Living
Cambridgeshire County Council,13-Dec-19,51301283826,"-1,360.97",23 LIONS CROSS (VOYAGE),CARE ESTABLISHMENT,LD - Hunts Locality - Cost of Care,LD - Huntingdonshire - Special Needs,Supported Living
Cambridgeshire County Council,13-Dec-19,51301283826,"-1,360.97",23 LIONS CROSS (VOYAGE),CARE ESTABLISHMENT,LD - Hunts Locality - Cost of Care,LD - Huntingdonshire - Special Needs,Supported Living
Cambridgeshire County Council,13-Dec-19,51301283826,"-1,360.97",23 LIONS CROSS (VOYAGE),CARE ESTABLISHMENT,LD - Hunts Locality - Cost of Care,LD - Huntingdonshire - Special Needs,Supported Living
Cambridgeshire County Council,13-Dec-19,51301283826,"-1,360.97",23 LIONS CROSS (VOYAGE),CARE ESTABLISHMENT,LD - Hunts Locality - Cost of Care,LD - Huntingdonshire - Special Needs,Supported Living
Cambridgeshire County Council,13-Dec-19,51301283826,"-1,360.97",23 LIONS CROSS (VOYAGE),CARE ESTABLISHMENT,LD - Hunts Locality - Cost of Care,LD - Huntingdonshire - Special Needs,Supported Living
Cambridgeshire County Council,13-Dec-19,51301283826,"-1,360.97",23 LIONS CROSS (VOYAGE),CARE ESTABLISHMENT,LD - Hunts Locality - Cost of Care,LD - Huntingdonshire - Special Needs,Supported Living
Cambridgeshire County Council,13-Dec-19,51301283826,"-1,360.97",23 LIONS CROSS (VOYAGE),CARE ESTABLISHMENT,LD - Hunts Locality - Cost of Care,LD - Huntingdonshire - Special Needs,Supported Living
Cambridgeshire County Council,13-Dec-19,51301285307,"-1,355.44",VOYAGE,CARE ESTABLISHMENT,LD - South Locality - Cost of Care,LD - South Cambs - Care,Supported Living
Cambridgeshire County Council,13-Dec-19,51301285307,"-1,355.44",VOYAGE,CARE ESTABLISHMENT,LD - South Locality - Cost of Care,LD - South Cambs - Care,Supported Living
Cambridgeshire County Council,13-Dec-19,51301285307,"-1,355.44",VOYAGE,CARE ESTABLISHMENT,LD - South Locality - Cost of Care,LD - South Cambs - Care,Supported Living
Cambridgeshire County Council,13-Dec-19,51301285307,"-1,355.44",VOYAGE,CARE ESTABLISHMENT,LD - South Locality - Cost of Care,LD - South Cambs - Care,Supported Living
Cambridgeshire County Council,13-Dec-19,51301285307,"-1,355.44",VOYAGE,CARE ESTABLISHMENT,LD - South Locality - Cost of Care,LD - South Cambs - Care,Supported Living
Cambridgeshire County Council,13-Dec-19,51301285307,"-1,355.44",VOYAGE,CARE ESTABLISHMENT,LD - South Locality - Cost of Care,LD - South Cambs - Care,Supported Living
Cambridgeshire County Council,13-Dec-19,51301285307,"-1,355.44",VOYAGE,CARE ESTABLISHMENT,LD - South Locality - Cost of Care,LD - South Cambs - Care,Supported Living
Cambridgeshire County Council,13-Dec-19,51301285307,"-1,355.44",VOYAGE,CARE ESTABLISHMENT,LD - South Locality - Cost of Care,LD - South Cambs - Care,Supported Living
Cambridgeshire County Council,13-Dec-19,51301285307,"-1,355.44",VOYAGE,CARE ESTABLISHMENT,LD - South Locality - Cost of Care,LD - South Cambs - Care,Supported Living
Cambridgeshire County Council,17-Dec-19,51301271732,"-1,328.44",CARE MANAGEMENT GROUP (64-66 CARLTON),CARE ESTABLISHMENT,LD - East Locality - Cost of Care,LD - East Cambs - Special Needs,Residential Care
Cambridgeshire County Council,17-Dec-19,51301271763,"-1,328.44",CARE MANAGEMENT GROUP (64-66 CARLTON),CARE ESTABLISHMENT,LD - East Locality - Cost of Care,LD - East Cambs - Special Needs,Residential Care
Cambridgeshire County Council,17-Dec-19,51301271680,"-1,328.44",CARE MANAGEMENT GROUP (64-66 CARLTON),CARE ESTABLISHMENT,LD - East Locality - Cost of Care,LD - East Cambs - Special Needs,Residential Care
Cambridgeshire County Council,17-Dec-19,51301271696,"-1,328.44",CARE MANAGEMENT GROUP (64-66 CARLTON),CARE ESTABLISHMENT,LD - East Locality - Cost of Care,LD - East Cambs - Special Needs,Residential Care
Cambridgeshire County Council,17-Dec-19,51301271758,"-1,328.44",CARE MANAGEMENT GROUP (64-66 CARLTON),CARE ESTABLISHMENT,LD - East Locality - Cost of Care,LD - East Cambs - Special Needs,Residential Care
Cambridgeshire County Council,17-Dec-19,51301271685,"-1,328.44",CARE MANAGEMENT GROUP (64-66 CARLTON),CARE ESTABLISHMENT,LD - East Locality - Cost of Care,LD - East Cambs - Special Needs,Residential Care
Cambridgeshire County Council,17-Dec-19,51301271797,"-1,328.44",CARE MANAGEMENT GROUP (64-66 CARLTON),CARE ESTABLISHMENT,LD - East Locality - Cost of Care,LD - East Cambs - Special Needs,Residential Care
Cambridgeshire County Council,17-Dec-19,51301271661,"-1,328.44",CARE MANAGEMENT GROUP (64-66 CARLTON),CARE ESTABLISHMENT,LD - East Locality - Cost of Care,LD - East Cambs - Special Needs,Residential Care
Cambridgeshire County Council,17-Dec-19,51301271774,"-1,328.44",CARE MANAGEMENT GROUP (64-66 CARLTON),CARE ESTABLISHMENT,LD - East Locality - Cost of Care,LD - East Cambs - Special Needs,Residential Care
Cambridgeshire County Council,17-Dec-19,51301271801,"-1,328.44",CARE MANAGEMENT GROUP (64-66 CARLTON),CARE ESTABLISHMENT,LD - East Locality - Cost of Care,LD - East Cambs - Special Needs,Residential Care
Cambridgeshire County Council,17-Dec-19,51301271694,"-1,328.44",CARE MANAGEMENT GROUP (64-66 CARLTON),CARE ESTABLISHMENT,LD - East Locality - Cost of Care,LD - East Cambs - Special Needs,Residential Care
Cambridgeshire County Council,17-Dec-19,51301271706,"-1,328.44",CARE MANAGEMENT GROUP (64-66 CARLTON),CARE ESTABLISHMENT,LD - East Locality - Cost of Care,LD - East Cambs - Special Needs,Residential Care
Cambridgeshire County Council,17-Dec-19,51301271793,"-1,328.44",CARE MANAGEMENT GROUP (64-66 CARLTON),CARE ESTABLISHMENT,LD - East Locality - Cost of Care,LD - East Cambs - Special Needs,Residential Care
Cambridgeshire County Council,17-Dec-19,51301271785,"-1,328.44",CARE MANAGEMENT GROUP (64-66 CARLTON),CARE ESTABLISHMENT,LD - East Locality - Cost of Care,LD - East Cambs - Special Needs,Residential Care
Cambridgeshire County Council,17-Dec-19,51301271805,"-1,328.44",CARE MANAGEMENT GROUP (64-66 CARLTON),CARE ESTABLISHMENT,LD - East Locality - Cost of Care,LD - East Cambs - Special Needs,Residential Care
Cambridgeshire County Council,17-Dec-19,51301271799,"-1,328.44",CARE MANAGEMENT GROUP (64-66 CARLTON),CARE ESTABLISHMENT,LD - East Locality - Cost of Care,LD - East Cambs - Special Needs,Residential Care
Cambridgeshire County Council,17-Dec-19,51301271701,"-1,328.44",CARE MANAGEMENT GROUP (64-66 CARLTON),CARE ESTABLISHMENT,LD - East Locality - Cost of Care,LD - East Cambs - Special Needs,Residential Care
Cambridgeshire County Council,17-Dec-19,51301271742,"-1,328.44",CARE MANAGEMENT GROUP (64-66 CARLTON),CARE ESTABLISHMENT,LD - East Locality - Cost of Care,LD - East Cambs - Special Needs,Residential Care
Cambridgeshire County Council,17-Dec-19,51301271765,"-1,328.44",CARE MANAGEMENT GROUP (64-66 CARLTON),CARE ESTABLISHMENT,LD - East Locality - Cost of Care,LD - East Cambs - Special Needs,Residential Care
Cambridgeshire County Council,17-Dec-19,51301271717,"-1,328.44",CARE MANAGEMENT GROUP (64-66 CARLTON),CARE ESTABLISHMENT,LD - East Locality - Cost of Care,LD - East Cambs - Special Needs,Residential Care
Cambridgeshire County Council,17-Dec-19,51301271699,"-1,328.44",CARE MANAGEMENT GROUP (64-66 CARLTON),CARE ESTABLISHMENT,LD - East Locality - Cost of Care,LD - East Cambs - Special Needs,Residential Care
Cambridgeshire County Council,17-Dec-19,51301271786,"-1,328.44",CARE MANAGEMENT GROUP (64-66 CARLTON),CARE ESTABLISHMENT,LD - East Locality - Cost of Care,LD - East Cambs - Special Needs,Residential Care
Cambridgeshire County Council,17-Dec-19,51301271667,"-1,328.44",CARE MANAGEMENT GROUP (64-66 CARLTON),CARE ESTABLISHMENT,LD - East Locality - Cost of Care,LD - East Cambs - Special Needs,Residential Care
Cambridgeshire County Council,17-Dec-19,51301271778,"-1,328.44",CARE MANAGEMENT GROUP (64-66 CARLTON),CARE ESTABLISHMENT,LD - East Locality - Cost of Care,LD - East Cambs - Special Needs,Residential Care
Cambridgeshire County Council,17-Dec-19,51301271809,"-1,328.44",CARE MANAGEMENT GROUP (64-66 CARLTON),CARE ESTABLISHMENT,LD - East Locality - Cost of Care,LD - East Cambs - Special Needs,Residential Care
Cambridgeshire County Council,17-Dec-19,51301271764,"-1,328.44",CARE MANAGEMENT GROUP (64-66 CARLTON),CARE ESTABLISHMENT,LD - East Locality - Cost of Care,LD - East Cambs - Special Needs,Residential Care
Cambridgeshire County Council,17-Dec-19,51301271677,"-1,328.44",CARE MANAGEMENT GROUP (64-66 CARLTON),CARE ESTABLISHMENT,LD - East Locality - Cost of Care,LD - East Cambs - Special Needs,Residential Care
Cambridgeshire County Council,17-Dec-19,51301271684,"-1,328.44",CARE MANAGEMENT GROUP (64-66 CARLTON),CARE ESTABLISHMENT,LD - East Locality - Cost of Care,LD - East Cambs - Special Needs,Residential Care
Cambridgeshire County Council,17-Dec-19,51301271693,"-1,328.44",CARE MANAGEMENT GROUP (64-66 CARLTON),CARE ESTABLISHMENT,LD - East Locality - Cost of Care,LD - East Cambs - Special Needs,Residential Care
Cambridgeshire County Council,17-Dec-19,51301271790,"-1,328.44",CARE MANAGEMENT GROUP (64-66 CARLTON),CARE ESTABLISHMENT,LD - East Locality - Cost of Care,LD - East Cambs - Special Needs,Residential Care
Cambridgeshire County Council,17-Dec-19,51301271769,"-1,328.44",CARE MANAGEMENT GROUP (64-66 CARLTON),CARE ESTABLISHMENT,LD - East Locality - Cost of Care,LD - East Cambs - Special Needs,Residential Care
Cambridgeshire County Council,17-Dec-19,51301271715,"-1,328.44",CARE MANAGEMENT GROUP (64-66 CARLTON),CARE ESTABLISHMENT,LD - East Locality - Cost of Care,LD - East Cambs - Special Needs,Residential Care
Cambridgeshire County Council,17-Dec-19,51301271716,"-1,328.44",CARE MANAGEMENT GROUP (64-66 CARLTON),CARE ESTABLISHMENT,LD - East Locality - Cost of Care,LD - East Cambs - Special Needs,Residential Care
Cambridgeshire County Council,17-Dec-19,51301271748,"-1,328.44",CARE MANAGEMENT GROUP (64-66 CARLTON),CARE ESTABLISHMENT,LD - East Locality - Cost of Care,LD - East Cambs - Special Needs,Residential Care
Cambridgeshire County Council,17-Dec-19,51301271710,"-1,328.44",CARE MANAGEMENT GROUP (64-66 CARLTON),CARE ESTABLISHMENT,LD - East Locality - Cost of Care,LD - East Cambs - Special Needs,Residential Care
Cambridgeshire County Council,17-Dec-19,51301271704,"-1,328.44",CARE MANAGEMENT GROUP (64-66 CARLTON),CARE ESTABLISHMENT,LD - East Locality - Cost of Care,LD - East Cambs - Special Needs,Residential Care
Cambridgeshire County Council,17-Dec-19,51301271745,"-1,328.44",CARE MANAGEMENT GROUP (64-66 CARLTON),CARE ESTABLISHMENT,LD - East Locality - Cost of Care,LD - East Cambs - Special Needs,Residential Care
Cambridgeshire County Council,17-Dec-19,51301271782,"-1,328.44",CARE MANAGEMENT GROUP (64-66 CARLTON),CARE ESTABLISHMENT,LD - East Locality - Cost of Care,LD - East Cambs - Special Needs,Residential Care
Cambridgeshire County Council,17-Dec-19,51301271688,"-1,328.44",CARE MANAGEMENT GROUP (64-66 CARLTON),CARE ESTABLISHMENT,LD - East Locality - Cost of Care,LD - East Cambs - Special Needs,Residential Care
Cambridgeshire County Council,17-Dec-19,51301271741,"-1,328.44",CARE MANAGEMENT GROUP (64-66 CARLTON),CARE ESTABLISHMENT,LD - East Locality - Cost of Care,LD - East Cambs - Special Needs,Residential Care
Cambridgeshire County Council,17-Dec-19,51301271760,"-1,328.44",CARE MANAGEMENT GROUP (64-66 CARLTON),CARE ESTABLISHMENT,LD - East Locality - Cost of Care,LD - East Cambs - Special Needs,Residential Care
Cambridgeshire County Council,17-Dec-19,51301271756,"-1,328.44",CARE MANAGEMENT GROUP (64-66 CARLTON),CARE ESTABLISHMENT,LD - East Locality - Cost of Care,LD - East Cambs - Special Needs,Residential Care
Cambridgeshire County Council,17-Dec-19,51301271702,"-1,328.44",CARE MANAGEMENT GROUP (64-66 CARLTON),CARE ESTABLISHMENT,LD - East Locality - Cost of Care,LD - East Cambs - Special Needs,Residential Care
Cambridgeshire County Council,17-Dec-19,51301271762,"-1,328.44",CARE MANAGEMENT GROUP (64-66 CARLTON),CARE ESTABLISHMENT,LD - East Locality - Cost of Care,LD - East Cambs - Special Needs,Residential Care
Cambridgeshire County Council,17-Dec-19,51301271766,"-1,328.44",CARE MANAGEMENT GROUP (64-66 CARLTON),CARE ESTABLISHMENT,LD - East Locality - Cost of Care,LD - East Cambs - Special Needs,Residential Care
Cambridgeshire County Council,17-Dec-19,51301271700,"-1,328.44",CARE MANAGEMENT GROUP (64-66 CARLTON),CARE ESTABLISHMENT,LD - East Locality - Cost of Care,LD - East Cambs - Special Needs,Residential Care
Cambridgeshire County Council,17-Dec-19,51301271679,"-1,328.44",CARE MANAGEMENT GROUP (64-66 CARLTON),CARE ESTABLISHMENT,LD - East Locality - Cost of Care,LD - East Cambs - Special Needs,Residential Care
Cambridgeshire County Council,17-Dec-19,51301271744,"-1,328.44",CARE MANAGEMENT GROUP (64-66 CARLTON),CARE ESTABLISHMENT,LD - East Locality - Cost of Care,LD - East Cambs - Special Needs,Residential Care
Cambridgeshire County Council,17-Dec-19,51301271795,"-1,328.44",CARE MANAGEMENT GROUP (64-66 CARLTON),CARE ESTABLISHMENT,LD - East Locality - Cost of Care,LD - East Cambs - Special Needs,Residential Care
Cambridgeshire County Council,17-Dec-19,51301271719,"-1,328.44",CARE MANAGEMENT GROUP (64-66 CARLTON),CARE ESTABLISHMENT,LD - East Locality - Cost of Care,LD - East Cambs - Special Needs,Residential Care
Cambridgeshire County Council,17-Dec-19,51301271660,"-1,328.44",CARE MANAGEMENT GROUP (64-66 CARLTON),CARE ESTABLISHMENT,LD - East Locality - Cost of Care,LD - East Cambs - Special Needs,Residential Care
Cambridgeshire County Council,17-Dec-19,51301271711,"-1,328.44",CARE MANAGEMENT GROUP (64-66 CARLTON),CARE ESTABLISHMENT,LD - East Locality - Cost of Care,LD - East Cambs - Special Needs,Residential Care
Cambridgeshire County Council,17-Dec-19,51301271705,"-1,328.44",CARE MANAGEMENT GROUP (64-66 CARLTON),CARE ESTABLISHMENT,LD - East Locality - Cost of Care,LD - East Cambs - Special Needs,Residential Care
Cambridgeshire County Council,17-Dec-19,51301271788,"-1,328.44",CARE MANAGEMENT GROUP (64-66 CARLTON),CARE ESTABLISHMENT,LD - East Locality - Cost of Care,LD - East Cambs - Special Needs,Residential Care
Cambridgeshire County Council,17-Dec-19,51301271789,"-1,328.44",CARE MANAGEMENT GROUP (64-66 CARLTON),CARE ESTABLISHMENT,LD - East Locality - Cost of Care,LD - East Cambs - Special Needs,Residential Care
Cambridgeshire County Council,17-Dec-19,51301271750,"-1,328.44",CARE MANAGEMENT GROUP (64-66 CARLTON),CARE ESTABLISHMENT,LD - East Locality - Cost of Care,LD - East Cambs - Special Needs,Residential Care
Cambridgeshire County Council,17-Dec-19,51301271794,"-1,328.44",CARE MANAGEMENT GROUP (64-66 CARLTON),CARE ESTABLISHMENT,LD - East Locality - Cost of Care,LD - East Cambs - Special Needs,Residential Care
Cambridgeshire County Council,17-Dec-19,51301271798,"-1,328.44",CARE MANAGEMENT GROUP (64-66 CARLTON),CARE ESTABLISHMENT,LD - East Locality - Cost of Care,LD - East Cambs - Special Needs,Residential Care
Cambridgeshire County Council,17-Dec-19,51301271690,"-1,328.44",CARE MANAGEMENT GROUP (64-66 CARLTON),CARE ESTABLISHMENT,LD - East Locality - Cost of Care,LD - East Cambs - Special Needs,Residential Care
Cambridgeshire County Council,17-Dec-19,51301271728,"-1,328.44",CARE MANAGEMENT GROUP (64-66 CARLTON),CARE ESTABLISHMENT,LD - East Locality - Cost of Care,LD - East Cambs - Special Needs,Residential Care
Cambridgeshire County Council,17-Dec-19,51301271752,"-1,328.44",CARE MANAGEMENT GROUP (64-66 CARLTON),CARE ESTABLISHMENT,LD - East Locality - Cost of Care,LD - East Cambs - Special Needs,Residential Care
Cambridgeshire County Council,17-Dec-19,51301271772,"-1,328.44",CARE MANAGEMENT GROUP (64-66 CARLTON),CARE ESTABLISHMENT,LD - East Locality - Cost of Care,LD - East Cambs - Special Needs,Residential Care
Cambridgeshire County Council,17-Dec-19,51301271736,"-1,328.44",CARE MANAGEMENT GROUP (64-66 CARLTON),CARE ESTABLISHMENT,LD - East Locality - Cost of Care,LD - East Cambs - Special Needs,Residential Care
Cambridgeshire County Council,17-Dec-19,51301271692,"-1,328.44",CARE MANAGEMENT GROUP (64-66 CARLTON),CARE ESTABLISHMENT,LD - East Locality - Cost of Care,LD - East Cambs - Special Needs,Residential Care
Cambridgeshire County Council,17-Dec-19,51301271720,"-1,328.44",CARE MANAGEMENT GROUP (64-66 CARLTON),CARE ESTABLISHMENT,LD - East Locality - Cost of Care,LD - East Cambs - Special Needs,Residential Care
Cambridgeshire County Council,17-Dec-19,51301271675,"-1,328.44",CARE MANAGEMENT GROUP (64-66 CARLTON),CARE ESTABLISHMENT,LD - East Locality - Cost of Care,LD - East Cambs - Special Needs,Residential Care
Cambridgeshire County Council,17-Dec-19,51301271729,"-1,328.44",CARE MANAGEMENT GROUP (64-66 CARLTON),CARE ESTABLISHMENT,LD - East Locality - Cost of Care,LD - East Cambs - Special Needs,Residential Care
Cambridgeshire County Council,17-Dec-19,51301271730,"-1,328.44",CARE MANAGEMENT GROUP (64-66 CARLTON),CARE ESTABLISHMENT,LD - East Locality - Cost of Care,LD - East Cambs - Special Needs,Residential Care
Cambridgeshire County Council,17-Dec-19,51301271783,"-1,328.44",CARE MANAGEMENT GROUP (64-66 CARLTON),CARE ESTABLISHMENT,LD - East Locality - Cost of Care,LD - East Cambs - Special Needs,Residential Care
Cambridgeshire County Council,17-Dec-19,51301271689,"-1,328.44",CARE MANAGEMENT GROUP (64-66 CARLTON),CARE ESTABLISHMENT,LD - East Locality - Cost of Care,LD - East Cambs - Special Needs,Residential Care
Cambridgeshire County Council,17-Dec-19,51301271770,"-1,328.44",CARE MANAGEMENT GROUP (64-66 CARLTON),CARE ESTABLISHMENT,LD - East Locality - Cost of Care,LD - East Cambs - Special Needs,Residential Care
Cambridgeshire County Council,17-Dec-19,51301271676,"-1,328.44",CARE MANAGEMENT GROUP (64-66 CARLTON),CARE ESTABLISHMENT,LD - East Locality - Cost of Care,LD - East Cambs - Special Needs,Residential Care
Cambridgeshire County Council,17-Dec-19,51301271733,"-1,328.44",CARE MANAGEMENT GROUP (64-66 CARLTON),CARE ESTABLISHMENT,LD - East Locality - Cost of Care,LD - East Cambs - Special Needs,Residential Care
Cambridgeshire County Council,13-Dec-19,51301283720,"-1,323.29",23 LIONS CROSS (VOYAGE),CARE ESTABLISHMENT,LD - Hunts Locality - Cost of Care,LD - Huntingdonshire - Care,Supported Living
Cambridgeshire County Council,13-Dec-19,51301283720,"-1,323.29",23 LIONS CROSS (VOYAGE),CARE ESTABLISHMENT,LD - Hunts Locality - Cost of Care,LD - Huntingdonshire - Care,Supported Living
Cambridgeshire County Council,13-Dec-19,51301283720,"-1,323.29",23 LIONS CROSS (VOYAGE),CARE ESTABLISHMENT,LD - Hunts Locality - Cost of Care,LD - Huntingdonshire - Care,Supported Living
Cambridgeshire County Council,13-Dec-19,51301283720,"-1,323.29",23 LIONS CROSS (VOYAGE),CARE ESTABLISHMENT,LD - Hunts Locality - Cost of Care,LD - Huntingdonshire - Care,Supported Living
Cambridgeshire County Council,13-Dec-19,51301283720,"-1,323.29",23 LIONS CROSS (VOYAGE),CARE ESTABLISHMENT,LD - Hunts Locality - Cost of Care,LD - Huntingdonshire - Care,Supported Living
Cambridgeshire County Council,13-Dec-19,51301283720,"-1,323.29",23 LIONS CROSS (VOYAGE),CARE ESTABLISHMENT,LD - Hunts Locality - Cost of Care,LD - Huntingdonshire - Care,Supported Living
Cambridgeshire County Council,13-Dec-19,51301283720,"-1,323.29",23 LIONS CROSS (VOYAGE),CARE ESTABLISHMENT,LD - Hunts Locality - Cost of Care,LD - Huntingdonshire - Care,Supported Living
Cambridgeshire County Council,13-Dec-19,51301283720,"-1,323.29",23 LIONS CROSS (VOYAGE),CARE ESTABLISHMENT,LD - Hunts Locality - Cost of Care,LD - Huntingdonshire - Care,Supported Living
Cambridgeshire County Council,13-Dec-19,51301283720,"-1,323.29",23 LIONS CROSS (VOYAGE),CARE ESTABLISHMENT,LD - Hunts Locality - Cost of Care,LD - Huntingdonshire - Care,Supported Living
Cambridgeshire County Council,13-Dec-19,51301285352,"-1,318.88",VOYAGE,CARE ESTABLISHMENT,LD - Young Adults Team,LD - Young Adults - Care,Supported Living
Cambridgeshire County Council,13-Dec-19,51301285352,"-1,318.88",VOYAGE,CARE ESTABLISHMENT,LD - Young Adults Team,LD - Young Adults - Care,Supported Living
Cambridgeshire County Council,13-Dec-19,51301285352,"-1,318.88",VOYAGE,CARE ESTABLISHMENT,LD - Young Adults Team,LD - Young Adults - Care,Supported Living
Cambridgeshire County Council,13-Dec-19,51301285352,"-1,318.88",VOYAGE,CARE ESTABLISHMENT,LD - Young Adults Team,LD - Young Adults - Care,Supported Living
Cambridgeshire County Council,13-Dec-19,51301285352,"-1,318.88",VOYAGE,CARE ESTABLISHMENT,LD - Young Adults Team,LD - Young Adults - Care,Supported Living
Cambridgeshire County Council,13-Dec-19,51301285352,"-1,318.88",VOYAGE,CARE ESTABLISHMENT,LD - Young Adults Team,LD - Young Adults - Care,Supported Living
Cambridgeshire County Council,13-Dec-19,51301285352,"-1,318.88",VOYAGE,CARE ESTABLISHMENT,LD - Young Adults Team,LD - Young Adults - Care,Supported Living
Cambridgeshire County Council,13-Dec-19,51301285352,"-1,318.88",VOYAGE,CARE ESTABLISHMENT,LD - Young Adults Team,LD - Young Adults - Care,Supported Living
Cambridgeshire County Council,13-Dec-19,51301285352,"-1,318.88",VOYAGE,CARE ESTABLISHMENT,LD - Young Adults Team,LD - Young Adults - Care,Supported Living
Cambridgeshire County Council,05-Dec-19,51301277703,"-1,317.49",CARETECH COMMUNITY SERVICES,CARE ESTABLISHMENT,LD - Fenland Locality - Cost of Care,LD - Fenland  - Care,Supported Living
Cambridgeshire County Council,05-Dec-19,51301277703,"-1,317.49",CARETECH COMMUNITY SERVICES,CARE ESTABLISHMENT,LD - Fenland Locality - Cost of Care,LD - Fenland  - Care,Supported Living
Cambridgeshire County Council,05-Dec-19,51301277703,"-1,317.49",CARETECH COMMUNITY SERVICES,CARE ESTABLISHMENT,LD - Fenland Locality - Cost of Care,LD - Fenland  - Care,Supported Living
Cambridgeshire County Council,05-Dec-19,51301277703,"-1,317.49",CARETECH COMMUNITY SERVICES,CARE ESTABLISHMENT,LD - Fenland Locality - Cost of Care,LD - Fenland  - Care,Supported Living
Cambridgeshire County Council,05-Dec-19,51301278639,"-1,317.46",REDMOND HOUSE (VOYAGE),CARE ESTABLISHMENT,LD - South Locality - Cost of Care,LD - South Cambs - Care,Residential Care
Cambridgeshire County Council,05-Dec-19,51301270139,"-1,317.11",ALDERTON HOUSE,CARE ESTABLISHMENT,LD - East Locality - Cost of Care,LD - East Cambs - Care,Residential Care
Cambridgeshire County Council,05-Dec-19,51301270123,"-1,317.11",ALDERTON HOUSE,CARE ESTABLISHMENT,LD - East Locality - Cost of Care,LD - East Cambs - Care,Residential Care
Cambridgeshire County Council,05-Dec-19,51301270129,"-1,317.11",ALDERTON HOUSE,CARE ESTABLISHMENT,LD - East Locality - Cost of Care,LD - East Cambs - Care,Residential Care
Cambridgeshire County Council,05-Dec-19,51301270159,"-1,317.11",ALDERTON HOUSE,CARE ESTABLISHMENT,LD - East Locality - Cost of Care,LD - East Cambs - Care,Residential Care
Cambridgeshire County Council,05-Dec-19,51301270089,"-1,317.11",ALDERTON HOUSE,CARE ESTABLISHMENT,LD - East Locality - Cost of Care,LD - East Cambs - Care,Residential Care
Cambridgeshire County Council,05-Dec-19,51301270142,"-1,317.11",ALDERTON HOUSE,CARE ESTABLISHMENT,LD - East Locality - Cost of Care,LD - East Cambs - Care,Residential Care
Cambridgeshire County Council,05-Dec-19,51301270185,"-1,317.11",ALDERTON HOUSE,CARE ESTABLISHMENT,LD - East Locality - Cost of Care,LD - East Cambs - Care,Residential Care
Cambridgeshire County Council,05-Dec-19,51301270088,"-1,317.11",ALDERTON HOUSE,CARE ESTABLISHMENT,LD - East Locality - Cost of Care,LD - East Cambs - Care,Residential Care
Cambridgeshire County Council,05-Dec-19,51301270096,"-1,317.11",ALDERTON HOUSE,CARE ESTABLISHMENT,LD - East Locality - Cost of Care,LD - East Cambs - Care,Residential Care
Cambridgeshire County Council,05-Dec-19,51301270118,"-1,317.11",ALDERTON HOUSE,CARE ESTABLISHMENT,LD - East Locality - Cost of Care,LD - East Cambs - Care,Residential Care
Cambridgeshire County Council,05-Dec-19,51301270206,"-1,317.11",ALDERTON HOUSE,CARE ESTABLISHMENT,LD - East Locality - Cost of Care,LD - East Cambs - Care,Residential Care
Cambridgeshire County Council,05-Dec-19,51301270177,"-1,317.11",ALDERTON HOUSE,CARE ESTABLISHMENT,LD - East Locality - Cost of Care,LD - East Cambs - Care,Residential Care
Cambridgeshire County Council,05-Dec-19,51301270126,"-1,317.11",ALDERTON HOUSE,CARE ESTABLISHMENT,LD - East Locality - Cost of Care,LD - East Cambs - Care,Residential Care
Cambridgeshire County Council,05-Dec-19,51301270135,"-1,317.11",ALDERTON HOUSE,CARE ESTABLISHMENT,LD - East Locality - Cost of Care,LD - East Cambs - Care,Residential Care
Cambridgeshire County Council,05-Dec-19,51301270161,"-1,317.11",ALDERTON HOUSE,CARE ESTABLISHMENT,LD - East Locality - Cost of Care,LD - East Cambs - Care,Residential Care
Cambridgeshire County Council,05-Dec-19,51301270167,"-1,317.11",ALDERTON HOUSE,CARE ESTABLISHMENT,LD - East Locality - Cost of Care,LD - East Cambs - Care,Residential Care
Cambridgeshire County Council,05-Dec-19,51301270100,"-1,317.11",ALDERTON HOUSE,CARE ESTABLISHMENT,LD - East Locality - Cost of Care,LD - East Cambs - Care,Residential Care
Cambridgeshire County Council,05-Dec-19,51301270176,"-1,317.11",ALDERTON HOUSE,CARE ESTABLISHMENT,LD - East Locality - Cost of Care,LD - East Cambs - Care,Residential Care
Cambridgeshire County Council,05-Dec-19,51301270184,"-1,317.11",ALDERTON HOUSE,CARE ESTABLISHMENT,LD - East Locality - Cost of Care,LD - East Cambs - Care,Residential Care
Cambridgeshire County Council,05-Dec-19,51301270148,"-1,317.11",ALDERTON HOUSE,CARE ESTABLISHMENT,LD - East Locality - Cost of Care,LD - East Cambs - Care,Residential Care
Cambridgeshire County Council,05-Dec-19,51301270084,"-1,317.11",ALDERTON HOUSE,CARE ESTABLISHMENT,LD - East Locality - Cost of Care,LD - East Cambs - Care,Residential Care
Cambridgeshire County Council,05-Dec-19,51301270101,"-1,317.11",ALDERTON HOUSE,CARE ESTABLISHMENT,LD - East Locality - Cost of Care,LD - East Cambs - Care,Residential Care
Cambridgeshire County Council,05-Dec-19,51301270205,"-1,317.11",ALDERTON HOUSE,CARE ESTABLISHMENT,LD - East Locality - Cost of Care,LD - East Cambs - Care,Residential Care
Cambridgeshire County Council,05-Dec-19,51301270155,"-1,317.11",ALDERTON HOUSE,CARE ESTABLISHMENT,LD - East Locality - Cost of Care,LD - East Cambs - Care,Residential Care
Cambridgeshire County Council,05-Dec-19,51301270134,"-1,317.11",ALDERTON HOUSE,CARE ESTABLISHMENT,LD - East Locality - Cost of Care,LD - East Cambs - Care,Residential Care
Cambridgeshire County Council,05-Dec-19,51301270125,"-1,317.11",ALDERTON HOUSE,CARE ESTABLISHMENT,LD - East Locality - Cost of Care,LD - East Cambs - Care,Residential Care
Cambridgeshire County Council,05-Dec-19,51301270183,"-1,317.11",ALDERTON HOUSE,CARE ESTABLISHMENT,LD - East Locality - Cost of Care,LD - East Cambs - Care,Residential Care
Cambridgeshire County Council,05-Dec-19,51301270188,"-1,317.11",ALDERTON HOUSE,CARE ESTABLISHMENT,LD - East Locality - Cost of Care,LD - East Cambs - Care,Residential Care
Cambridgeshire County Council,05-Dec-19,51301270112,"-1,317.11",ALDERTON HOUSE,CARE ESTABLISHMENT,LD - East Locality - Cost of Care,LD - East Cambs - Care,Residential Care
Cambridgeshire County Council,05-Dec-19,51301270083,"-1,317.11",ALDERTON HOUSE,CARE ESTABLISHMENT,LD - East Locality - Cost of Care,LD - East Cambs - Special Needs,Residential Care
Cambridgeshire County Council,05-Dec-19,51301270160,"-1,317.11",ALDERTON HOUSE,CARE ESTABLISHMENT,LD - East Locality - Cost of Care,LD - East Cambs - Special Needs,Residential Care
Cambridgeshire County Council,05-Dec-19,51301270090,"-1,317.11",ALDERTON HOUSE,CARE ESTABLISHMENT,LD - East Locality - Cost of Care,LD - East Cambs - Special Needs,Residential Care
Cambridgeshire County Council,05-Dec-19,51301270104,"-1,317.11",ALDERTON HOUSE,CARE ESTABLISHMENT,LD - East Locality - Cost of Care,LD - East Cambs - Special Needs,Residential Care
Cambridgeshire County Council,05-Dec-19,51301270111,"-1,317.11",ALDERTON HOUSE,CARE ESTABLISHMENT,LD - East Locality - Cost of Care,LD - East Cambs - Special Needs,Residential Care
Cambridgeshire County Council,05-Dec-19,51301270194,"-1,317.11",ALDERTON HOUSE,CARE ESTABLISHMENT,LD - East Locality - Cost of Care,LD - East Cambs - Special Needs,Residential Care
Cambridgeshire County Council,05-Dec-19,51301270117,"-1,317.11",ALDERTON HOUSE,CARE ESTABLISHMENT,LD - East Locality - Cost of Care,LD - East Cambs - Special Needs,Residential Care
Cambridgeshire County Council,05-Dec-19,51301270124,"-1,317.11",ALDERTON HOUSE,CARE ESTABLISHMENT,LD - East Locality - Cost of Care,LD - East Cambs - Special Needs,Residential Care
Cambridgeshire County Council,05-Dec-19,51301270102,"-1,317.11",ALDERTON HOUSE,CARE ESTABLISHMENT,LD - East Locality - Cost of Care,LD - East Cambs - Special Needs,Residential Care
Cambridgeshire County Council,05-Dec-19,51301270091,"-1,317.11",ALDERTON HOUSE,CARE ESTABLISHMENT,LD - East Locality - Cost of Care,LD - East Cambs - Special Needs,Residential Care
Cambridgeshire County Council,05-Dec-19,51301270095,"-1,317.11",ALDERTON HOUSE,CARE ESTABLISHMENT,LD - East Locality - Cost of Care,LD - East Cambs - Special Needs,Residential Care
Cambridgeshire County Council,05-Dec-19,51301270193,"-1,317.11",ALDERTON HOUSE,CARE ESTABLISHMENT,LD - East Locality - Cost of Care,LD - East Cambs - Special Needs,Residential Care
Cambridgeshire County Council,05-Dec-19,51301270189,"-1,317.11",ALDERTON HOUSE,CARE ESTABLISHMENT,LD - East Locality - Cost of Care,LD - East Cambs - Special Needs,Residential Care
Cambridgeshire County Council,05-Dec-19,51301270158,"-1,317.11",ALDERTON HOUSE,CARE ESTABLISHMENT,LD - East Locality - Cost of Care,LD - East Cambs - Special Needs,Residential Care
Cambridgeshire County Council,05-Dec-19,51301270131,"-1,317.11",ALDERTON HOUSE,CARE ESTABLISHMENT,LD - East Locality - Cost of Care,LD - East Cambs - Special Needs,Residential Care
Cambridgeshire County Council,05-Dec-19,51301270116,"-1,317.11",ALDERTON HOUSE,CARE ESTABLISHMENT,LD - East Locality - Cost of Care,LD - East Cambs - Special Needs,Residential Care
Cambridgeshire County Council,05-Dec-19,51301270150,"-1,317.11",ALDERTON HOUSE,CARE ESTABLISHMENT,LD - East Locality - Cost of Care,LD - East Cambs - Special Needs,Residential Care
Cambridgeshire County Council,05-Dec-19,51301270127,"-1,317.11",ALDERTON HOUSE,CARE ESTABLISHMENT,LD - East Locality - Cost of Care,LD - East Cambs - Special Needs,Residential Care
Cambridgeshire County Council,05-Dec-19,51301270140,"-1,317.11",ALDERTON HOUSE,CARE ESTABLISHMENT,LD - East Locality - Cost of Care,LD - East Cambs - Special Needs,Residential Care
Cambridgeshire County Council,05-Dec-19,51301270105,"-1,317.11",ALDERTON HOUSE,CARE ESTABLISHMENT,LD - East Locality - Cost of Care,LD - East Cambs - Special Needs,Residential Care
Cambridgeshire County Council,05-Dec-19,51301270166,"-1,317.11",ALDERTON HOUSE,CARE ESTABLISHMENT,LD - East Locality - Cost of Care,LD - East Cambs - Special Needs,Residential Care
Cambridgeshire County Council,05-Dec-19,51301270145,"-1,317.11",ALDERTON HOUSE,CARE ESTABLISHMENT,LD - East Locality - Cost of Care,LD - East Cambs - Special Needs,Residential Care
Cambridgeshire County Council,05-Dec-19,51301270165,"-1,317.11",ALDERTON HOUSE,CARE ESTABLISHMENT,LD - East Locality - Cost of Care,LD - East Cambs - Special Needs,Residential Care
Cambridgeshire County Council,05-Dec-19,51301270163,"-1,317.11",ALDERTON HOUSE,CARE ESTABLISHMENT,LD - East Locality - Cost of Care,LD - East Cambs - Special Needs,Residential Care
Cambridgeshire County Council,05-Dec-19,51301277314,"-1,300.17",AVICAN SUPPORT LTD,CARE ESTABLISHMENT,LD - East Locality - Cost of Care,LD - East Cambs - Care,Supported Living
Cambridgeshire County Council,05-Dec-19,51301277314,"-1,300.17",AVICAN SUPPORT LTD,CARE ESTABLISHMENT,LD - East Locality - Cost of Care,LD - East Cambs - Care,Supported Living
Cambridgeshire County Council,05-Dec-19,51301277314,"-1,300.17",AVICAN SUPPORT LTD,CARE ESTABLISHMENT,LD - East Locality - Cost of Care,LD - East Cambs - Care,Supported Living
Cambridgeshire County Council,05-Dec-19,51301277314,"-1,300.17",AVICAN SUPPORT LTD,CARE ESTABLISHMENT,LD - East Locality - Cost of Care,LD - East Cambs - Care,Supported Living
Cambridgeshire County Council,05-Dec-19,51301277314,"-1,300.17",AVICAN SUPPORT LTD,CARE ESTABLISHMENT,LD - East Locality - Cost of Care,LD - East Cambs - Care,Supported Living
Cambridgeshire County Council,05-Dec-19,51301277314,"-1,300.17",AVICAN SUPPORT LTD,CARE ESTABLISHMENT,LD - East Locality - Cost of Care,LD - East Cambs - Care,Supported Living
Cambridgeshire County Council,05-Dec-19,51301277314,"-1,300.17",AVICAN SUPPORT LTD,CARE ESTABLISHMENT,LD - East Locality - Cost of Care,LD - East Cambs - Care,Supported Living
Cambridgeshire County Council,05-Dec-19,51301278138,"-1,300.00",CAMBRIDGE MANOR CARE HOME (TLC),CARE ESTABLISHMENT,OP - Fenland Locality - Cost of Care,Older People - Fenland - Care,Nursing Care
Cambridgeshire County Council,05-Dec-19,51301278138,"-1,300.00",CAMBRIDGE MANOR CARE HOME (TLC),CARE ESTABLISHMENT,OP - Fenland Locality - Cost of Care,Older People - Fenland - Care,Nursing Care
Cambridgeshire County Council,13-Dec-19,51301284951,"-1,287.07",2 BEAUMONT CLOSE (HUNTINGDON MENCAP),CARE ESTABLISHMENT,LD - Hunts Locality - Cost of Care,LD - Huntingdonshire - Care,Supported Living
Cambridgeshire County Council,13-Dec-19,51301284951,"-1,287.07",2 BEAUMONT CLOSE (HUNTINGDON MENCAP),CARE ESTABLISHMENT,LD - Hunts Locality - Cost of Care,LD - Huntingdonshire - Care,Supported Living
Cambridgeshire County Council,13-Dec-19,51301284951,"-1,287.07",2 BEAUMONT CLOSE (HUNTINGDON MENCAP),CARE ESTABLISHMENT,LD - Hunts Locality - Cost of Care,LD - Huntingdonshire - Care,Supported Living
Cambridgeshire County Council,13-Dec-19,51301284951,"-1,287.07",2 BEAUMONT CLOSE (HUNTINGDON MENCAP),CARE ESTABLISHMENT,LD - Hunts Locality - Cost of Care,LD - Huntingdonshire - Care,Supported Living
Cambridgeshire County Council,13-Dec-19,51301284951,"-1,287.07",2 BEAUMONT CLOSE (HUNTINGDON MENCAP),CARE ESTABLISHMENT,LD - Hunts Locality - Cost of Care,LD - Huntingdonshire - Care,Supported Living
Cambridgeshire County Council,13-Dec-19,51301284951,"-1,287.07",2 BEAUMONT CLOSE (HUNTINGDON MENCAP),CARE ESTABLISHMENT,LD - Hunts Locality - Cost of Care,LD - Huntingdonshire - Care,Supported Living
Cambridgeshire County Council,13-Dec-19,51301284951,"-1,287.07",2 BEAUMONT CLOSE (HUNTINGDON MENCAP),CARE ESTABLISHMENT,LD - Hunts Locality - Cost of Care,LD - Huntingdonshire - Care,Supported Living
Cambridgeshire County Council,13-Dec-19,51301284951,"-1,287.07",2 BEAUMONT CLOSE (HUNTINGDON MENCAP),CARE ESTABLISHMENT,LD - Hunts Locality - Cost of Care,LD - Huntingdonshire - Care,Supported Living
Cambridgeshire County Council,13-Dec-19,51301284951,"-1,287.07",2 BEAUMONT CLOSE (HUNTINGDON MENCAP),CARE ESTABLISHMENT,LD - Hunts Locality - Cost of Care,LD - Huntingdonshire - Care,Supported Living
Cambridgeshire County Council,13-Dec-19,51301284951,"-1,287.07",2 BEAUMONT CLOSE (HUNTINGDON MENCAP),CARE ESTABLISHMENT,LD - Hunts Locality - Cost of Care,LD - Huntingdonshire - Care,Supported Living
Cambridgeshire County Council,05-Dec-19,51301277401,"-1,275.56",2 CHEVERIL LANE (VOYAGE),CARE ESTABLISHMENT,LD - Hunts Locality - Cost of Care,LD - Huntingdonshire - Care,Supported Living
Cambridgeshire County Council,05-Dec-19,51301277401,"-1,275.56",2 CHEVERIL LANE (VOYAGE),CARE ESTABLISHMENT,LD - Hunts Locality - Cost of Care,LD - Huntingdonshire - Care,Supported Living
Cambridgeshire County Council,05-Dec-19,51301277401,"-1,275.56",2 CHEVERIL LANE (VOYAGE),CARE ESTABLISHMENT,LD - Hunts Locality - Cost of Care,LD - Huntingdonshire - Care,Supported Living
Cambridgeshire County Council,05-Dec-19,51301277401,"-1,275.56",2 CHEVERIL LANE (VOYAGE),CARE ESTABLISHMENT,LD - Hunts Locality - Cost of Care,LD - Huntingdonshire - Care,Supported Living
Cambridgeshire County Council,05-Dec-19,51301277401,"-1,275.56",2 CHEVERIL LANE (VOYAGE),CARE ESTABLISHMENT,LD - Hunts Locality - Cost of Care,LD - Huntingdonshire - Care,Supported Living
Cambridgeshire County Council,05-Dec-19,51301270391,"-1,266.59",2 CHEVERIL LANE (VOYAGE),CARE ESTABLISHMENT,LD - Hunts Locality - Cost of Care,LD - Huntingdonshire - Care,Supported Living
Cambridgeshire County Council,05-Dec-19,51301270381,"-1,266.59",2 CHEVERIL LANE (VOYAGE),CARE ESTABLISHMENT,LD - Hunts Locality - Cost of Care,LD - Huntingdonshire - Care,Supported Living
Cambridgeshire County Council,05-Dec-19,51301270397,"-1,266.59",2 CHEVERIL LANE (VOYAGE),CARE ESTABLISHMENT,LD - Hunts Locality - Cost of Care,LD - Huntingdonshire - Care,Supported Living
Cambridgeshire County Council,05-Dec-19,51301270383,"-1,266.59",2 CHEVERIL LANE (VOYAGE),CARE ESTABLISHMENT,LD - Hunts Locality - Cost of Care,LD - Huntingdonshire - Care,Supported Living
Cambridgeshire County Council,05-Dec-19,51301270396,"-1,266.59",2 CHEVERIL LANE (VOYAGE),CARE ESTABLISHMENT,LD - Hunts Locality - Cost of Care,LD - Huntingdonshire - Care,Supported Living
Cambridgeshire County Council,05-Dec-19,51301270385,"-1,266.59",2 CHEVERIL LANE (VOYAGE),CARE ESTABLISHMENT,LD - Hunts Locality - Cost of Care,LD - Huntingdonshire - Special Needs,Supported Living
Cambridgeshire County Council,05-Dec-19,51301270400,"-1,266.59",2 CHEVERIL LANE (VOYAGE),CARE ESTABLISHMENT,LD - Hunts Locality - Cost of Care,LD - Huntingdonshire - Special Needs,Supported Living
Cambridgeshire County Council,05-Dec-19,51301270382,"-1,266.59",2 CHEVERIL LANE (VOYAGE),CARE ESTABLISHMENT,LD - Hunts Locality - Cost of Care,LD - Huntingdonshire - Special Needs,Supported Living
Cambridgeshire County Council,05-Dec-19,51301270393,"-1,266.59",2 CHEVERIL LANE (VOYAGE),CARE ESTABLISHMENT,LD - Hunts Locality - Cost of Care,LD - Huntingdonshire - Special Needs,Supported Living
Cambridgeshire County Council,13-Dec-19,51301285384,"-1,262.17",VOYAGE,CARE ESTABLISHMENT,LD - South Locality - Cost of Care,LD - South Cambs - Care,Domiciliary Care
Cambridgeshire County Council,13-Dec-19,51301283828,"-1,260.64",23 LIONS CROSS (VOYAGE),CARE ESTABLISHMENT,LD - Hunts Locality - Cost of Care,LD - Huntingdonshire - Care,Supported Living
Cambridgeshire County Council,13-Dec-19,51301283828,"-1,260.64",23 LIONS CROSS (VOYAGE),CARE ESTABLISHMENT,LD - Hunts Locality - Cost of Care,LD - Huntingdonshire - Care,Supported Living
Cambridgeshire County Council,13-Dec-19,51301283828,"-1,260.64",23 LIONS CROSS (VOYAGE),CARE ESTABLISHMENT,LD - Hunts Locality - Cost of Care,LD - Huntingdonshire - Care,Supported Living
Cambridgeshire County Council,13-Dec-19,51301283828,"-1,260.64",23 LIONS CROSS (VOYAGE),CARE ESTABLISHMENT,LD - Hunts Locality - Cost of Care,LD - Huntingdonshire - Care,Supported Living
Cambridgeshire County Council,13-Dec-19,51301283828,"-1,260.64",23 LIONS CROSS (VOYAGE),CARE ESTABLISHMENT,LD - Hunts Locality - Cost of Care,LD - Huntingdonshire - Care,Supported Living
Cambridgeshire County Council,13-Dec-19,51301283828,"-1,260.64",23 LIONS CROSS (VOYAGE),CARE ESTABLISHMENT,LD - Hunts Locality - Cost of Care,LD - Huntingdonshire - Care,Supported Living
Cambridgeshire County Council,13-Dec-19,51301283828,"-1,260.64",23 LIONS CROSS (VOYAGE),CARE ESTABLISHMENT,LD - Hunts Locality - Cost of Care,LD - Huntingdonshire - Care,Supported Living
Cambridgeshire County Council,13-Dec-19,51301283828,"-1,260.64",23 LIONS CROSS (VOYAGE),CARE ESTABLISHMENT,LD - Hunts Locality - Cost of Care,LD - Huntingdonshire - Care,Supported Living
Cambridgeshire County Council,13-Dec-19,51301283828,"-1,260.64",23 LIONS CROSS (VOYAGE),CARE ESTABLISHMENT,LD - Hunts Locality - Cost of Care,LD - Huntingdonshire - Care,Supported Living
Cambridgeshire County Council,05-Dec-19,51301278147,"-1,250.00",ASKHAM VILLAGE COMMUNITY LTD,CARE ESTABLISHMENT,OP - Fenland Locality - Cost of Care,Older People - Fenland - Care,Nursing Care
Cambridgeshire County Council,05-Dec-19,51301278147,"-1,250.00",ASKHAM VILLAGE COMMUNITY LTD,CARE ESTABLISHMENT,OP - Fenland Locality - Cost of Care,Older People - Fenland - Care,Nursing Care
Cambridgeshire County Council,05-Dec-19,51301278147,"-1,250.00",ASKHAM VILLAGE COMMUNITY LTD,CARE ESTABLISHMENT,OP - Fenland Locality - Cost of Care,Older People - Fenland - Care,Nursing Care
Cambridgeshire County Council,05-Dec-19,51301277424,"-1,212.34",17 HAMLETT CLOSE (VOYAGE),CARE ESTABLISHMENT,LD - Hunts Locality - Cost of Care,LD - Huntingdonshire - Care,Supported Living
Cambridgeshire County Council,05-Dec-19,51301277447,"-1,212.34",17 HAMLETT CLOSE (VOYAGE),CARE ESTABLISHMENT,LD - Hunts Locality - Cost of Care,LD - Huntingdonshire - Care,Supported Living
Cambridgeshire County Council,05-Dec-19,51301277424,"-1,212.34",17 HAMLETT CLOSE (VOYAGE),CARE ESTABLISHMENT,LD - Hunts Locality - Cost of Care,LD - Huntingdonshire - Care,Supported Living
Cambridgeshire County Council,05-Dec-19,51301277424,"-1,212.34",17 HAMLETT CLOSE (VOYAGE),CARE ESTABLISHMENT,LD - Hunts Locality - Cost of Care,LD - Huntingdonshire - Care,Supported Living
Cambridgeshire County Council,05-Dec-19,51301277447,"-1,212.34",17 HAMLETT CLOSE (VOYAGE),CARE ESTABLISHMENT,LD - Hunts Locality - Cost of Care,LD - Huntingdonshire - Care,Supported Living
Cambridgeshire County Council,05-Dec-19,51301277447,"-1,212.34",17 HAMLETT CLOSE (VOYAGE),CARE ESTABLISHMENT,LD - Hunts Locality - Cost of Care,LD - Huntingdonshire - Care,Supported Living
Cambridgeshire County Council,05-Dec-19,51301277424,"-1,212.34",17 HAMLETT CLOSE (VOYAGE),CARE ESTABLISHMENT,LD - Hunts Locality - Cost of Care,LD - Huntingdonshire - Care,Supported Living
Cambridgeshire County Council,05-Dec-19,51301277447,"-1,212.34",17 HAMLETT CLOSE (VOYAGE),CARE ESTABLISHMENT,LD - Hunts Locality - Cost of Care,LD - Huntingdonshire - Care,Supported Living
Cambridgeshire County Council,05-Dec-19,51301277424,"-1,212.34",17 HAMLETT CLOSE (VOYAGE),CARE ESTABLISHMENT,LD - Hunts Locality - Cost of Care,LD - Huntingdonshire - Care,Supported Living
Cambridgeshire County Council,05-Dec-19,51301277447,"-1,212.34",17 HAMLETT CLOSE (VOYAGE),CARE ESTABLISHMENT,LD - Hunts Locality - Cost of Care,LD - Huntingdonshire - Care,Supported Living
Cambridgeshire County Council,13-Dec-19,51301236780,"-1,207.08",VOYAGE (LICHFIELD),CARE ESTABLISHMENT,LD - Fenland Locality - Cost of Care,LD - Fenland  - Special Needs,Supported Living
Cambridgeshire County Council,13-Dec-19,51301236781,"-1,207.08",VOYAGE (LICHFIELD),CARE ESTABLISHMENT,LD - Fenland Locality - Cost of Care,LD - Fenland  - Special Needs,Supported Living
Cambridgeshire County Council,05-Dec-19,51301278396,"-1,206.25",THERA EAST ANGLIA,CARE ESTABLISHMENT,LD - East Locality - Cost of Care,LD - East Cambs - Care,Domiciliary Care
Cambridgeshire County Council,05-Dec-19,51301278396,"-1,206.25",THERA EAST ANGLIA,CARE ESTABLISHMENT,LD - East Locality - Cost of Care,LD - East Cambs - Care,Domiciliary Care
Cambridgeshire County Council,05-Dec-19,51301278396,"-1,206.25",THERA EAST ANGLIA,CARE ESTABLISHMENT,LD - East Locality - Cost of Care,LD - East Cambs - Care,Domiciliary Care
Cambridgeshire County Council,05-Dec-19,51301278396,"-1,206.25",THERA EAST ANGLIA,CARE ESTABLISHMENT,LD - East Locality - Cost of Care,LD - East Cambs - Care,Domiciliary Care
Cambridgeshire County Council,05-Dec-19,51301278396,"-1,206.25",THERA EAST ANGLIA,CARE ESTABLISHMENT,LD - East Locality - Cost of Care,LD - East Cambs - Care,Domiciliary Care
Cambridgeshire County Council,05-Dec-19,51301278396,"-1,206.25",THERA EAST ANGLIA,CARE ESTABLISHMENT,LD - East Locality - Cost of Care,LD - East Cambs - Care,Domiciliary Care
Cambridgeshire County Council,05-Dec-19,51301278396,"-1,206.25",THERA EAST ANGLIA,CARE ESTABLISHMENT,LD - East Locality - Cost of Care,LD - East Cambs - Care,Domiciliary Care
Cambridgeshire County Council,13-Dec-19,51301285257,"-1,204.07",VOYAGE,CARE ESTABLISHMENT,LD - South Locality - Cost of Care,LD - South Cambs - Care,Supported Living
Cambridgeshire County Council,13-Dec-19,51301285257,"-1,204.07",VOYAGE,CARE ESTABLISHMENT,LD - South Locality - Cost of Care,LD - South Cambs - Care,Supported Living
Cambridgeshire County Council,13-Dec-19,51301285257,"-1,204.07",VOYAGE,CARE ESTABLISHMENT,LD - South Locality - Cost of Care,LD - South Cambs - Care,Supported Living
Cambridgeshire County Council,13-Dec-19,51301285257,"-1,204.07",VOYAGE,CARE ESTABLISHMENT,LD - South Locality - Cost of Care,LD - South Cambs - Care,Supported Living
Cambridgeshire County Council,13-Dec-19,51301285257,"-1,204.07",VOYAGE,CARE ESTABLISHMENT,LD - South Locality - Cost of Care,LD - South Cambs - Care,Supported Living
Cambridgeshire County Council,13-Dec-19,51301285257,"-1,204.07",VOYAGE,CARE ESTABLISHMENT,LD - South Locality - Cost of Care,LD - South Cambs - Care,Supported Living
Cambridgeshire County Council,13-Dec-19,51301285257,"-1,204.07",VOYAGE,CARE ESTABLISHMENT,LD - South Locality - Cost of Care,LD - South Cambs - Care,Supported Living
Cambridgeshire County Council,13-Dec-19,51301285257,"-1,204.07",VOYAGE,CARE ESTABLISHMENT,LD - South Locality - Cost of Care,LD - South Cambs - Care,Supported Living
Cambridgeshire County Council,13-Dec-19,51301285257,"-1,204.07",VOYAGE,CARE ESTABLISHMENT,LD - South Locality - Cost of Care,LD - South Cambs - Care,Supported Living
Cambridgeshire County Council,17-Dec-19,51301288055,"-1,200.00",SOHAM LODGE,CARE ESTABLISHMENT,OP - East Cambs Locality - Cost of Care,East Cambs - O P Team - Care,Nursing Care
Cambridgeshire County Council,17-Dec-19,51301288055,"-1,200.00",SOHAM LODGE,CARE ESTABLISHMENT,OP - East Cambs Locality - Cost of Care,East Cambs - O P Team - Care,Nursing Care
Cambridgeshire County Council,17-Dec-19,51301288055,"-1,200.00",SOHAM LODGE,CARE ESTABLISHMENT,OP - East Cambs Locality - Cost of Care,East Cambs - O P Team - Care,Nursing Care
Cambridgeshire County Council,17-Dec-19,51301289165,"-1,200.00",LONGUEVILLE COURT,CARE ESTABLISHMENT,OP - Hunts Locality - Cost of Care,Hunts OP Team - Care,Nursing Care
Cambridgeshire County Council,17-Dec-19,51301289165,"-1,200.00",LONGUEVILLE COURT,CARE ESTABLISHMENT,OP - Hunts Locality - Cost of Care,Hunts OP Team - Care,Nursing Care
Cambridgeshire County Council,17-Dec-19,51301289165,"-1,200.00",LONGUEVILLE COURT,CARE ESTABLISHMENT,OP - Hunts Locality - Cost of Care,Hunts OP Team - Care,Nursing Care
Cambridgeshire County Council,17-Dec-19,51301289165,"-1,200.00",LONGUEVILLE COURT,CARE ESTABLISHMENT,OP - Hunts Locality - Cost of Care,Hunts OP Team - Care,Nursing Care
Cambridgeshire County Council,17-Dec-19,51301289165,"-1,200.00",LONGUEVILLE COURT,CARE ESTABLISHMENT,OP - Hunts Locality - Cost of Care,Hunts OP Team - Care,Nursing Care
Cambridgeshire County Council,17-Dec-19,51301289165,"-1,200.00",LONGUEVILLE COURT,CARE ESTABLISHMENT,OP - Hunts Locality - Cost of Care,Hunts OP Team - Care,Nursing Care
Cambridgeshire County Council,17-Dec-19,51301289165,"-1,200.00",LONGUEVILLE COURT,CARE ESTABLISHMENT,OP - Hunts Locality - Cost of Care,Hunts OP Team - Care,Nursing Care
Cambridgeshire County Council,17-Dec-19,51301289165,"-1,200.00",LONGUEVILLE COURT,CARE ESTABLISHMENT,OP - Hunts Locality - Cost of Care,Hunts OP Team - Care,Nursing Care
Cambridgeshire County Council,17-Dec-19,51301289165,"-1,200.00",LONGUEVILLE COURT,CARE ESTABLISHMENT,OP - Hunts Locality - Cost of Care,Hunts OP Team - Care,Nursing Care
Cambridgeshire County Council,17-Dec-19,51301289165,"-1,200.00",LONGUEVILLE COURT,CARE ESTABLISHMENT,OP - Hunts Locality - Cost of Care,Hunts OP Team - Care,Nursing Care
Cambridgeshire County Council,17-Dec-19,51301289165,"-1,200.00",LONGUEVILLE COURT,CARE ESTABLISHMENT,OP - Hunts Locality - Cost of Care,Hunts OP Team - Care,Nursing Care
Cambridgeshire County Council,17-Dec-19,51301289165,"-1,200.00",LONGUEVILLE COURT,CARE ESTABLISHMENT,OP - Hunts Locality - Cost of Care,Hunts OP Team - Care,Nursing Care
Cambridgeshire County Council,17-Dec-19,51301289165,"-1,200.00",LONGUEVILLE COURT,CARE ESTABLISHMENT,OP - Hunts Locality - Cost of Care,Hunts OP Team - Care,Nursing Care
Cambridgeshire County Council,17-Dec-19,51301289165,"-1,200.00",LONGUEVILLE COURT,CARE ESTABLISHMENT,OP - Hunts Locality - Cost of Care,Hunts OP Team - Care,Nursing Care
Cambridgeshire County Council,17-Dec-19,51301289165,"-1,200.00",LONGUEVILLE COURT,CARE ESTABLISHMENT,OP - Hunts Locality - Cost of Care,Hunts OP Team - Care,Nursing Care
Cambridgeshire County Council,17-Dec-19,51301289165,"-1,200.00",LONGUEVILLE COURT,CARE ESTABLISHMENT,OP - Hunts Locality - Cost of Care,Hunts OP Team - Care,Nursing Care
Cambridgeshire County Council,17-Dec-19,51301289165,"-1,200.00",LONGUEVILLE COURT,CARE ESTABLISHMENT,OP - Hunts Locality - Cost of Care,Hunts OP Team - Care,Nursing Care
Cambridgeshire County Council,17-Dec-19,51301289165,"-1,200.00",LONGUEVILLE COURT,CARE ESTABLISHMENT,OP - Hunts Locality - Cost of Care,Hunts OP Team - Care,Nursing Care
Cambridgeshire County Council,17-Dec-19,51301289165,"-1,200.00",LONGUEVILLE COURT,CARE ESTABLISHMENT,OP - Hunts Locality - Cost of Care,Hunts OP Team - Care,Nursing Care
Cambridgeshire County Council,17-Dec-19,51301289165,"-1,200.00",LONGUEVILLE COURT,CARE ESTABLISHMENT,OP - Hunts Locality - Cost of Care,Hunts OP Team - Care,Nursing Care
Cambridgeshire County Council,17-Dec-19,51301289165,"-1,200.00",LONGUEVILLE COURT,CARE ESTABLISHMENT,OP - Hunts Locality - Cost of Care,Hunts OP Team - Care,Nursing Care
Cambridgeshire County Council,17-Dec-19,51301289165,"-1,200.00",LONGUEVILLE COURT,CARE ESTABLISHMENT,OP - Hunts Locality - Cost of Care,Hunts OP Team - Care,Nursing Care
Cambridgeshire County Council,17-Dec-19,51301289165,"-1,200.00",LONGUEVILLE COURT,CARE ESTABLISHMENT,OP - Hunts Locality - Cost of Care,Hunts OP Team - Care,Nursing Care
Cambridgeshire County Council,17-Dec-19,51301289165,"-1,200.00",LONGUEVILLE COURT,CARE ESTABLISHMENT,OP - Hunts Locality - Cost of Care,Hunts OP Team - Care,Nursing Care
Cambridgeshire County Council,17-Dec-19,51301289165,"-1,200.00",LONGUEVILLE COURT,CARE ESTABLISHMENT,OP - Hunts Locality - Cost of Care,Hunts OP Team - Care,Nursing Care
Cambridgeshire County Council,17-Dec-19,51301289165,"-1,200.00",LONGUEVILLE COURT,CARE ESTABLISHMENT,OP - Hunts Locality - Cost of Care,Hunts OP Team - Care,Nursing Care
Cambridgeshire County Council,17-Dec-19,51301289165,"-1,200.00",LONGUEVILLE COURT,CARE ESTABLISHMENT,OP - Hunts Locality - Cost of Care,Hunts OP Team - Care,Nursing Care
Cambridgeshire County Council,17-Dec-19,51301289165,"-1,200.00",LONGUEVILLE COURT,CARE ESTABLISHMENT,OP - Hunts Locality - Cost of Care,Hunts OP Team - Care,Nursing Care
Cambridgeshire County Council,17-Dec-19,51301289165,"-1,200.00",LONGUEVILLE COURT,CARE ESTABLISHMENT,OP - Hunts Locality - Cost of Care,Hunts OP Team - Care,Nursing Care
Cambridgeshire County Council,17-Dec-19,51301289165,"-1,200.00",LONGUEVILLE COURT,CARE ESTABLISHMENT,OP - Hunts Locality - Cost of Care,Hunts OP Team - Care,Nursing Care
Cambridgeshire County Council,17-Dec-19,51301289165,"-1,200.00",LONGUEVILLE COURT,CARE ESTABLISHMENT,OP - Hunts Locality - Cost of Care,Hunts OP Team - Care,Nursing Care
Cambridgeshire County Council,17-Dec-19,51301289165,"-1,200.00",LONGUEVILLE COURT,CARE ESTABLISHMENT,OP - Hunts Locality - Cost of Care,Hunts OP Team - Care,Nursing Care
Cambridgeshire County Council,17-Dec-19,51301289165,"-1,200.00",LONGUEVILLE COURT,CARE ESTABLISHMENT,OP - Hunts Locality - Cost of Care,Hunts OP Team - Care,Nursing Care
Cambridgeshire County Council,17-Dec-19,51301289165,"-1,200.00",LONGUEVILLE COURT,CARE ESTABLISHMENT,OP - Hunts Locality - Cost of Care,Hunts OP Team - Care,Nursing Care
Cambridgeshire County Council,17-Dec-19,51301289165,"-1,200.00",LONGUEVILLE COURT,CARE ESTABLISHMENT,OP - Hunts Locality - Cost of Care,Hunts OP Team - Care,Nursing Care
Cambridgeshire County Council,17-Dec-19,51301288917,"-1,200.00",BARCHESTER HEALTHCARE HOMES LTD,CARE ESTABLISHMENT,Physical Disablity - Cost of Care,Countywide PD Service - Care,Residential Care
Cambridgeshire County Council,17-Dec-19,51301288917,"-1,200.00",BARCHESTER HEALTHCARE HOMES LTD,CARE ESTABLISHMENT,Physical Disablity - Cost of Care,Countywide PD Service - Care,Residential Care
Cambridgeshire County Council,17-Dec-19,51301288917,"-1,200.00",BARCHESTER HEALTHCARE HOMES LTD,CARE ESTABLISHMENT,Physical Disablity - Cost of Care,Countywide PD Service - Care,Residential Care
Cambridgeshire County Council,17-Dec-19,51301288917,"-1,200.00",BARCHESTER HEALTHCARE HOMES LTD,CARE ESTABLISHMENT,Physical Disablity - Cost of Care,Countywide PD Service - Care,Residential Care
Cambridgeshire County Council,17-Dec-19,51301288917,"-1,200.00",BARCHESTER HEALTHCARE HOMES LTD,CARE ESTABLISHMENT,Physical Disablity - Cost of Care,Countywide PD Service - Care,Residential Care
Cambridgeshire County Council,17-Dec-19,51301288917,"-1,200.00",BARCHESTER HEALTHCARE HOMES LTD,CARE ESTABLISHMENT,Physical Disablity - Cost of Care,Countywide PD Service - Care,Residential Care
Cambridgeshire County Council,17-Dec-19,51301288917,"-1,200.00",BARCHESTER HEALTHCARE HOMES LTD,CARE ESTABLISHMENT,Physical Disablity - Cost of Care,Countywide PD Service - Care,Residential Care
Cambridgeshire County Council,17-Dec-19,51301288917,"-1,200.00",BARCHESTER HEALTHCARE HOMES LTD,CARE ESTABLISHMENT,Physical Disablity - Cost of Care,Countywide PD Service - Care,Residential Care
Cambridgeshire County Council,17-Dec-19,51301288917,"-1,200.00",BARCHESTER HEALTHCARE HOMES LTD,CARE ESTABLISHMENT,Physical Disablity - Cost of Care,Countywide PD Service - Care,Residential Care
Cambridgeshire County Council,05-Dec-19,51301272681,"-1,198.04",CARETECH COMMUNITY SERVICES,CARE ESTABLISHMENT,LD - South Locality - Cost of Care,LD - South Cambs - Special Needs,Residential Care
Cambridgeshire County Council,05-Dec-19,51301272685,"-1,198.04",CARETECH COMMUNITY SERVICES,CARE ESTABLISHMENT,LD - South Locality - Cost of Care,LD - South Cambs - Special Needs,Residential Care
Cambridgeshire County Council,05-Dec-19,51301272646,"-1,198.04",CARETECH COMMUNITY SERVICES,CARE ESTABLISHMENT,LD - South Locality - Cost of Care,LD - South Cambs - Special Needs,Residential Care
Cambridgeshire County Council,05-Dec-19,51301272663,"-1,198.04",CARETECH COMMUNITY SERVICES,CARE ESTABLISHMENT,LD - South Locality - Cost of Care,LD - South Cambs - Special Needs,Residential Care
Cambridgeshire County Council,05-Dec-19,51301272684,"-1,198.04",CARETECH COMMUNITY SERVICES,CARE ESTABLISHMENT,LD - South Locality - Cost of Care,LD - South Cambs - Special Needs,Residential Care
Cambridgeshire County Council,05-Dec-19,51301272677,"-1,198.04",CARETECH COMMUNITY SERVICES,CARE ESTABLISHMENT,LD - South Locality - Cost of Care,LD - South Cambs - Special Needs,Residential Care
Cambridgeshire County Council,05-Dec-19,51301272691,"-1,198.04",CARETECH COMMUNITY SERVICES,CARE ESTABLISHMENT,LD - South Locality - Cost of Care,LD - South Cambs - Special Needs,Residential Care
Cambridgeshire County Council,05-Dec-19,51301272654,"-1,198.04",CARETECH COMMUNITY SERVICES,CARE ESTABLISHMENT,LD - South Locality - Cost of Care,LD - South Cambs - Special Needs,Residential Care
Cambridgeshire County Council,05-Dec-19,51301272659,"-1,198.04",CARETECH COMMUNITY SERVICES,CARE ESTABLISHMENT,LD - South Locality - Cost of Care,LD - South Cambs - Special Needs,Residential Care
Cambridgeshire County Council,05-Dec-19,51301272660,"-1,198.04",CARETECH COMMUNITY SERVICES,CARE ESTABLISHMENT,LD - South Locality - Cost of Care,LD - South Cambs - Special Needs,Residential Care
Cambridgeshire County Council,05-Dec-19,51301272694,"-1,198.04",CARETECH COMMUNITY SERVICES,CARE ESTABLISHMENT,LD - South Locality - Cost of Care,LD - South Cambs - Special Needs,Residential Care
Cambridgeshire County Council,05-Dec-19,51301272645,"-1,198.04",CARETECH COMMUNITY SERVICES,CARE ESTABLISHMENT,LD - South Locality - Cost of Care,LD - South Cambs - Special Needs,Residential Care
Cambridgeshire County Council,05-Dec-19,51301272687,"-1,198.04",CARETECH COMMUNITY SERVICES,CARE ESTABLISHMENT,LD - South Locality - Cost of Care,LD - South Cambs - Special Needs,Residential Care
Cambridgeshire County Council,05-Dec-19,51301272695,"-1,198.04",CARETECH COMMUNITY SERVICES,CARE ESTABLISHMENT,LD - South Locality - Cost of Care,LD - South Cambs - Special Needs,Residential Care
Cambridgeshire County Council,05-Dec-19,51301272666,"-1,198.04",CARETECH COMMUNITY SERVICES,CARE ESTABLISHMENT,LD - South Locality - Cost of Care,LD - South Cambs - Special Needs,Residential Care
Cambridgeshire County Council,05-Dec-19,51301272653,"-1,198.04",CARETECH COMMUNITY SERVICES,CARE ESTABLISHMENT,LD - South Locality - Cost of Care,LD - South Cambs - Care,Residential Care
Cambridgeshire County Council,05-Dec-19,51301272678,"-1,198.04",CARETECH COMMUNITY SERVICES,CARE ESTABLISHMENT,LD - South Locality - Cost of Care,LD - South Cambs - Care,Residential Care
Cambridgeshire County Council,05-Dec-19,51301272667,"-1,198.04",CARETECH COMMUNITY SERVICES,CARE ESTABLISHMENT,LD - South Locality - Cost of Care,LD - South Cambs - Care,Residential Care
Cambridgeshire County Council,05-Dec-19,51301272670,"-1,198.04",CARETECH COMMUNITY SERVICES,CARE ESTABLISHMENT,LD - South Locality - Cost of Care,LD - South Cambs - Care,Residential Care
Cambridgeshire County Council,05-Dec-19,51301272649,"-1,198.04",CARETECH COMMUNITY SERVICES,CARE ESTABLISHMENT,LD - South Locality - Cost of Care,LD - South Cambs - Care,Residential Care
Cambridgeshire County Council,05-Dec-19,51301272655,"-1,198.04",CARETECH COMMUNITY SERVICES,CARE ESTABLISHMENT,LD - South Locality - Cost of Care,LD - South Cambs - Care,Residential Care
Cambridgeshire County Council,05-Dec-19,51301272647,"-1,198.04",CARETECH COMMUNITY SERVICES,CARE ESTABLISHMENT,LD - South Locality - Cost of Care,LD - South Cambs - Care,Residential Care
Cambridgeshire County Council,05-Dec-19,51301272674,"-1,198.04",CARETECH COMMUNITY SERVICES,CARE ESTABLISHMENT,LD - South Locality - Cost of Care,LD - South Cambs - Care,Residential Care
Cambridgeshire County Council,05-Dec-19,51301272672,"-1,198.04",CARETECH COMMUNITY SERVICES,CARE ESTABLISHMENT,LD - South Locality - Cost of Care,LD - South Cambs - Care,Residential Care
Cambridgeshire County Council,05-Dec-19,51301272697,"-1,198.04",CARETECH COMMUNITY SERVICES,CARE ESTABLISHMENT,LD - South Locality - Cost of Care,LD - South Cambs - Care,Residential Care
Cambridgeshire County Council,05-Dec-19,51301272665,"-1,198.04",CARETECH COMMUNITY SERVICES,CARE ESTABLISHMENT,LD - South Locality - Cost of Care,LD - South Cambs - Care,Residential Care
Cambridgeshire County Council,05-Dec-19,51301272689,"-1,198.04",CARETECH COMMUNITY SERVICES,CARE ESTABLISHMENT,LD - South Locality - Cost of Care,LD - South Cambs - Care,Residential Care
Cambridgeshire County Council,13-Dec-19,51301285309,"-1,195.71",VOYAGE,CARE ESTABLISHMENT,LD - Hunts Locality - Cost of Care,LD - Huntingdonshire - Care,Supported Living
Cambridgeshire County Council,13-Dec-19,51301284683,"-1,189.02",VOYAGE,CARE ESTABLISHMENT,LD - South Locality - Cost of Care,LD - South Cambs - Care,Supported Living
Cambridgeshire County Council,13-Dec-19,51301284683,"-1,189.02",VOYAGE,CARE ESTABLISHMENT,LD - South Locality - Cost of Care,LD - South Cambs - Care,Supported Living
Cambridgeshire County Council,13-Dec-19,51301284683,"-1,189.02",VOYAGE,CARE ESTABLISHMENT,LD - South Locality - Cost of Care,LD - South Cambs - Care,Supported Living
Cambridgeshire County Council,13-Dec-19,51301284683,"-1,189.02",VOYAGE,CARE ESTABLISHMENT,LD - South Locality - Cost of Care,LD - South Cambs - Care,Supported Living
Cambridgeshire County Council,13-Dec-19,51301284683,"-1,189.02",VOYAGE,CARE ESTABLISHMENT,LD - South Locality - Cost of Care,LD - South Cambs - Care,Supported Living
Cambridgeshire County Council,13-Dec-19,51301284683,"-1,189.02",VOYAGE,CARE ESTABLISHMENT,LD - South Locality - Cost of Care,LD - South Cambs - Care,Supported Living
Cambridgeshire County Council,13-Dec-19,51301284683,"-1,189.02",VOYAGE,CARE ESTABLISHMENT,LD - South Locality - Cost of Care,LD - South Cambs - Care,Supported Living
Cambridgeshire County Council,13-Dec-19,51301284683,"-1,189.02",VOYAGE,CARE ESTABLISHMENT,LD - South Locality - Cost of Care,LD - South Cambs - Care,Supported Living
Cambridgeshire County Council,13-Dec-19,51301284683,"-1,189.02",VOYAGE,CARE ESTABLISHMENT,LD - South Locality - Cost of Care,LD - South Cambs - Care,Supported Living
Cambridgeshire County Council,17-Dec-19,51301288595,"-1,186.49",VOYAGE,CARE ESTABLISHMENT,LD - East Locality - Cost of Care,LD - East Cambs - Care,Residential Care
Cambridgeshire County Council,18-Dec-19,51301241210,"-1,178.15",SOCIAL CARE SOLUTIONS LTD,CARE ESTABLISHMENT,Physical Disablity - Cost of Care,Countywide PD Service - Care,Supported Living
Cambridgeshire County Council,18-Dec-19,51301241209,"-1,178.15",SOCIAL CARE SOLUTIONS LTD,CARE ESTABLISHMENT,Physical Disablity - Cost of Care,Countywide PD Service - Care,Supported Living
Cambridgeshire County Council,17-Dec-19,51301265596,"-1,175.76",NETWORK RAIL LTD,COMPANY,MID - Ely Crossing,MID - Ely Crossing,Construction - External Professional Fees
Cambridgeshire County Council,17-Dec-19,51301288396,"-1,163.54",VOYAGE,CARE ESTABLISHMENT,LD - East Locality - Cost of Care,LD - East Cambs - Care,Residential Care
Cambridgeshire County Council,17-Dec-19,51301288396,"-1,163.54",VOYAGE,CARE ESTABLISHMENT,LD - East Locality - Cost of Care,LD - East Cambs - Care,Residential Care
Cambridgeshire County Council,17-Dec-19,51301288396,"-1,163.54",VOYAGE,CARE ESTABLISHMENT,LD - East Locality - Cost of Care,LD - East Cambs - Care,Residential Care
Cambridgeshire County Council,17-Dec-19,51301288396,"-1,163.54",VOYAGE,CARE ESTABLISHMENT,LD - East Locality - Cost of Care,LD - East Cambs - Care,Residential Care
Cambridgeshire County Council,17-Dec-19,51301288396,"-1,163.54",VOYAGE,CARE ESTABLISHMENT,LD - East Locality - Cost of Care,LD - East Cambs - Care,Residential Care
Cambridgeshire County Council,17-Dec-19,51301288396,"-1,163.54",VOYAGE,CARE ESTABLISHMENT,LD - East Locality - Cost of Care,LD - East Cambs - Care,Residential Care
Cambridgeshire County Council,17-Dec-19,51301288396,"-1,163.54",VOYAGE,CARE ESTABLISHMENT,LD - East Locality - Cost of Care,LD - East Cambs - Care,Residential Care
Cambridgeshire County Council,17-Dec-19,51301288396,"-1,163.54",VOYAGE,CARE ESTABLISHMENT,LD - East Locality - Cost of Care,LD - East Cambs - Care,Residential Care
Cambridgeshire County Council,17-Dec-19,51301288396,"-1,163.54",VOYAGE,CARE ESTABLISHMENT,LD - East Locality - Cost of Care,LD - East Cambs - Care,Residential Care
Cambridgeshire County Council,13-Dec-19,51301284726,"-1,151.72",17 HAMLETT CLOSE (VOYAGE),CARE ESTABLISHMENT,LD - Hunts Locality - Cost of Care,LD - Huntingdonshire - Care,Supported Living
Cambridgeshire County Council,13-Dec-19,51301284726,"-1,151.72",17 HAMLETT CLOSE (VOYAGE),CARE ESTABLISHMENT,LD - Hunts Locality - Cost of Care,LD - Huntingdonshire - Care,Supported Living
Cambridgeshire County Council,13-Dec-19,51301284726,"-1,151.72",17 HAMLETT CLOSE (VOYAGE),CARE ESTABLISHMENT,LD - Hunts Locality - Cost of Care,LD - Huntingdonshire - Care,Supported Living
Cambridgeshire County Council,13-Dec-19,51301284726,"-1,151.72",17 HAMLETT CLOSE (VOYAGE),CARE ESTABLISHMENT,LD - Hunts Locality - Cost of Care,LD - Huntingdonshire - Care,Supported Living
Cambridgeshire County Council,13-Dec-19,51301284726,"-1,151.72",17 HAMLETT CLOSE (VOYAGE),CARE ESTABLISHMENT,LD - Hunts Locality - Cost of Care,LD - Huntingdonshire - Care,Supported Living
Cambridgeshire County Council,13-Dec-19,51301284726,"-1,151.72",17 HAMLETT CLOSE (VOYAGE),CARE ESTABLISHMENT,LD - Hunts Locality - Cost of Care,LD - Huntingdonshire - Care,Supported Living
Cambridgeshire County Council,13-Dec-19,51301284726,"-1,151.72",17 HAMLETT CLOSE (VOYAGE),CARE ESTABLISHMENT,LD - Hunts Locality - Cost of Care,LD - Huntingdonshire - Care,Supported Living
Cambridgeshire County Council,13-Dec-19,51301284726,"-1,151.72",17 HAMLETT CLOSE (VOYAGE),CARE ESTABLISHMENT,LD - Hunts Locality - Cost of Care,LD - Huntingdonshire - Care,Supported Living
Cambridgeshire County Council,13-Dec-19,51301284726,"-1,151.72",17 HAMLETT CLOSE (VOYAGE),CARE ESTABLISHMENT,LD - Hunts Locality - Cost of Care,LD - Huntingdonshire - Care,Supported Living
Cambridgeshire County Council,13-Dec-19,51301285220,"-1,148.94",VOYAGE,CARE ESTABLISHMENT,LD - South Locality - Cost of Care,LD - South Cambs - Care,Domiciliary Care
Cambridgeshire County Council,17-Dec-19,51301288769,"-1,144.95",WOODLANDS CARE CENTRE,CARE ESTABLISHMENT,Physical Disablity - Cost of Care,Countywide PD Service - Care,Nursing Care
Cambridgeshire County Council,17-Dec-19,51301288769,"-1,144.95",WOODLANDS CARE CENTRE,CARE ESTABLISHMENT,Physical Disablity - Cost of Care,Countywide PD Service - Care,Nursing Care
Cambridgeshire County Council,17-Dec-19,51301288769,"-1,144.95",WOODLANDS CARE CENTRE,CARE ESTABLISHMENT,Physical Disablity - Cost of Care,Countywide PD Service - Care,Nursing Care
Cambridgeshire County Council,17-Dec-19,51301288769,"-1,144.95",WOODLANDS CARE CENTRE,CARE ESTABLISHMENT,Physical Disablity - Cost of Care,Countywide PD Service - Care,Nursing Care
Cambridgeshire County Council,17-Dec-19,51301288769,"-1,144.95",WOODLANDS CARE CENTRE,CARE ESTABLISHMENT,Physical Disablity - Cost of Care,Countywide PD Service - Care,Nursing Care
Cambridgeshire County Council,17-Dec-19,51301288769,"-1,144.95",WOODLANDS CARE CENTRE,CARE ESTABLISHMENT,Physical Disablity - Cost of Care,Countywide PD Service - Care,Nursing Care
Cambridgeshire County Council,17-Dec-19,51301288769,"-1,144.95",WOODLANDS CARE CENTRE,CARE ESTABLISHMENT,Physical Disablity - Cost of Care,Countywide PD Service - Care,Nursing Care
Cambridgeshire County Council,17-Dec-19,51301288769,"-1,144.95",WOODLANDS CARE CENTRE,CARE ESTABLISHMENT,Physical Disablity - Cost of Care,Countywide PD Service - Care,Nursing Care
Cambridgeshire County Council,17-Dec-19,51301288769,"-1,144.95",WOODLANDS CARE CENTRE,CARE ESTABLISHMENT,Physical Disablity - Cost of Care,Countywide PD Service - Care,Nursing Care
Cambridgeshire County Council,17-Dec-19,51301288769,"-1,144.95",WOODLANDS CARE CENTRE,CARE ESTABLISHMENT,Physical Disablity - Cost of Care,Countywide PD Service - Care,Nursing Care
Cambridgeshire County Council,17-Dec-19,51301288769,"-1,144.95",WOODLANDS CARE CENTRE,CARE ESTABLISHMENT,Physical Disablity - Cost of Care,Countywide PD Service - Care,Nursing Care
Cambridgeshire County Council,17-Dec-19,51301288769,"-1,144.95",WOODLANDS CARE CENTRE,CARE ESTABLISHMENT,Physical Disablity - Cost of Care,Countywide PD Service - Care,Nursing Care
Cambridgeshire County Council,17-Dec-19,51301288769,"-1,144.95",WOODLANDS CARE CENTRE,CARE ESTABLISHMENT,Physical Disablity - Cost of Care,Countywide PD Service - Care,Nursing Care
Cambridgeshire County Council,17-Dec-19,51301288769,"-1,144.95",WOODLANDS CARE CENTRE,CARE ESTABLISHMENT,Physical Disablity - Cost of Care,Countywide PD Service - Care,Nursing Care
Cambridgeshire County Council,17-Dec-19,51301288769,"-1,144.95",WOODLANDS CARE CENTRE,CARE ESTABLISHMENT,Physical Disablity - Cost of Care,Countywide PD Service - Care,Nursing Care
Cambridgeshire County Council,17-Dec-19,51301288769,"-1,144.95",WOODLANDS CARE CENTRE,CARE ESTABLISHMENT,Physical Disablity - Cost of Care,Countywide PD Service - Care,Nursing Care
Cambridgeshire County Council,17-Dec-19,51301288769,"-1,144.95",WOODLANDS CARE CENTRE,CARE ESTABLISHMENT,Physical Disablity - Cost of Care,Countywide PD Service - Care,Nursing Care
Cambridgeshire County Council,17-Dec-19,51301288769,"-1,144.95",WOODLANDS CARE CENTRE,CARE ESTABLISHMENT,Physical Disablity - Cost of Care,Countywide PD Service - Care,Nursing Care
Cambridgeshire County Council,17-Dec-19,51301288769,"-1,144.95",WOODLANDS CARE CENTRE,CARE ESTABLISHMENT,Physical Disablity - Cost of Care,Countywide PD Service - Care,Nursing Care
Cambridgeshire County Council,17-Dec-19,51301288769,"-1,144.95",WOODLANDS CARE CENTRE,CARE ESTABLISHMENT,Physical Disablity - Cost of Care,Countywide PD Service - Care,Nursing Care
Cambridgeshire County Council,17-Dec-19,51301288769,"-1,144.95",WOODLANDS CARE CENTRE,CARE ESTABLISHMENT,Physical Disablity - Cost of Care,Countywide PD Service - Care,Nursing Care
Cambridgeshire County Council,17-Dec-19,51301288769,"-1,144.95",WOODLANDS CARE CENTRE,CARE ESTABLISHMENT,Physical Disablity - Cost of Care,Countywide PD Service - Care,Nursing Care
Cambridgeshire County Council,17-Dec-19,51301288769,"-1,144.95",WOODLANDS CARE CENTRE,CARE ESTABLISHMENT,Physical Disablity - Cost of Care,Countywide PD Service - Care,Nursing Care
Cambridgeshire County Council,17-Dec-19,51301288769,"-1,144.95",WOODLANDS CARE CENTRE,CARE ESTABLISHMENT,Physical Disablity - Cost of Care,Countywide PD Service - Care,Nursing Care
Cambridgeshire County Council,17-Dec-19,51301288769,"-1,144.95",WOODLANDS CARE CENTRE,CARE ESTABLISHMENT,Physical Disablity - Cost of Care,Countywide PD Service - Care,Nursing Care
Cambridgeshire County Council,17-Dec-19,51301288769,"-1,144.95",WOODLANDS CARE CENTRE,CARE ESTABLISHMENT,Physical Disablity - Cost of Care,Countywide PD Service - Care,Nursing Care
Cambridgeshire County Council,17-Dec-19,51301288769,"-1,144.95",WOODLANDS CARE CENTRE,CARE ESTABLISHMENT,Physical Disablity - Cost of Care,Countywide PD Service - Care,Nursing Care
Cambridgeshire County Council,17-Dec-19,51301288769,"-1,144.95",WOODLANDS CARE CENTRE,CARE ESTABLISHMENT,Physical Disablity - Cost of Care,Countywide PD Service - Care,Nursing Care
Cambridgeshire County Council,17-Dec-19,51301288769,"-1,144.95",WOODLANDS CARE CENTRE,CARE ESTABLISHMENT,Physical Disablity - Cost of Care,Countywide PD Service - Care,Nursing Care
Cambridgeshire County Council,17-Dec-19,51301288769,"-1,144.95",WOODLANDS CARE CENTRE,CARE ESTABLISHMENT,Physical Disablity - Cost of Care,Countywide PD Service - Care,Nursing Care
Cambridgeshire County Council,17-Dec-19,51301288769,"-1,144.95",WOODLANDS CARE CENTRE,CARE ESTABLISHMENT,Physical Disablity - Cost of Care,Countywide PD Service - Care,Nursing Care
Cambridgeshire County Council,17-Dec-19,51301288769,"-1,144.95",WOODLANDS CARE CENTRE,CARE ESTABLISHMENT,Physical Disablity - Cost of Care,Countywide PD Service - Care,Nursing Care
Cambridgeshire County Council,17-Dec-19,51301288769,"-1,144.95",WOODLANDS CARE CENTRE,CARE ESTABLISHMENT,Physical Disablity - Cost of Care,Countywide PD Service - Care,Nursing Care
Cambridgeshire County Council,17-Dec-19,51301288769,"-1,144.95",WOODLANDS CARE CENTRE,CARE ESTABLISHMENT,Physical Disablity - Cost of Care,Countywide PD Service - Care,Nursing Care
Cambridgeshire County Council,17-Dec-19,51301288769,"-1,144.95",WOODLANDS CARE CENTRE,CARE ESTABLISHMENT,Physical Disablity - Cost of Care,Countywide PD Service - Care,Nursing Care
Cambridgeshire County Council,17-Dec-19,51301288769,"-1,144.95",WOODLANDS CARE CENTRE,CARE ESTABLISHMENT,Physical Disablity - Cost of Care,Countywide PD Service - Care,Nursing Care
Cambridgeshire County Council,17-Dec-19,51301288769,"-1,144.95",WOODLANDS CARE CENTRE,CARE ESTABLISHMENT,Physical Disablity - Cost of Care,Countywide PD Service - Care,Nursing Care
Cambridgeshire County Council,17-Dec-19,51301288769,"-1,144.95",WOODLANDS CARE CENTRE,CARE ESTABLISHMENT,Physical Disablity - Cost of Care,Countywide PD Service - Care,Nursing Care
Cambridgeshire County Council,17-Dec-19,51301288769,"-1,144.95",WOODLANDS CARE CENTRE,CARE ESTABLISHMENT,Physical Disablity - Cost of Care,Countywide PD Service - Care,Nursing Care
Cambridgeshire County Council,17-Dec-19,51301288769,"-1,144.95",WOODLANDS CARE CENTRE,CARE ESTABLISHMENT,Physical Disablity - Cost of Care,Countywide PD Service - Care,Nursing Care
Cambridgeshire County Council,17-Dec-19,51301288769,"-1,144.95",WOODLANDS CARE CENTRE,CARE ESTABLISHMENT,Physical Disablity - Cost of Care,Countywide PD Service - Care,Nursing Care
Cambridgeshire County Council,17-Dec-19,51301288769,"-1,144.95",WOODLANDS CARE CENTRE,CARE ESTABLISHMENT,Physical Disablity - Cost of Care,Countywide PD Service - Care,Nursing Care
Cambridgeshire County Council,17-Dec-19,51301288769,"-1,144.95",WOODLANDS CARE CENTRE,CARE ESTABLISHMENT,Physical Disablity - Cost of Care,Countywide PD Service - Care,Nursing Care
Cambridgeshire County Council,17-Dec-19,51301288769,"-1,144.95",WOODLANDS CARE CENTRE,CARE ESTABLISHMENT,Physical Disablity - Cost of Care,Countywide PD Service - Care,Nursing Care
Cambridgeshire County Council,17-Dec-19,51301288769,"-1,144.95",WOODLANDS CARE CENTRE,CARE ESTABLISHMENT,Physical Disablity - Cost of Care,Countywide PD Service - Care,Nursing Care
Cambridgeshire County Council,17-Dec-19,51301288769,"-1,144.95",WOODLANDS CARE CENTRE,CARE ESTABLISHMENT,Physical Disablity - Cost of Care,Countywide PD Service - Care,Nursing Care
Cambridgeshire County Council,17-Dec-19,51301288769,"-1,144.95",WOODLANDS CARE CENTRE,CARE ESTABLISHMENT,Physical Disablity - Cost of Care,Countywide PD Service - Care,Nursing Care
Cambridgeshire County Council,17-Dec-19,51301288769,"-1,144.95",WOODLANDS CARE CENTRE,CARE ESTABLISHMENT,Physical Disablity - Cost of Care,Countywide PD Service - Care,Nursing Care
Cambridgeshire County Council,17-Dec-19,51301288769,"-1,144.95",WOODLANDS CARE CENTRE,CARE ESTABLISHMENT,Physical Disablity - Cost of Care,Countywide PD Service - Care,Nursing Care
Cambridgeshire County Council,17-Dec-19,51301288769,"-1,144.95",WOODLANDS CARE CENTRE,CARE ESTABLISHMENT,Physical Disablity - Cost of Care,Countywide PD Service - Care,Nursing Care
Cambridgeshire County Council,17-Dec-19,51301288769,"-1,144.95",WOODLANDS CARE CENTRE,CARE ESTABLISHMENT,Physical Disablity - Cost of Care,Countywide PD Service - Care,Nursing Care
Cambridgeshire County Council,17-Dec-19,51301288769,"-1,144.95",WOODLANDS CARE CENTRE,CARE ESTABLISHMENT,Physical Disablity - Cost of Care,Countywide PD Service - Care,Nursing Care
Cambridgeshire County Council,17-Dec-19,51301288769,"-1,144.95",WOODLANDS CARE CENTRE,CARE ESTABLISHMENT,Physical Disablity - Cost of Care,Countywide PD Service - Care,Nursing Care
Cambridgeshire County Council,17-Dec-19,51301288769,"-1,144.95",WOODLANDS CARE CENTRE,CARE ESTABLISHMENT,Physical Disablity - Cost of Care,Countywide PD Service - Care,Nursing Care
Cambridgeshire County Council,17-Dec-19,51301288769,"-1,144.95",WOODLANDS CARE CENTRE,CARE ESTABLISHMENT,Physical Disablity - Cost of Care,Countywide PD Service - Care,Nursing Care
Cambridgeshire County Council,17-Dec-19,51301288769,"-1,144.95",WOODLANDS CARE CENTRE,CARE ESTABLISHMENT,Physical Disablity - Cost of Care,Countywide PD Service - Care,Nursing Care
Cambridgeshire County Council,17-Dec-19,51301288769,"-1,144.95",WOODLANDS CARE CENTRE,CARE ESTABLISHMENT,Physical Disablity - Cost of Care,Countywide PD Service - Care,Nursing Care
Cambridgeshire County Council,17-Dec-19,51301288769,"-1,144.95",WOODLANDS CARE CENTRE,CARE ESTABLISHMENT,Physical Disablity - Cost of Care,Countywide PD Service - Care,Nursing Care
Cambridgeshire County Council,17-Dec-19,51301288769,"-1,144.95",WOODLANDS CARE CENTRE,CARE ESTABLISHMENT,Physical Disablity - Cost of Care,Countywide PD Service - Care,Nursing Care
Cambridgeshire County Council,17-Dec-19,51301288769,"-1,144.95",WOODLANDS CARE CENTRE,CARE ESTABLISHMENT,Physical Disablity - Cost of Care,Countywide PD Service - Care,Nursing Care
Cambridgeshire County Council,17-Dec-19,51301288769,"-1,144.95",WOODLANDS CARE CENTRE,CARE ESTABLISHMENT,Physical Disablity - Cost of Care,Countywide PD Service - Care,Nursing Care
Cambridgeshire County Council,17-Dec-19,51301288769,"-1,144.95",WOODLANDS CARE CENTRE,CARE ESTABLISHMENT,Physical Disablity - Cost of Care,Countywide PD Service - Care,Nursing Care
Cambridgeshire County Council,17-Dec-19,51301288769,"-1,144.95",WOODLANDS CARE CENTRE,CARE ESTABLISHMENT,Physical Disablity - Cost of Care,Countywide PD Service - Care,Nursing Care
Cambridgeshire County Council,17-Dec-19,51301288769,"-1,144.95",WOODLANDS CARE CENTRE,CARE ESTABLISHMENT,Physical Disablity - Cost of Care,Countywide PD Service - Care,Nursing Care
Cambridgeshire County Council,17-Dec-19,51301288769,"-1,144.95",WOODLANDS CARE CENTRE,CARE ESTABLISHMENT,Physical Disablity - Cost of Care,Countywide PD Service - Care,Nursing Care
Cambridgeshire County Council,17-Dec-19,51301288769,"-1,144.95",WOODLANDS CARE CENTRE,CARE ESTABLISHMENT,Physical Disablity - Cost of Care,Countywide PD Service - Care,Nursing Care
Cambridgeshire County Council,17-Dec-19,51301288769,"-1,144.95",WOODLANDS CARE CENTRE,CARE ESTABLISHMENT,Physical Disablity - Cost of Care,Countywide PD Service - Care,Nursing Care
Cambridgeshire County Council,17-Dec-19,51301288769,"-1,144.95",WOODLANDS CARE CENTRE,CARE ESTABLISHMENT,Physical Disablity - Cost of Care,Countywide PD Service - Care,Nursing Care
Cambridgeshire County Council,17-Dec-19,51301288769,"-1,144.95",WOODLANDS CARE CENTRE,CARE ESTABLISHMENT,Physical Disablity - Cost of Care,Countywide PD Service - Care,Nursing Care
Cambridgeshire County Council,17-Dec-19,51301288769,"-1,144.95",WOODLANDS CARE CENTRE,CARE ESTABLISHMENT,Physical Disablity - Cost of Care,Countywide PD Service - Care,Nursing Care
Cambridgeshire County Council,17-Dec-19,51301288769,"-1,144.95",WOODLANDS CARE CENTRE,CARE ESTABLISHMENT,Physical Disablity - Cost of Care,Countywide PD Service - Care,Nursing Care
Cambridgeshire County Council,17-Dec-19,51301288769,"-1,144.95",WOODLANDS CARE CENTRE,CARE ESTABLISHMENT,Physical Disablity - Cost of Care,Countywide PD Service - Care,Nursing Care
Cambridgeshire County Council,17-Dec-19,51301288769,"-1,144.95",WOODLANDS CARE CENTRE,CARE ESTABLISHMENT,Physical Disablity - Cost of Care,Countywide PD Service - Care,Nursing Care
Cambridgeshire County Council,17-Dec-19,51301288769,"-1,144.95",WOODLANDS CARE CENTRE,CARE ESTABLISHMENT,Physical Disablity - Cost of Care,Countywide PD Service - Care,Nursing Care
Cambridgeshire County Council,17-Dec-19,51301288769,"-1,144.95",WOODLANDS CARE CENTRE,CARE ESTABLISHMENT,Physical Disablity - Cost of Care,Countywide PD Service - Care,Nursing Care
Cambridgeshire County Council,17-Dec-19,51301288769,"-1,144.95",WOODLANDS CARE CENTRE,CARE ESTABLISHMENT,Physical Disablity - Cost of Care,Countywide PD Service - Care,Nursing Care
Cambridgeshire County Council,17-Dec-19,51301288769,"-1,144.95",WOODLANDS CARE CENTRE,CARE ESTABLISHMENT,Physical Disablity - Cost of Care,Countywide PD Service - Care,Nursing Care
Cambridgeshire County Council,17-Dec-19,51301288769,"-1,144.95",WOODLANDS CARE CENTRE,CARE ESTABLISHMENT,Physical Disablity - Cost of Care,Countywide PD Service - Care,Nursing Care
Cambridgeshire County Council,17-Dec-19,51301288769,"-1,144.95",WOODLANDS CARE CENTRE,CARE ESTABLISHMENT,Physical Disablity - Cost of Care,Countywide PD Service - Care,Nursing Care
Cambridgeshire County Council,17-Dec-19,51301287750,"-1,139.49",ROYAL MENCAP SOCIETY,CARE ESTABLISHMENT,LD - South Locality - Cost of Care,LD - South Cambs - Care,Residential Care
Cambridgeshire County Council,17-Dec-19,51301287750,"-1,139.49",ROYAL MENCAP SOCIETY,CARE ESTABLISHMENT,LD - South Locality - Cost of Care,LD - South Cambs - Care,Residential Care
Cambridgeshire County Council,17-Dec-19,51301287750,"-1,139.49",ROYAL MENCAP SOCIETY,CARE ESTABLISHMENT,LD - South Locality - Cost of Care,LD - South Cambs - Care,Residential Care
Cambridgeshire County Council,17-Dec-19,51301287750,"-1,139.49",ROYAL MENCAP SOCIETY,CARE ESTABLISHMENT,LD - South Locality - Cost of Care,LD - South Cambs - Care,Residential Care
Cambridgeshire County Council,17-Dec-19,51301287750,"-1,139.49",ROYAL MENCAP SOCIETY,CARE ESTABLISHMENT,LD - South Locality - Cost of Care,LD - South Cambs - Care,Residential Care
Cambridgeshire County Council,17-Dec-19,51301287750,"-1,139.49",ROYAL MENCAP SOCIETY,CARE ESTABLISHMENT,LD - South Locality - Cost of Care,LD - South Cambs - Care,Residential Care
Cambridgeshire County Council,17-Dec-19,51301287750,"-1,139.49",ROYAL MENCAP SOCIETY,CARE ESTABLISHMENT,LD - South Locality - Cost of Care,LD - South Cambs - Care,Residential Care
Cambridgeshire County Council,17-Dec-19,51301287750,"-1,139.49",ROYAL MENCAP SOCIETY,CARE ESTABLISHMENT,LD - South Locality - Cost of Care,LD - South Cambs - Care,Residential Care
Cambridgeshire County Council,17-Dec-19,51301287750,"-1,139.49",ROYAL MENCAP SOCIETY,CARE ESTABLISHMENT,LD - South Locality - Cost of Care,LD - South Cambs - Care,Residential Care
Cambridgeshire County Council,17-Dec-19,51301287750,"-1,139.49",ROYAL MENCAP SOCIETY,CARE ESTABLISHMENT,LD - South Locality - Cost of Care,LD - South Cambs - Care,Residential Care
Cambridgeshire County Council,17-Dec-19,51301287750,"-1,139.49",ROYAL MENCAP SOCIETY,CARE ESTABLISHMENT,LD - South Locality - Cost of Care,LD - South Cambs - Care,Residential Care
Cambridgeshire County Council,17-Dec-19,51301287750,"-1,139.49",ROYAL MENCAP SOCIETY,CARE ESTABLISHMENT,LD - South Locality - Cost of Care,LD - South Cambs - Care,Residential Care
Cambridgeshire County Council,17-Dec-19,51301287750,"-1,139.49",ROYAL MENCAP SOCIETY,CARE ESTABLISHMENT,LD - South Locality - Cost of Care,LD - South Cambs - Care,Residential Care
Cambridgeshire County Council,17-Dec-19,51301287750,"-1,139.49",ROYAL MENCAP SOCIETY,CARE ESTABLISHMENT,LD - South Locality - Cost of Care,LD - South Cambs - Care,Residential Care
Cambridgeshire County Council,17-Dec-19,51301287750,"-1,139.49",ROYAL MENCAP SOCIETY,CARE ESTABLISHMENT,LD - South Locality - Cost of Care,LD - South Cambs - Care,Residential Care
Cambridgeshire County Council,17-Dec-19,51301287750,"-1,139.49",ROYAL MENCAP SOCIETY,CARE ESTABLISHMENT,LD - South Locality - Cost of Care,LD - South Cambs - Care,Residential Care
Cambridgeshire County Council,17-Dec-19,51301287750,"-1,139.49",ROYAL MENCAP SOCIETY,CARE ESTABLISHMENT,LD - South Locality - Cost of Care,LD - South Cambs - Care,Residential Care
Cambridgeshire County Council,17-Dec-19,51301287750,"-1,139.49",ROYAL MENCAP SOCIETY,CARE ESTABLISHMENT,LD - South Locality - Cost of Care,LD - South Cambs - Care,Residential Care
Cambridgeshire County Council,17-Dec-19,51301287750,"-1,139.49",ROYAL MENCAP SOCIETY,CARE ESTABLISHMENT,LD - South Locality - Cost of Care,LD - South Cambs - Care,Residential Care
Cambridgeshire County Council,17-Dec-19,51301287750,"-1,139.49",ROYAL MENCAP SOCIETY,CARE ESTABLISHMENT,LD - South Locality - Cost of Care,LD - South Cambs - Care,Residential Care
Cambridgeshire County Council,17-Dec-19,51301287750,"-1,139.49",ROYAL MENCAP SOCIETY,CARE ESTABLISHMENT,LD - South Locality - Cost of Care,LD - South Cambs - Care,Residential Care
Cambridgeshire County Council,17-Dec-19,51301287750,"-1,139.49",ROYAL MENCAP SOCIETY,CARE ESTABLISHMENT,LD - South Locality - Cost of Care,LD - South Cambs - Care,Residential Care
Cambridgeshire County Council,17-Dec-19,51301287750,"-1,139.49",ROYAL MENCAP SOCIETY,CARE ESTABLISHMENT,LD - South Locality - Cost of Care,LD - South Cambs - Care,Residential Care
Cambridgeshire County Council,17-Dec-19,51301287750,"-1,139.49",ROYAL MENCAP SOCIETY,CARE ESTABLISHMENT,LD - South Locality - Cost of Care,LD - South Cambs - Care,Residential Care
Cambridgeshire County Council,17-Dec-19,51301287750,"-1,139.49",ROYAL MENCAP SOCIETY,CARE ESTABLISHMENT,LD - South Locality - Cost of Care,LD - South Cambs - Care,Residential Care
Cambridgeshire County Council,17-Dec-19,51301287750,"-1,139.49",ROYAL MENCAP SOCIETY,CARE ESTABLISHMENT,LD - South Locality - Cost of Care,LD - South Cambs - Care,Residential Care
Cambridgeshire County Council,17-Dec-19,51301287750,"-1,139.49",ROYAL MENCAP SOCIETY,CARE ESTABLISHMENT,LD - South Locality - Cost of Care,LD - South Cambs - Care,Residential Care
Cambridgeshire County Council,17-Dec-19,51301287750,"-1,139.49",ROYAL MENCAP SOCIETY,CARE ESTABLISHMENT,LD - South Locality - Cost of Care,LD - South Cambs - Care,Residential Care
Cambridgeshire County Council,17-Dec-19,51301287750,"-1,139.49",ROYAL MENCAP SOCIETY,CARE ESTABLISHMENT,LD - South Locality - Cost of Care,LD - South Cambs - Care,Residential Care
Cambridgeshire County Council,17-Dec-19,51301287750,"-1,139.49",ROYAL MENCAP SOCIETY,CARE ESTABLISHMENT,LD - South Locality - Cost of Care,LD - South Cambs - Care,Residential Care
Cambridgeshire County Council,17-Dec-19,51301287750,"-1,139.49",ROYAL MENCAP SOCIETY,CARE ESTABLISHMENT,LD - South Locality - Cost of Care,LD - South Cambs - Care,Residential Care
Cambridgeshire County Council,17-Dec-19,51301287750,"-1,139.49",ROYAL MENCAP SOCIETY,CARE ESTABLISHMENT,LD - South Locality - Cost of Care,LD - South Cambs - Care,Residential Care
Cambridgeshire County Council,17-Dec-19,51301287750,"-1,139.49",ROYAL MENCAP SOCIETY,CARE ESTABLISHMENT,LD - South Locality - Cost of Care,LD - South Cambs - Care,Residential Care
Cambridgeshire County Council,17-Dec-19,51301287750,"-1,139.49",ROYAL MENCAP SOCIETY,CARE ESTABLISHMENT,LD - South Locality - Cost of Care,LD - South Cambs - Care,Residential Care
Cambridgeshire County Council,17-Dec-19,51301287750,"-1,139.49",ROYAL MENCAP SOCIETY,CARE ESTABLISHMENT,LD - South Locality - Cost of Care,LD - South Cambs - Care,Residential Care
Cambridgeshire County Council,17-Dec-19,51301287750,"-1,139.49",ROYAL MENCAP SOCIETY,CARE ESTABLISHMENT,LD - South Locality - Cost of Care,LD - South Cambs - Care,Residential Care
Cambridgeshire County Council,17-Dec-19,51301287750,"-1,139.49",ROYAL MENCAP SOCIETY,CARE ESTABLISHMENT,LD - South Locality - Cost of Care,LD - South Cambs - Care,Residential Care
Cambridgeshire County Council,17-Dec-19,51301287750,"-1,139.49",ROYAL MENCAP SOCIETY,CARE ESTABLISHMENT,LD - South Locality - Cost of Care,LD - South Cambs - Care,Residential Care
Cambridgeshire County Council,17-Dec-19,51301287750,"-1,139.49",ROYAL MENCAP SOCIETY,CARE ESTABLISHMENT,LD - South Locality - Cost of Care,LD - South Cambs - Care,Residential Care
Cambridgeshire County Council,17-Dec-19,51301287750,"-1,139.49",ROYAL MENCAP SOCIETY,CARE ESTABLISHMENT,LD - South Locality - Cost of Care,LD - South Cambs - Care,Residential Care
Cambridgeshire County Council,17-Dec-19,51301287750,"-1,139.49",ROYAL MENCAP SOCIETY,CARE ESTABLISHMENT,LD - South Locality - Cost of Care,LD - South Cambs - Care,Residential Care
Cambridgeshire County Council,17-Dec-19,51301287750,"-1,139.49",ROYAL MENCAP SOCIETY,CARE ESTABLISHMENT,LD - South Locality - Cost of Care,LD - South Cambs - Care,Residential Care
Cambridgeshire County Council,17-Dec-19,51301287750,"-1,139.49",ROYAL MENCAP SOCIETY,CARE ESTABLISHMENT,LD - South Locality - Cost of Care,LD - South Cambs - Care,Residential Care
Cambridgeshire County Council,17-Dec-19,51301287750,"-1,139.49",ROYAL MENCAP SOCIETY,CARE ESTABLISHMENT,LD - South Locality - Cost of Care,LD - South Cambs - Care,Residential Care
Cambridgeshire County Council,17-Dec-19,51301287750,"-1,139.49",ROYAL MENCAP SOCIETY,CARE ESTABLISHMENT,LD - South Locality - Cost of Care,LD - South Cambs - Care,Residential Care
Cambridgeshire County Council,17-Dec-19,51301287750,"-1,139.49",ROYAL MENCAP SOCIETY,CARE ESTABLISHMENT,LD - South Locality - Cost of Care,LD - South Cambs - Care,Residential Care
Cambridgeshire County Council,17-Dec-19,51301287750,"-1,139.49",ROYAL MENCAP SOCIETY,CARE ESTABLISHMENT,LD - South Locality - Cost of Care,LD - South Cambs - Care,Residential Care
Cambridgeshire County Council,17-Dec-19,51301287750,"-1,139.49",ROYAL MENCAP SOCIETY,CARE ESTABLISHMENT,LD - South Locality - Cost of Care,LD - South Cambs - Care,Residential Care
Cambridgeshire County Council,17-Dec-19,51301287750,"-1,139.49",ROYAL MENCAP SOCIETY,CARE ESTABLISHMENT,LD - South Locality - Cost of Care,LD - South Cambs - Care,Residential Care
Cambridgeshire County Council,17-Dec-19,51301287750,"-1,139.49",ROYAL MENCAP SOCIETY,CARE ESTABLISHMENT,LD - South Locality - Cost of Care,LD - South Cambs - Care,Residential Care
Cambridgeshire County Council,17-Dec-19,51301287750,"-1,139.49",ROYAL MENCAP SOCIETY,CARE ESTABLISHMENT,LD - South Locality - Cost of Care,LD - South Cambs - Care,Residential Care
Cambridgeshire County Council,17-Dec-19,51301287750,"-1,139.49",ROYAL MENCAP SOCIETY,CARE ESTABLISHMENT,LD - South Locality - Cost of Care,LD - South Cambs - Care,Residential Care
Cambridgeshire County Council,17-Dec-19,51301287750,"-1,139.49",ROYAL MENCAP SOCIETY,CARE ESTABLISHMENT,LD - South Locality - Cost of Care,LD - South Cambs - Care,Residential Care
Cambridgeshire County Council,17-Dec-19,51301287750,"-1,139.49",ROYAL MENCAP SOCIETY,CARE ESTABLISHMENT,LD - South Locality - Cost of Care,LD - South Cambs - Care,Residential Care
Cambridgeshire County Council,17-Dec-19,51301287750,"-1,139.49",ROYAL MENCAP SOCIETY,CARE ESTABLISHMENT,LD - South Locality - Cost of Care,LD - South Cambs - Care,Residential Care
Cambridgeshire County Council,17-Dec-19,51301287750,"-1,139.49",ROYAL MENCAP SOCIETY,CARE ESTABLISHMENT,LD - South Locality - Cost of Care,LD - South Cambs - Care,Residential Care
Cambridgeshire County Council,17-Dec-19,51301271808,"-1,138.66",CARE MANAGEMENT GROUP (64-66 CARLTON),CARE ESTABLISHMENT,LD - East Locality - Cost of Care,LD - East Cambs - Special Needs,Residential Care
Cambridgeshire County Council,13-Dec-19,51301284695,"-1,135.25",2 CHEVERIL LANE (VOYAGE),CARE ESTABLISHMENT,LD - Hunts Locality - Cost of Care,LD - Huntingdonshire - Care,Supported Living
Cambridgeshire County Council,13-Dec-19,51301284695,"-1,135.25",2 CHEVERIL LANE (VOYAGE),CARE ESTABLISHMENT,LD - Hunts Locality - Cost of Care,LD - Huntingdonshire - Care,Supported Living
Cambridgeshire County Council,13-Dec-19,51301284695,"-1,135.25",2 CHEVERIL LANE (VOYAGE),CARE ESTABLISHMENT,LD - Hunts Locality - Cost of Care,LD - Huntingdonshire - Care,Supported Living
Cambridgeshire County Council,13-Dec-19,51301284695,"-1,135.25",2 CHEVERIL LANE (VOYAGE),CARE ESTABLISHMENT,LD - Hunts Locality - Cost of Care,LD - Huntingdonshire - Care,Supported Living
Cambridgeshire County Council,13-Dec-19,51301284695,"-1,135.25",2 CHEVERIL LANE (VOYAGE),CARE ESTABLISHMENT,LD - Hunts Locality - Cost of Care,LD - Huntingdonshire - Care,Supported Living
Cambridgeshire County Council,13-Dec-19,51301284695,"-1,135.25",2 CHEVERIL LANE (VOYAGE),CARE ESTABLISHMENT,LD - Hunts Locality - Cost of Care,LD - Huntingdonshire - Care,Supported Living
Cambridgeshire County Council,13-Dec-19,51301284695,"-1,135.25",2 CHEVERIL LANE (VOYAGE),CARE ESTABLISHMENT,LD - Hunts Locality - Cost of Care,LD - Huntingdonshire - Care,Supported Living
Cambridgeshire County Council,13-Dec-19,51301284695,"-1,135.25",2 CHEVERIL LANE (VOYAGE),CARE ESTABLISHMENT,LD - Hunts Locality - Cost of Care,LD - Huntingdonshire - Care,Supported Living
Cambridgeshire County Council,13-Dec-19,51301284695,"-1,135.25",2 CHEVERIL LANE (VOYAGE),CARE ESTABLISHMENT,LD - Hunts Locality - Cost of Care,LD - Huntingdonshire - Care,Supported Living
Cambridgeshire County Council,17-Dec-19,51301288881,"-1,134.44",CHERRY HINTON NURSING HOME,CARE ESTABLISHMENT,OP - City & South Locality - Cost of Care,Older People - City & South - Care,Nursing Care
Cambridgeshire County Council,17-Dec-19,51301288881,"-1,134.44",CHERRY HINTON NURSING HOME,CARE ESTABLISHMENT,OP - City & South Locality - Cost of Care,Older People - City & South - Care,Nursing Care
Cambridgeshire County Council,17-Dec-19,51301288881,"-1,134.44",CHERRY HINTON NURSING HOME,CARE ESTABLISHMENT,OP - City & South Locality - Cost of Care,Older People - City & South - Care,Nursing Care
Cambridgeshire County Council,17-Dec-19,51301288881,"-1,134.44",CHERRY HINTON NURSING HOME,CARE ESTABLISHMENT,OP - City & South Locality - Cost of Care,Older People - City & South - Care,Nursing Care
Cambridgeshire County Council,17-Dec-19,51301288881,"-1,134.44",CHERRY HINTON NURSING HOME,CARE ESTABLISHMENT,OP - City & South Locality - Cost of Care,Older People - City & South - Care,Nursing Care
Cambridgeshire County Council,17-Dec-19,51301288881,"-1,134.44",CHERRY HINTON NURSING HOME,CARE ESTABLISHMENT,OP - City & South Locality - Cost of Care,Older People - City & South - Care,Nursing Care
Cambridgeshire County Council,17-Dec-19,51301288881,"-1,134.44",CHERRY HINTON NURSING HOME,CARE ESTABLISHMENT,OP - City & South Locality - Cost of Care,Older People - City & South - Care,Nursing Care
Cambridgeshire County Council,17-Dec-19,51301288881,"-1,134.44",CHERRY HINTON NURSING HOME,CARE ESTABLISHMENT,OP - City & South Locality - Cost of Care,Older People - City & South - Care,Nursing Care
Cambridgeshire County Council,13-Dec-19,51301283422,"-1,133.94",CARETRUST CAMBRIDGESHIRE,CARE ESTABLISHMENT,Physical Disablity - Cost of Care,Countywide PD Service - Care,Domiciliary Care
Cambridgeshire County Council,13-Dec-19,51301285332,"-1,130.00",VOYAGE,CARE ESTABLISHMENT,LD - Young Adults Team,LD - Young Adults - Care,Supported Living
Cambridgeshire County Council,05-Dec-19,51301270198,"-1,128.95",ALDERTON HOUSE,CARE ESTABLISHMENT,LD - East Locality - Cost of Care,LD - East Cambs - Care,Residential Care
Cambridgeshire County Council,13-Dec-19,51301285276,"-1,128.66",VOYAGE,CARE ESTABLISHMENT,LD - South Locality - Cost of Care,LD - South Cambs - Care,Supported Living
Cambridgeshire County Council,13-Dec-19,51301285276,"-1,128.66",VOYAGE,CARE ESTABLISHMENT,LD - South Locality - Cost of Care,LD - South Cambs - Care,Supported Living
Cambridgeshire County Council,13-Dec-19,51301285276,"-1,128.66",VOYAGE,CARE ESTABLISHMENT,LD - South Locality - Cost of Care,LD - South Cambs - Care,Supported Living
Cambridgeshire County Council,13-Dec-19,51301285276,"-1,128.66",VOYAGE,CARE ESTABLISHMENT,LD - South Locality - Cost of Care,LD - South Cambs - Care,Supported Living
Cambridgeshire County Council,13-Dec-19,51301285276,"-1,128.66",VOYAGE,CARE ESTABLISHMENT,LD - South Locality - Cost of Care,LD - South Cambs - Care,Supported Living
Cambridgeshire County Council,13-Dec-19,51301285276,"-1,128.66",VOYAGE,CARE ESTABLISHMENT,LD - South Locality - Cost of Care,LD - South Cambs - Care,Supported Living
Cambridgeshire County Council,13-Dec-19,51301285276,"-1,128.66",VOYAGE,CARE ESTABLISHMENT,LD - South Locality - Cost of Care,LD - South Cambs - Care,Supported Living
Cambridgeshire County Council,13-Dec-19,51301285276,"-1,128.66",VOYAGE,CARE ESTABLISHMENT,LD - South Locality - Cost of Care,LD - South Cambs - Care,Supported Living
Cambridgeshire County Council,13-Dec-19,51301285276,"-1,128.66",VOYAGE,CARE ESTABLISHMENT,LD - South Locality - Cost of Care,LD - South Cambs - Care,Supported Living
Cambridgeshire County Council,13-Dec-19,51301284662,"-1,127.48",17 HAMLETT CLOSE (VOYAGE),CARE ESTABLISHMENT,LD - Hunts Locality - Cost of Care,LD - Huntingdonshire - Care,Supported Living
Cambridgeshire County Council,13-Dec-19,51301284662,"-1,127.48",17 HAMLETT CLOSE (VOYAGE),CARE ESTABLISHMENT,LD - Hunts Locality - Cost of Care,LD - Huntingdonshire - Care,Supported Living
Cambridgeshire County Council,13-Dec-19,51301284662,"-1,127.48",17 HAMLETT CLOSE (VOYAGE),CARE ESTABLISHMENT,LD - Hunts Locality - Cost of Care,LD - Huntingdonshire - Care,Supported Living
Cambridgeshire County Council,13-Dec-19,51301284662,"-1,127.48",17 HAMLETT CLOSE (VOYAGE),CARE ESTABLISHMENT,LD - Hunts Locality - Cost of Care,LD - Huntingdonshire - Care,Supported Living
Cambridgeshire County Council,13-Dec-19,51301284662,"-1,127.48",17 HAMLETT CLOSE (VOYAGE),CARE ESTABLISHMENT,LD - Hunts Locality - Cost of Care,LD - Huntingdonshire - Care,Supported Living
Cambridgeshire County Council,13-Dec-19,51301284662,"-1,127.48",17 HAMLETT CLOSE (VOYAGE),CARE ESTABLISHMENT,LD - Hunts Locality - Cost of Care,LD - Huntingdonshire - Care,Supported Living
Cambridgeshire County Council,13-Dec-19,51301284662,"-1,127.48",17 HAMLETT CLOSE (VOYAGE),CARE ESTABLISHMENT,LD - Hunts Locality - Cost of Care,LD - Huntingdonshire - Care,Supported Living
Cambridgeshire County Council,13-Dec-19,51301284662,"-1,127.48",17 HAMLETT CLOSE (VOYAGE),CARE ESTABLISHMENT,LD - Hunts Locality - Cost of Care,LD - Huntingdonshire - Care,Supported Living
Cambridgeshire County Council,13-Dec-19,51301284662,"-1,127.48",17 HAMLETT CLOSE (VOYAGE),CARE ESTABLISHMENT,LD - Hunts Locality - Cost of Care,LD - Huntingdonshire - Care,Supported Living
Cambridgeshire County Council,05-Dec-19,51301277430,"-1,120.95",RENTON COURT (VOYAGE),CARE ESTABLISHMENT,LD - Hunts Locality - Cost of Care,LD - Huntingdonshire - Care,Supported Living
Cambridgeshire County Council,13-Dec-19,51301285222,"-1,115.96",VOYAGE,CARE ESTABLISHMENT,LD - South Locality - Cost of Care,LD - South Cambs - Care,Domiciliary Care
Cambridgeshire County Council,13-Dec-19,51301285222,"-1,115.96",VOYAGE,CARE ESTABLISHMENT,LD - South Locality - Cost of Care,LD - South Cambs - Care,Domiciliary Care
Cambridgeshire County Council,13-Dec-19,51301285222,"-1,115.96",VOYAGE,CARE ESTABLISHMENT,LD - South Locality - Cost of Care,LD - South Cambs - Care,Domiciliary Care
Cambridgeshire County Council,13-Dec-19,51301285222,"-1,115.96",VOYAGE,CARE ESTABLISHMENT,LD - South Locality - Cost of Care,LD - South Cambs - Care,Domiciliary Care
Cambridgeshire County Council,13-Dec-19,51301285222,"-1,115.96",VOYAGE,CARE ESTABLISHMENT,LD - South Locality - Cost of Care,LD - South Cambs - Care,Domiciliary Care
Cambridgeshire County Council,13-Dec-19,51301285222,"-1,115.96",VOYAGE,CARE ESTABLISHMENT,LD - South Locality - Cost of Care,LD - South Cambs - Care,Domiciliary Care
Cambridgeshire County Council,13-Dec-19,51301285222,"-1,115.96",VOYAGE,CARE ESTABLISHMENT,LD - South Locality - Cost of Care,LD - South Cambs - Care,Domiciliary Care
Cambridgeshire County Council,13-Dec-19,51301285222,"-1,115.96",VOYAGE,CARE ESTABLISHMENT,LD - South Locality - Cost of Care,LD - South Cambs - Care,Domiciliary Care
Cambridgeshire County Council,13-Dec-19,51301285222,"-1,115.96",VOYAGE,CARE ESTABLISHMENT,LD - South Locality - Cost of Care,LD - South Cambs - Care,Domiciliary Care
Cambridgeshire County Council,13-Dec-19,51301285187,"-1,109.84",VOYAGE,CARE ESTABLISHMENT,LD - South Locality - Cost of Care,LD - South Cambs - Care,Domiciliary Care
Cambridgeshire County Council,13-Dec-19,51301285187,"-1,109.84",VOYAGE,CARE ESTABLISHMENT,LD - South Locality - Cost of Care,LD - South Cambs - Care,Domiciliary Care
Cambridgeshire County Council,13-Dec-19,51301285187,"-1,109.84",VOYAGE,CARE ESTABLISHMENT,LD - South Locality - Cost of Care,LD - South Cambs - Care,Domiciliary Care
Cambridgeshire County Council,13-Dec-19,51301285187,"-1,109.84",VOYAGE,CARE ESTABLISHMENT,LD - South Locality - Cost of Care,LD - South Cambs - Care,Domiciliary Care
Cambridgeshire County Council,13-Dec-19,51301285187,"-1,109.84",VOYAGE,CARE ESTABLISHMENT,LD - South Locality - Cost of Care,LD - South Cambs - Care,Domiciliary Care
Cambridgeshire County Council,13-Dec-19,51301285187,"-1,109.84",VOYAGE,CARE ESTABLISHMENT,LD - South Locality - Cost of Care,LD - South Cambs - Care,Domiciliary Care
Cambridgeshire County Council,13-Dec-19,51301285187,"-1,109.84",VOYAGE,CARE ESTABLISHMENT,LD - South Locality - Cost of Care,LD - South Cambs - Care,Domiciliary Care
Cambridgeshire County Council,13-Dec-19,51301285187,"-1,109.84",VOYAGE,CARE ESTABLISHMENT,LD - South Locality - Cost of Care,LD - South Cambs - Care,Domiciliary Care
Cambridgeshire County Council,13-Dec-19,51301285187,"-1,109.84",VOYAGE,CARE ESTABLISHMENT,LD - South Locality - Cost of Care,LD - South Cambs - Care,Domiciliary Care
Cambridgeshire County Council,17-Dec-19,51301288774,"-1,100.00",WOODLANDS CARE CENTRE,CARE ESTABLISHMENT,OPMH - Under 65,Older People Mental Health - Under 65's,Residential Care
Cambridgeshire County Council,17-Dec-19,51301288774,"-1,100.00",WOODLANDS CARE CENTRE,CARE ESTABLISHMENT,OPMH - Under 65,Older People Mental Health - Under 65's,Residential Care
Cambridgeshire County Council,17-Dec-19,51301288774,"-1,100.00",WOODLANDS CARE CENTRE,CARE ESTABLISHMENT,OPMH - Under 65,Older People Mental Health - Under 65's,Residential Care
Cambridgeshire County Council,17-Dec-19,51301288774,"-1,100.00",WOODLANDS CARE CENTRE,CARE ESTABLISHMENT,OPMH - Under 65,Older People Mental Health - Under 65's,Residential Care
Cambridgeshire County Council,17-Dec-19,51301288774,"-1,100.00",WOODLANDS CARE CENTRE,CARE ESTABLISHMENT,OPMH - Under 65,Older People Mental Health - Under 65's,Residential Care
Cambridgeshire County Council,17-Dec-19,51301288774,"-1,100.00",WOODLANDS CARE CENTRE,CARE ESTABLISHMENT,OPMH - Under 65,Older People Mental Health - Under 65's,Residential Care
Cambridgeshire County Council,17-Dec-19,51301288774,"-1,100.00",WOODLANDS CARE CENTRE,CARE ESTABLISHMENT,OPMH - Under 65,Older People Mental Health - Under 65's,Residential Care
Cambridgeshire County Council,17-Dec-19,51301288774,"-1,100.00",WOODLANDS CARE CENTRE,CARE ESTABLISHMENT,OPMH - Under 65,Older People Mental Health - Under 65's,Residential Care
Cambridgeshire County Council,17-Dec-19,51301288774,"-1,100.00",WOODLANDS CARE CENTRE,CARE ESTABLISHMENT,OPMH - Under 65,Older People Mental Health - Under 65's,Residential Care
Cambridgeshire County Council,17-Dec-19,51301288774,"-1,100.00",WOODLANDS CARE CENTRE,CARE ESTABLISHMENT,OPMH - Under 65,Older People Mental Health - Under 65's,Residential Care
Cambridgeshire County Council,17-Dec-19,51301288774,"-1,100.00",WOODLANDS CARE CENTRE,CARE ESTABLISHMENT,OPMH - Under 65,Older People Mental Health - Under 65's,Residential Care
Cambridgeshire County Council,17-Dec-19,51301288774,"-1,100.00",WOODLANDS CARE CENTRE,CARE ESTABLISHMENT,OPMH - Under 65,Older People Mental Health - Under 65's,Residential Care
Cambridgeshire County Council,17-Dec-19,51301288774,"-1,100.00",WOODLANDS CARE CENTRE,CARE ESTABLISHMENT,OPMH - Under 65,Older People Mental Health - Under 65's,Residential Care
Cambridgeshire County Council,17-Dec-19,51301288774,"-1,100.00",WOODLANDS CARE CENTRE,CARE ESTABLISHMENT,OPMH - Under 65,Older People Mental Health - Under 65's,Residential Care
Cambridgeshire County Council,05-Dec-19,51301272261,"-1,091.65",GUYATT HOUSE CARE LTD,CARE ESTABLISHMENT,LD - East Locality - Cost of Care,LD - East Cambs - Special Needs,Domiciliary Care
Cambridgeshire County Council,13-Dec-19,51301285358,"-1,088.46",VOYAGE,CARE ESTABLISHMENT,OPMH - Hunts & Fens,Older People Mental Health Fenland,Supported Living
Cambridgeshire County Council,13-Dec-19,51301285358,"-1,088.46",VOYAGE,CARE ESTABLISHMENT,OPMH - Hunts & Fens,Older People Mental Health Fenland,Supported Living
Cambridgeshire County Council,13-Dec-19,51301285358,"-1,088.46",VOYAGE,CARE ESTABLISHMENT,OPMH - Hunts & Fens,Older People Mental Health Fenland,Supported Living
Cambridgeshire County Council,13-Dec-19,51301285358,"-1,088.46",VOYAGE,CARE ESTABLISHMENT,OPMH - Hunts & Fens,Older People Mental Health Fenland,Supported Living
Cambridgeshire County Council,13-Dec-19,51301285358,"-1,088.46",VOYAGE,CARE ESTABLISHMENT,OPMH - Hunts & Fens,Older People Mental Health Fenland,Supported Living
Cambridgeshire County Council,13-Dec-19,51301285358,"-1,088.46",VOYAGE,CARE ESTABLISHMENT,OPMH - Hunts & Fens,Older People Mental Health Fenland,Supported Living
Cambridgeshire County Council,13-Dec-19,51301285358,"-1,088.46",VOYAGE,CARE ESTABLISHMENT,OPMH - Hunts & Fens,Older People Mental Health Fenland,Supported Living
Cambridgeshire County Council,13-Dec-19,51301285358,"-1,088.46",VOYAGE,CARE ESTABLISHMENT,OPMH - Hunts & Fens,Older People Mental Health Fenland,Supported Living
Cambridgeshire County Council,13-Dec-19,51301285358,"-1,088.46",VOYAGE,CARE ESTABLISHMENT,OPMH - Hunts & Fens,Older People Mental Health Fenland,Supported Living
Cambridgeshire County Council,13-Dec-19,51301237285,"-1,085.69",VOYAGE (LICHFIELD),CARE ESTABLISHMENT,LD - Fenland Locality - Cost of Care,LD - Fenland  - Special Needs,Supported Living
Cambridgeshire County Council,13-Dec-19,51301239782,"-1,085.69",VOYAGE (LICHFIELD),CARE ESTABLISHMENT,LD - Fenland Locality - Cost of Care,LD - Fenland  - Special Needs,Supported Living
Cambridgeshire County Council,13-Dec-19,51301239781,"-1,085.69",VOYAGE (LICHFIELD),CARE ESTABLISHMENT,LD - Fenland Locality - Cost of Care,LD - Fenland  - Special Needs,Supported Living
Cambridgeshire County Council,13-Dec-19,51301237282,"-1,085.69",VOYAGE (LICHFIELD),CARE ESTABLISHMENT,LD - Fenland Locality - Cost of Care,LD - Fenland  - Special Needs,Supported Living
Cambridgeshire County Council,13-Dec-19,51301285019,"-1,082.15",FLORIDA AVENUE (VOYAGE),CARE ESTABLISHMENT,LD - Hunts Locality - Cost of Care,LD - Huntingdonshire - Care,Supported Living
Cambridgeshire County Council,13-Dec-19,51301285019,"-1,082.15",FLORIDA AVENUE (VOYAGE),CARE ESTABLISHMENT,LD - Hunts Locality - Cost of Care,LD - Huntingdonshire - Care,Supported Living
Cambridgeshire County Council,13-Dec-19,51301285019,"-1,082.15",FLORIDA AVENUE (VOYAGE),CARE ESTABLISHMENT,LD - Hunts Locality - Cost of Care,LD - Huntingdonshire - Care,Supported Living
Cambridgeshire County Council,13-Dec-19,51301285019,"-1,082.15",FLORIDA AVENUE (VOYAGE),CARE ESTABLISHMENT,LD - Hunts Locality - Cost of Care,LD - Huntingdonshire - Care,Supported Living
Cambridgeshire County Council,13-Dec-19,51301285019,"-1,082.15",FLORIDA AVENUE (VOYAGE),CARE ESTABLISHMENT,LD - Hunts Locality - Cost of Care,LD - Huntingdonshire - Care,Supported Living
Cambridgeshire County Council,13-Dec-19,51301285019,"-1,082.15",FLORIDA AVENUE (VOYAGE),CARE ESTABLISHMENT,LD - Hunts Locality - Cost of Care,LD - Huntingdonshire - Care,Supported Living
Cambridgeshire County Council,13-Dec-19,51301285019,"-1,082.15",FLORIDA AVENUE (VOYAGE),CARE ESTABLISHMENT,LD - Hunts Locality - Cost of Care,LD - Huntingdonshire - Care,Supported Living
Cambridgeshire County Council,13-Dec-19,51301285019,"-1,082.15",FLORIDA AVENUE (VOYAGE),CARE ESTABLISHMENT,LD - Hunts Locality - Cost of Care,LD - Huntingdonshire - Care,Supported Living
Cambridgeshire County Council,13-Dec-19,51301285019,"-1,082.15",FLORIDA AVENUE (VOYAGE),CARE ESTABLISHMENT,LD - Hunts Locality - Cost of Care,LD - Huntingdonshire - Care,Supported Living
Cambridgeshire County Council,13-Dec-19,51301284723,"-1,074.68",VOYAGE,CARE ESTABLISHMENT,LD - South Locality - Cost of Care,LD - South Cambs - Care,Supported Living
Cambridgeshire County Council,13-Dec-19,51301284723,"-1,074.68",VOYAGE,CARE ESTABLISHMENT,LD - South Locality - Cost of Care,LD - South Cambs - Care,Supported Living
Cambridgeshire County Council,13-Dec-19,51301284723,"-1,074.68",VOYAGE,CARE ESTABLISHMENT,LD - South Locality - Cost of Care,LD - South Cambs - Care,Supported Living
Cambridgeshire County Council,13-Dec-19,51301284723,"-1,074.68",VOYAGE,CARE ESTABLISHMENT,LD - South Locality - Cost of Care,LD - South Cambs - Care,Supported Living
Cambridgeshire County Council,13-Dec-19,51301284723,"-1,074.68",VOYAGE,CARE ESTABLISHMENT,LD - South Locality - Cost of Care,LD - South Cambs - Care,Supported Living
Cambridgeshire County Council,13-Dec-19,51301284723,"-1,074.68",VOYAGE,CARE ESTABLISHMENT,LD - South Locality - Cost of Care,LD - South Cambs - Care,Supported Living
Cambridgeshire County Council,13-Dec-19,51301284723,"-1,074.68",VOYAGE,CARE ESTABLISHMENT,LD - South Locality - Cost of Care,LD - South Cambs - Care,Supported Living
Cambridgeshire County Council,13-Dec-19,51301284723,"-1,074.68",VOYAGE,CARE ESTABLISHMENT,LD - South Locality - Cost of Care,LD - South Cambs - Care,Supported Living
Cambridgeshire County Council,13-Dec-19,51301284723,"-1,074.68",VOYAGE,CARE ESTABLISHMENT,LD - South Locality - Cost of Care,LD - South Cambs - Care,Supported Living
Cambridgeshire County Council,13-Dec-19,51301283870,"-1,072.78",23 LIONS CROSS (VOYAGE),CARE ESTABLISHMENT,LD - Hunts Locality - Cost of Care,LD - Huntingdonshire - Care,Supported Living
Cambridgeshire County Council,13-Dec-19,51301283870,"-1,072.78",23 LIONS CROSS (VOYAGE),CARE ESTABLISHMENT,LD - Hunts Locality - Cost of Care,LD - Huntingdonshire - Care,Supported Living
Cambridgeshire County Council,13-Dec-19,51301283870,"-1,072.78",23 LIONS CROSS (VOYAGE),CARE ESTABLISHMENT,LD - Hunts Locality - Cost of Care,LD - Huntingdonshire - Care,Supported Living
Cambridgeshire County Council,13-Dec-19,51301283870,"-1,072.78",23 LIONS CROSS (VOYAGE),CARE ESTABLISHMENT,LD - Hunts Locality - Cost of Care,LD - Huntingdonshire - Care,Supported Living
Cambridgeshire County Council,13-Dec-19,51301283870,"-1,072.78",23 LIONS CROSS (VOYAGE),CARE ESTABLISHMENT,LD - Hunts Locality - Cost of Care,LD - Huntingdonshire - Care,Supported Living
Cambridgeshire County Council,13-Dec-19,51301283870,"-1,072.78",23 LIONS CROSS (VOYAGE),CARE ESTABLISHMENT,LD - Hunts Locality - Cost of Care,LD - Huntingdonshire - Care,Supported Living
Cambridgeshire County Council,13-Dec-19,51301283870,"-1,072.78",23 LIONS CROSS (VOYAGE),CARE ESTABLISHMENT,LD - Hunts Locality - Cost of Care,LD - Huntingdonshire - Care,Supported Living
Cambridgeshire County Council,13-Dec-19,51301283870,"-1,072.78",23 LIONS CROSS (VOYAGE),CARE ESTABLISHMENT,LD - Hunts Locality - Cost of Care,LD - Huntingdonshire - Care,Supported Living
Cambridgeshire County Council,13-Dec-19,51301283870,"-1,072.78",23 LIONS CROSS (VOYAGE),CARE ESTABLISHMENT,LD - Hunts Locality - Cost of Care,LD - Huntingdonshire - Care,Supported Living
Cambridgeshire County Council,05-Dec-19,51301278147,"-1,071.43",ASKHAM VILLAGE COMMUNITY LTD,CARE ESTABLISHMENT,OP - Fenland Locality - Cost of Care,Older People - Fenland - Care,Nursing Care
Cambridgeshire County Council,05-Dec-19,51301277411,"-1,064.04",RENTON COURT (VOYAGE),CARE ESTABLISHMENT,LD - Hunts Locality - Cost of Care,LD - Huntingdonshire - Care,Supported Living
Cambridgeshire County Council,05-Dec-19,51301277411,"-1,064.04",RENTON COURT (VOYAGE),CARE ESTABLISHMENT,LD - Hunts Locality - Cost of Care,LD - Huntingdonshire - Care,Supported Living
Cambridgeshire County Council,05-Dec-19,51301277411,"-1,064.04",RENTON COURT (VOYAGE),CARE ESTABLISHMENT,LD - Hunts Locality - Cost of Care,LD - Huntingdonshire - Care,Supported Living
Cambridgeshire County Council,05-Dec-19,51301277411,"-1,064.04",RENTON COURT (VOYAGE),CARE ESTABLISHMENT,LD - Hunts Locality - Cost of Care,LD - Huntingdonshire - Care,Supported Living
Cambridgeshire County Council,05-Dec-19,51301277411,"-1,064.04",RENTON COURT (VOYAGE),CARE ESTABLISHMENT,LD - Hunts Locality - Cost of Care,LD - Huntingdonshire - Care,Supported Living
Cambridgeshire County Council,13-Dec-19,51301284841,"-1,063.75",17 HAMLETT CLOSE (VOYAGE),CARE ESTABLISHMENT,LD - Hunts Locality - Cost of Care,LD - Huntingdonshire - Care,Supported Living
Cambridgeshire County Council,05-Dec-19,51301277430,"-1,061.36",RENTON COURT (VOYAGE),CARE ESTABLISHMENT,LD - Hunts Locality - Cost of Care,LD - Huntingdonshire - Care,Supported Living
Cambridgeshire County Council,13-Dec-19,51301284618,"-1,049.66",73 HIGH ROAD,CARE ESTABLISHMENT,LD - South Locality - Cost of Care,LD - South Cambs - Care,Supported Living
Cambridgeshire County Council,13-Dec-19,51301284618,"-1,049.66",73 HIGH ROAD,CARE ESTABLISHMENT,LD - South Locality - Cost of Care,LD - South Cambs - Care,Supported Living
Cambridgeshire County Council,13-Dec-19,51301284618,"-1,049.66",73 HIGH ROAD,CARE ESTABLISHMENT,LD - South Locality - Cost of Care,LD - South Cambs - Care,Supported Living
Cambridgeshire County Council,13-Dec-19,51301284618,"-1,049.66",73 HIGH ROAD,CARE ESTABLISHMENT,LD - South Locality - Cost of Care,LD - South Cambs - Care,Supported Living
Cambridgeshire County Council,13-Dec-19,51301284618,"-1,049.66",73 HIGH ROAD,CARE ESTABLISHMENT,LD - South Locality - Cost of Care,LD - South Cambs - Care,Supported Living
Cambridgeshire County Council,13-Dec-19,51301284618,"-1,049.66",73 HIGH ROAD,CARE ESTABLISHMENT,LD - South Locality - Cost of Care,LD - South Cambs - Care,Supported Living
Cambridgeshire County Council,13-Dec-19,51301284618,"-1,049.66",73 HIGH ROAD,CARE ESTABLISHMENT,LD - South Locality - Cost of Care,LD - South Cambs - Care,Supported Living
Cambridgeshire County Council,13-Dec-19,51301284618,"-1,049.66",73 HIGH ROAD,CARE ESTABLISHMENT,LD - South Locality - Cost of Care,LD - South Cambs - Care,Supported Living
Cambridgeshire County Council,13-Dec-19,51301284618,"-1,049.66",73 HIGH ROAD,CARE ESTABLISHMENT,LD - South Locality - Cost of Care,LD - South Cambs - Care,Supported Living
Cambridgeshire County Council,13-Dec-19,51301274903,"-1,044.12",VOYAGE (LICHFIELD),CARE ESTABLISHMENT,LD - Fenland Locality - Cost of Care,LD - Fenland  - Care,Residential Care
Cambridgeshire County Council,13-Dec-19,51301274903,"-1,044.12",VOYAGE (LICHFIELD),CARE ESTABLISHMENT,LD - Fenland Locality - Cost of Care,LD - Fenland  - Care,Residential Care
Cambridgeshire County Council,13-Dec-19,51301274903,"-1,044.12",VOYAGE (LICHFIELD),CARE ESTABLISHMENT,LD - Fenland Locality - Cost of Care,LD - Fenland  - Care,Residential Care
Cambridgeshire County Council,13-Dec-19,51301274903,"-1,044.12",VOYAGE (LICHFIELD),CARE ESTABLISHMENT,LD - Fenland Locality - Cost of Care,LD - Fenland  - Care,Residential Care
Cambridgeshire County Council,13-Dec-19,51301274903,"-1,044.12",VOYAGE (LICHFIELD),CARE ESTABLISHMENT,LD - Fenland Locality - Cost of Care,LD - Fenland  - Care,Residential Care
Cambridgeshire County Council,13-Dec-19,51301274903,"-1,044.12",VOYAGE (LICHFIELD),CARE ESTABLISHMENT,LD - Fenland Locality - Cost of Care,LD - Fenland  - Care,Residential Care
Cambridgeshire County Council,13-Dec-19,51301274903,"-1,044.12",VOYAGE (LICHFIELD),CARE ESTABLISHMENT,LD - Fenland Locality - Cost of Care,LD - Fenland  - Care,Residential Care
Cambridgeshire County Council,13-Dec-19,51301274903,"-1,044.12",VOYAGE (LICHFIELD),CARE ESTABLISHMENT,LD - Fenland Locality - Cost of Care,LD - Fenland  - Care,Residential Care
Cambridgeshire County Council,13-Dec-19,51301274903,"-1,044.12",VOYAGE (LICHFIELD),CARE ESTABLISHMENT,LD - Fenland Locality - Cost of Care,LD - Fenland  - Care,Residential Care
Cambridgeshire County Council,13-Dec-19,51301274903,"-1,044.12",VOYAGE (LICHFIELD),CARE ESTABLISHMENT,LD - Fenland Locality - Cost of Care,LD - Fenland  - Care,Residential Care
Cambridgeshire County Council,13-Dec-19,51301274903,"-1,044.12",VOYAGE (LICHFIELD),CARE ESTABLISHMENT,LD - Fenland Locality - Cost of Care,LD - Fenland  - Care,Residential Care
Cambridgeshire County Council,13-Dec-19,51301274903,"-1,044.12",VOYAGE (LICHFIELD),CARE ESTABLISHMENT,LD - Fenland Locality - Cost of Care,LD - Fenland  - Care,Residential Care
Cambridgeshire County Council,13-Dec-19,51301274903,"-1,044.12",VOYAGE (LICHFIELD),CARE ESTABLISHMENT,LD - Fenland Locality - Cost of Care,LD - Fenland  - Care,Residential Care
Cambridgeshire County Council,13-Dec-19,51301274903,"-1,044.12",VOYAGE (LICHFIELD),CARE ESTABLISHMENT,LD - Fenland Locality - Cost of Care,LD - Fenland  - Care,Residential Care
Cambridgeshire County Council,13-Dec-19,51301274903,"-1,044.12",VOYAGE (LICHFIELD),CARE ESTABLISHMENT,LD - Fenland Locality - Cost of Care,LD - Fenland  - Care,Residential Care
Cambridgeshire County Council,13-Dec-19,51301274903,"-1,044.12",VOYAGE (LICHFIELD),CARE ESTABLISHMENT,LD - Fenland Locality - Cost of Care,LD - Fenland  - Care,Residential Care
Cambridgeshire County Council,13-Dec-19,51301274903,"-1,044.12",VOYAGE (LICHFIELD),CARE ESTABLISHMENT,LD - Fenland Locality - Cost of Care,LD - Fenland  - Care,Residential Care
Cambridgeshire County Council,13-Dec-19,51301274903,"-1,044.12",VOYAGE (LICHFIELD),CARE ESTABLISHMENT,LD - Fenland Locality - Cost of Care,LD - Fenland  - Care,Residential Care
Cambridgeshire County Council,13-Dec-19,51301274903,"-1,044.12",VOYAGE (LICHFIELD),CARE ESTABLISHMENT,LD - Fenland Locality - Cost of Care,LD - Fenland  - Care,Residential Care
Cambridgeshire County Council,13-Dec-19,51301274903,"-1,044.12",VOYAGE (LICHFIELD),CARE ESTABLISHMENT,LD - Fenland Locality - Cost of Care,LD - Fenland  - Care,Residential Care
Cambridgeshire County Council,13-Dec-19,51301274903,"-1,044.12",VOYAGE (LICHFIELD),CARE ESTABLISHMENT,LD - Fenland Locality - Cost of Care,LD - Fenland  - Care,Residential Care
Cambridgeshire County Council,13-Dec-19,51301274903,"-1,044.12",VOYAGE (LICHFIELD),CARE ESTABLISHMENT,LD - Fenland Locality - Cost of Care,LD - Fenland  - Care,Residential Care
Cambridgeshire County Council,13-Dec-19,51301274903,"-1,044.12",VOYAGE (LICHFIELD),CARE ESTABLISHMENT,LD - Fenland Locality - Cost of Care,LD - Fenland  - Care,Residential Care
Cambridgeshire County Council,13-Dec-19,51301274903,"-1,044.12",VOYAGE (LICHFIELD),CARE ESTABLISHMENT,LD - Fenland Locality - Cost of Care,LD - Fenland  - Care,Residential Care
Cambridgeshire County Council,13-Dec-19,51301274903,"-1,044.12",VOYAGE (LICHFIELD),CARE ESTABLISHMENT,LD - Fenland Locality - Cost of Care,LD - Fenland  - Care,Residential Care
Cambridgeshire County Council,13-Dec-19,51301274903,"-1,044.12",VOYAGE (LICHFIELD),CARE ESTABLISHMENT,LD - Fenland Locality - Cost of Care,LD - Fenland  - Care,Residential Care
Cambridgeshire County Council,13-Dec-19,51301285406,"-1,032.12",VOYAGE,CARE ESTABLISHMENT,LD - South Locality - Cost of Care,LD - South Cambs - Care,Supported Living
Cambridgeshire County Council,13-Dec-19,51301285386,"-1,032.12",VOYAGE,CARE ESTABLISHMENT,LD - South Locality - Cost of Care,LD - South Cambs - Care,Supported Living
Cambridgeshire County Council,05-Dec-19,51301272675,"-1,026.89",CARETECH COMMUNITY SERVICES,CARE ESTABLISHMENT,LD - South Locality - Cost of Care,LD - South Cambs - Care,Residential Care
Cambridgeshire County Council,18-Dec-19,51301240037,"-1,019.63",SOCIAL CARE SOLUTIONS LTD,CARE ESTABLISHMENT,LD - Hunts Locality - Cost of Care,LD - Huntingdonshire - Special Needs,Supported Living
Cambridgeshire County Council,18-Dec-19,51301240038,"-1,019.63",SOCIAL CARE SOLUTIONS LTD,CARE ESTABLISHMENT,LD - Hunts Locality - Cost of Care,LD - Huntingdonshire - Special Needs,Supported Living
Cambridgeshire County Council,13-Dec-19,51301283857,"-1,018.78",23 LIONS CROSS (VOYAGE),CARE ESTABLISHMENT,LD - Hunts Locality - Cost of Care,LD - Huntingdonshire - Care,Supported Living
Cambridgeshire County Council,13-Dec-19,51301283857,"-1,018.78",23 LIONS CROSS (VOYAGE),CARE ESTABLISHMENT,LD - Hunts Locality - Cost of Care,LD - Huntingdonshire - Care,Supported Living
Cambridgeshire County Council,13-Dec-19,51301283857,"-1,018.78",23 LIONS CROSS (VOYAGE),CARE ESTABLISHMENT,LD - Hunts Locality - Cost of Care,LD - Huntingdonshire - Care,Supported Living
Cambridgeshire County Council,13-Dec-19,51301283857,"-1,018.78",23 LIONS CROSS (VOYAGE),CARE ESTABLISHMENT,LD - Hunts Locality - Cost of Care,LD - Huntingdonshire - Care,Supported Living
Cambridgeshire County Council,13-Dec-19,51301283857,"-1,018.78",23 LIONS CROSS (VOYAGE),CARE ESTABLISHMENT,LD - Hunts Locality - Cost of Care,LD - Huntingdonshire - Care,Supported Living
Cambridgeshire County Council,13-Dec-19,51301283857,"-1,018.78",23 LIONS CROSS (VOYAGE),CARE ESTABLISHMENT,LD - Hunts Locality - Cost of Care,LD - Huntingdonshire - Care,Supported Living
Cambridgeshire County Council,13-Dec-19,51301283857,"-1,018.78",23 LIONS CROSS (VOYAGE),CARE ESTABLISHMENT,LD - Hunts Locality - Cost of Care,LD - Huntingdonshire - Care,Supported Living
Cambridgeshire County Council,13-Dec-19,51301283857,"-1,018.78",23 LIONS CROSS (VOYAGE),CARE ESTABLISHMENT,LD - Hunts Locality - Cost of Care,LD - Huntingdonshire - Care,Supported Living
Cambridgeshire County Council,13-Dec-19,51301283857,"-1,018.78",23 LIONS CROSS (VOYAGE),CARE ESTABLISHMENT,LD - Hunts Locality - Cost of Care,LD - Huntingdonshire - Care,Supported Living
Cambridgeshire County Council,13-Dec-19,51301285218,"-1,018.62",VOYAGE,CARE ESTABLISHMENT,LD - South Locality - Cost of Care,LD - South Cambs - Care,Domiciliary Care
Cambridgeshire County Council,13-Dec-19,51301285218,"-1,018.62",VOYAGE,CARE ESTABLISHMENT,LD - South Locality - Cost of Care,LD - South Cambs - Care,Domiciliary Care
Cambridgeshire County Council,13-Dec-19,51301285218,"-1,018.62",VOYAGE,CARE ESTABLISHMENT,LD - South Locality - Cost of Care,LD - South Cambs - Care,Domiciliary Care
Cambridgeshire County Council,13-Dec-19,51301285218,"-1,018.62",VOYAGE,CARE ESTABLISHMENT,LD - South Locality - Cost of Care,LD - South Cambs - Care,Domiciliary Care
Cambridgeshire County Council,13-Dec-19,51301285218,"-1,018.62",VOYAGE,CARE ESTABLISHMENT,LD - South Locality - Cost of Care,LD - South Cambs - Care,Domiciliary Care
Cambridgeshire County Council,13-Dec-19,51301285218,"-1,018.62",VOYAGE,CARE ESTABLISHMENT,LD - South Locality - Cost of Care,LD - South Cambs - Care,Domiciliary Care
Cambridgeshire County Council,13-Dec-19,51301285218,"-1,018.62",VOYAGE,CARE ESTABLISHMENT,LD - South Locality - Cost of Care,LD - South Cambs - Care,Domiciliary Care
Cambridgeshire County Council,13-Dec-19,51301285218,"-1,018.62",VOYAGE,CARE ESTABLISHMENT,LD - South Locality - Cost of Care,LD - South Cambs - Care,Domiciliary Care
Cambridgeshire County Council,13-Dec-19,51301285218,"-1,018.62",VOYAGE,CARE ESTABLISHMENT,LD - South Locality - Cost of Care,LD - South Cambs - Care,Domiciliary Care
Cambridgeshire County Council,17-Dec-19,51301288924,"-1,015.56",ROSE LODGE,CARE ESTABLISHMENT,OP - Fenland Locality - Cost of Care,Older People - Fenland - Care,Nursing Care
Cambridgeshire County Council,17-Dec-19,51301288924,"-1,015.56",ROSE LODGE,CARE ESTABLISHMENT,OP - Fenland Locality - Cost of Care,Older People - Fenland - Care,Nursing Care
Cambridgeshire County Council,17-Dec-19,51301288924,"-1,015.56",ROSE LODGE,CARE ESTABLISHMENT,OP - Fenland Locality - Cost of Care,Older People - Fenland - Care,Nursing Care
Cambridgeshire County Council,17-Dec-19,51301288924,"-1,015.56",ROSE LODGE,CARE ESTABLISHMENT,OP - Fenland Locality - Cost of Care,Older People - Fenland - Care,Nursing Care
Cambridgeshire County Council,17-Dec-19,51301288924,"-1,015.56",ROSE LODGE,CARE ESTABLISHMENT,OP - Fenland Locality - Cost of Care,Older People - Fenland - Care,Nursing Care
Cambridgeshire County Council,17-Dec-19,51301288924,"-1,015.56",ROSE LODGE,CARE ESTABLISHMENT,OP - Fenland Locality - Cost of Care,Older People - Fenland - Care,Nursing Care
Cambridgeshire County Council,17-Dec-19,51301288924,"-1,015.56",ROSE LODGE,CARE ESTABLISHMENT,OP - Fenland Locality - Cost of Care,Older People - Fenland - Care,Nursing Care
Cambridgeshire County Council,17-Dec-19,51301288924,"-1,015.56",ROSE LODGE,CARE ESTABLISHMENT,OP - Fenland Locality - Cost of Care,Older People - Fenland - Care,Nursing Care
Cambridgeshire County Council,13-Dec-19,51301285278,"-1,012.44",VOYAGE,CARE ESTABLISHMENT,LD - Fenland Locality - Cost of Care,LD - Fenland  - Care,Supported Living
Cambridgeshire County Council,13-Dec-19,51301285278,"-1,012.44",VOYAGE,CARE ESTABLISHMENT,LD - Fenland Locality - Cost of Care,LD - Fenland  - Care,Supported Living
Cambridgeshire County Council,13-Dec-19,51301285278,"-1,012.44",VOYAGE,CARE ESTABLISHMENT,LD - Fenland Locality - Cost of Care,LD - Fenland  - Care,Supported Living
Cambridgeshire County Council,13-Dec-19,51301285278,"-1,012.44",VOYAGE,CARE ESTABLISHMENT,LD - Fenland Locality - Cost of Care,LD - Fenland  - Care,Supported Living
Cambridgeshire County Council,13-Dec-19,51301285278,"-1,012.44",VOYAGE,CARE ESTABLISHMENT,LD - Fenland Locality - Cost of Care,LD - Fenland  - Care,Supported Living
Cambridgeshire County Council,13-Dec-19,51301285278,"-1,012.44",VOYAGE,CARE ESTABLISHMENT,LD - Fenland Locality - Cost of Care,LD - Fenland  - Care,Supported Living
Cambridgeshire County Council,13-Dec-19,51301285278,"-1,012.44",VOYAGE,CARE ESTABLISHMENT,LD - Fenland Locality - Cost of Care,LD - Fenland  - Care,Supported Living
Cambridgeshire County Council,13-Dec-19,51301285278,"-1,012.44",VOYAGE,CARE ESTABLISHMENT,LD - Fenland Locality - Cost of Care,LD - Fenland  - Care,Supported Living
Cambridgeshire County Council,13-Dec-19,51301285278,"-1,012.44",VOYAGE,CARE ESTABLISHMENT,LD - Fenland Locality - Cost of Care,LD - Fenland  - Care,Supported Living
Cambridgeshire County Council,17-Dec-19,51301268291,"-1,009.55",BROAD OAKS VCT LTD,CARE ESTABLISHMENT,Physical Disablity - Cost of Care,Countywide PD Service - Care,Residential Care
Cambridgeshire County Council,17-Dec-19,51301268291,"-1,009.55",BROAD OAKS VCT LTD,CARE ESTABLISHMENT,Physical Disablity - Cost of Care,Countywide PD Service - Care,Residential Care
Cambridgeshire County Council,17-Dec-19,51301268291,"-1,009.55",BROAD OAKS VCT LTD,CARE ESTABLISHMENT,Physical Disablity - Cost of Care,Countywide PD Service - Care,Residential Care
Cambridgeshire County Council,17-Dec-19,51301268291,"-1,009.55",BROAD OAKS VCT LTD,CARE ESTABLISHMENT,Physical Disablity - Cost of Care,Countywide PD Service - Care,Residential Care
Cambridgeshire County Council,17-Dec-19,51301268291,"-1,009.55",BROAD OAKS VCT LTD,CARE ESTABLISHMENT,Physical Disablity - Cost of Care,Countywide PD Service - Care,Residential Care
Cambridgeshire County Council,17-Dec-19,51301268291,"-1,009.55",BROAD OAKS VCT LTD,CARE ESTABLISHMENT,Physical Disablity - Cost of Care,Countywide PD Service - Care,Residential Care
Cambridgeshire County Council,17-Dec-19,51301268291,"-1,009.55",BROAD OAKS VCT LTD,CARE ESTABLISHMENT,Physical Disablity - Cost of Care,Countywide PD Service - Care,Residential Care
Cambridgeshire County Council,17-Dec-19,51301268291,"-1,009.55",BROAD OAKS VCT LTD,CARE ESTABLISHMENT,Physical Disablity - Cost of Care,Countywide PD Service - Care,Residential Care
Cambridgeshire County Council,17-Dec-19,51301268291,"-1,009.55",BROAD OAKS VCT LTD,CARE ESTABLISHMENT,Physical Disablity - Cost of Care,Countywide PD Service - Care,Residential Care
Cambridgeshire County Council,17-Dec-19,51301268291,"-1,009.55",BROAD OAKS VCT LTD,CARE ESTABLISHMENT,Physical Disablity - Cost of Care,Countywide PD Service - Care,Residential Care
Cambridgeshire County Council,17-Dec-19,51301268291,"-1,009.55",BROAD OAKS VCT LTD,CARE ESTABLISHMENT,Physical Disablity - Cost of Care,Countywide PD Service - Care,Residential Care
Cambridgeshire County Council,17-Dec-19,51301268291,"-1,009.55",BROAD OAKS VCT LTD,CARE ESTABLISHMENT,Physical Disablity - Cost of Care,Countywide PD Service - Care,Residential Care
Cambridgeshire County Council,17-Dec-19,51301268291,"-1,009.55",BROAD OAKS VCT LTD,CARE ESTABLISHMENT,Physical Disablity - Cost of Care,Countywide PD Service - Care,Residential Care
Cambridgeshire County Council,17-Dec-19,51301268291,"-1,009.55",BROAD OAKS VCT LTD,CARE ESTABLISHMENT,Physical Disablity - Cost of Care,Countywide PD Service - Care,Residential Care
Cambridgeshire County Council,17-Dec-19,51301268291,"-1,009.55",BROAD OAKS VCT LTD,CARE ESTABLISHMENT,Physical Disablity - Cost of Care,Countywide PD Service - Care,Residential Care
Cambridgeshire County Council,17-Dec-19,51301268291,"-1,009.55",BROAD OAKS VCT LTD,CARE ESTABLISHMENT,Physical Disablity - Cost of Care,Countywide PD Service - Care,Residential Care
Cambridgeshire County Council,17-Dec-19,51301268291,"-1,009.55",BROAD OAKS VCT LTD,CARE ESTABLISHMENT,Physical Disablity - Cost of Care,Countywide PD Service - Care,Residential Care
Cambridgeshire County Council,17-Dec-19,51301268291,"-1,009.55",BROAD OAKS VCT LTD,CARE ESTABLISHMENT,Physical Disablity - Cost of Care,Countywide PD Service - Care,Residential Care
Cambridgeshire County Council,17-Dec-19,51301268291,"-1,009.55",BROAD OAKS VCT LTD,CARE ESTABLISHMENT,Physical Disablity - Cost of Care,Countywide PD Service - Care,Residential Care
Cambridgeshire County Council,17-Dec-19,51301268291,"-1,009.55",BROAD OAKS VCT LTD,CARE ESTABLISHMENT,Physical Disablity - Cost of Care,Countywide PD Service - Care,Residential Care
Cambridgeshire County Council,17-Dec-19,51301268291,"-1,009.55",BROAD OAKS VCT LTD,CARE ESTABLISHMENT,Physical Disablity - Cost of Care,Countywide PD Service - Care,Residential Care
Cambridgeshire County Council,17-Dec-19,51301268291,"-1,009.55",BROAD OAKS VCT LTD,CARE ESTABLISHMENT,Physical Disablity - Cost of Care,Countywide PD Service - Care,Residential Care
Cambridgeshire County Council,17-Dec-19,51301268291,"-1,009.55",BROAD OAKS VCT LTD,CARE ESTABLISHMENT,Physical Disablity - Cost of Care,Countywide PD Service - Care,Residential Care
Cambridgeshire County Council,13-Dec-19,51301284700,"-1,007.69",2 CHEVERIL LANE (VOYAGE),CARE ESTABLISHMENT,LD - Hunts Locality - Cost of Care,LD - Huntingdonshire - Care,Supported Living
Cambridgeshire County Council,13-Dec-19,51301284700,"-1,007.69",2 CHEVERIL LANE (VOYAGE),CARE ESTABLISHMENT,LD - Hunts Locality - Cost of Care,LD - Huntingdonshire - Care,Supported Living
Cambridgeshire County Council,13-Dec-19,51301284700,"-1,007.69",2 CHEVERIL LANE (VOYAGE),CARE ESTABLISHMENT,LD - Hunts Locality - Cost of Care,LD - Huntingdonshire - Care,Supported Living
Cambridgeshire County Council,13-Dec-19,51301284700,"-1,007.69",2 CHEVERIL LANE (VOYAGE),CARE ESTABLISHMENT,LD - Hunts Locality - Cost of Care,LD - Huntingdonshire - Care,Supported Living
Cambridgeshire County Council,13-Dec-19,51301284700,"-1,007.69",2 CHEVERIL LANE (VOYAGE),CARE ESTABLISHMENT,LD - Hunts Locality - Cost of Care,LD - Huntingdonshire - Care,Supported Living
Cambridgeshire County Council,13-Dec-19,51301284700,"-1,007.69",2 CHEVERIL LANE (VOYAGE),CARE ESTABLISHMENT,LD - Hunts Locality - Cost of Care,LD - Huntingdonshire - Care,Supported Living
Cambridgeshire County Council,13-Dec-19,51301284700,"-1,007.69",2 CHEVERIL LANE (VOYAGE),CARE ESTABLISHMENT,LD - Hunts Locality - Cost of Care,LD - Huntingdonshire - Care,Supported Living
Cambridgeshire County Council,13-Dec-19,51301284700,"-1,007.69",2 CHEVERIL LANE (VOYAGE),CARE ESTABLISHMENT,LD - Hunts Locality - Cost of Care,LD - Huntingdonshire - Care,Supported Living
Cambridgeshire County Council,13-Dec-19,51301284700,"-1,007.69",2 CHEVERIL LANE (VOYAGE),CARE ESTABLISHMENT,LD - Hunts Locality - Cost of Care,LD - Huntingdonshire - Care,Supported Living
Cambridgeshire County Council,17-Dec-19,51301287644,"-1,000.04",THE MANOR CHESHIRE HOME,CARE ESTABLISHMENT,Physical Disablity - Cost of Care,Countywide PD Service - Care,Residential Care
Cambridgeshire County Council,17-Dec-19,51301287644,"-1,000.04",THE MANOR CHESHIRE HOME,CARE ESTABLISHMENT,Physical Disablity - Cost of Care,Countywide PD Service - Care,Residential Care
Cambridgeshire County Council,17-Dec-19,51301287644,"-1,000.04",THE MANOR CHESHIRE HOME,CARE ESTABLISHMENT,Physical Disablity - Cost of Care,Countywide PD Service - Care,Residential Care
Cambridgeshire County Council,17-Dec-19,51301287644,"-1,000.04",THE MANOR CHESHIRE HOME,CARE ESTABLISHMENT,Physical Disablity - Cost of Care,Countywide PD Service - Care,Residential Care
Cambridgeshire County Council,17-Dec-19,51301287644,"-1,000.04",THE MANOR CHESHIRE HOME,CARE ESTABLISHMENT,Physical Disablity - Cost of Care,Countywide PD Service - Care,Residential Care
Cambridgeshire County Council,17-Dec-19,51301287644,"-1,000.04",THE MANOR CHESHIRE HOME,CARE ESTABLISHMENT,Physical Disablity - Cost of Care,Countywide PD Service - Care,Residential Care
Cambridgeshire County Council,17-Dec-19,51301287644,"-1,000.04",THE MANOR CHESHIRE HOME,CARE ESTABLISHMENT,Physical Disablity - Cost of Care,Countywide PD Service - Care,Residential Care
Cambridgeshire County Council,05-Dec-19,51301276838,-992.66,VOYAGE,CARE ESTABLISHMENT,LD - South Locality - Cost of Care,LD - South Cambs - Care,Supported Living
Cambridgeshire County Council,05-Dec-19,51301276838,-992.66,VOYAGE,CARE ESTABLISHMENT,LD - South Locality - Cost of Care,LD - South Cambs - Care,Supported Living
Cambridgeshire County Council,05-Dec-19,51301276838,-992.66,VOYAGE,CARE ESTABLISHMENT,LD - South Locality - Cost of Care,LD - South Cambs - Care,Supported Living
Cambridgeshire County Council,05-Dec-19,51301276838,-992.66,VOYAGE,CARE ESTABLISHMENT,LD - South Locality - Cost of Care,LD - South Cambs - Care,Supported Living
Cambridgeshire County Council,05-Dec-19,51301276838,-992.66,VOYAGE,CARE ESTABLISHMENT,LD - South Locality - Cost of Care,LD - South Cambs - Care,Supported Living
Cambridgeshire County Council,13-Dec-19,51301285319,-992.66,VOYAGE,CARE ESTABLISHMENT,LD - South Locality - Cost of Care,LD - South Cambs - Care,Supported Living
Cambridgeshire County Council,13-Dec-19,51301285319,-992.66,VOYAGE,CARE ESTABLISHMENT,LD - South Locality - Cost of Care,LD - South Cambs - Care,Supported Living
Cambridgeshire County Council,13-Dec-19,51301285319,-992.66,VOYAGE,CARE ESTABLISHMENT,LD - South Locality - Cost of Care,LD - South Cambs - Care,Supported Living
Cambridgeshire County Council,13-Dec-19,51301285319,-992.66,VOYAGE,CARE ESTABLISHMENT,LD - South Locality - Cost of Care,LD - South Cambs - Care,Supported Living
Cambridgeshire County Council,13-Dec-19,51301285319,-992.66,VOYAGE,CARE ESTABLISHMENT,LD - South Locality - Cost of Care,LD - South Cambs - Care,Supported Living
Cambridgeshire County Council,13-Dec-19,51301285319,-992.66,VOYAGE,CARE ESTABLISHMENT,LD - South Locality - Cost of Care,LD - South Cambs - Care,Supported Living
Cambridgeshire County Council,13-Dec-19,51301285319,-992.66,VOYAGE,CARE ESTABLISHMENT,LD - South Locality - Cost of Care,LD - South Cambs - Care,Supported Living
Cambridgeshire County Council,13-Dec-19,51301285319,-992.66,VOYAGE,CARE ESTABLISHMENT,LD - South Locality - Cost of Care,LD - South Cambs - Care,Supported Living
Cambridgeshire County Council,13-Dec-19,51301285319,-992.66,VOYAGE,CARE ESTABLISHMENT,LD - South Locality - Cost of Care,LD - South Cambs - Care,Supported Living
Cambridgeshire County Council,13-Dec-19,51301285259,-987.96,VOYAGE,CARE ESTABLISHMENT,LD - South Locality - Cost of Care,LD - South Cambs - Care,Supported Living
Cambridgeshire County Council,13-Dec-19,51301285259,-987.96,VOYAGE,CARE ESTABLISHMENT,LD - South Locality - Cost of Care,LD - South Cambs - Care,Supported Living
Cambridgeshire County Council,13-Dec-19,51301285259,-987.96,VOYAGE,CARE ESTABLISHMENT,LD - South Locality - Cost of Care,LD - South Cambs - Care,Supported Living
Cambridgeshire County Council,13-Dec-19,51301285259,-987.96,VOYAGE,CARE ESTABLISHMENT,LD - South Locality - Cost of Care,LD - South Cambs - Care,Supported Living
Cambridgeshire County Council,13-Dec-19,51301285259,-987.96,VOYAGE,CARE ESTABLISHMENT,LD - South Locality - Cost of Care,LD - South Cambs - Care,Supported Living
Cambridgeshire County Council,13-Dec-19,51301285259,-987.96,VOYAGE,CARE ESTABLISHMENT,LD - South Locality - Cost of Care,LD - South Cambs - Care,Supported Living
Cambridgeshire County Council,13-Dec-19,51301285259,-987.96,VOYAGE,CARE ESTABLISHMENT,LD - South Locality - Cost of Care,LD - South Cambs - Care,Supported Living
Cambridgeshire County Council,13-Dec-19,51301285259,-987.96,VOYAGE,CARE ESTABLISHMENT,LD - South Locality - Cost of Care,LD - South Cambs - Care,Supported Living
Cambridgeshire County Council,13-Dec-19,51301285259,-987.96,VOYAGE,CARE ESTABLISHMENT,LD - South Locality - Cost of Care,LD - South Cambs - Care,Supported Living
Cambridgeshire County Council,13-Dec-19,51301285221,-986.68,VOYAGE,CARE ESTABLISHMENT,LD - South Locality - Cost of Care,LD - South Cambs - Care,Domiciliary Care
Cambridgeshire County Council,13-Dec-19,51301285221,-986.68,VOYAGE,CARE ESTABLISHMENT,LD - South Locality - Cost of Care,LD - South Cambs - Care,Domiciliary Care
Cambridgeshire County Council,13-Dec-19,51301285221,-986.68,VOYAGE,CARE ESTABLISHMENT,LD - South Locality - Cost of Care,LD - South Cambs - Care,Domiciliary Care
Cambridgeshire County Council,13-Dec-19,51301285221,-986.68,VOYAGE,CARE ESTABLISHMENT,LD - South Locality - Cost of Care,LD - South Cambs - Care,Domiciliary Care
